Body Name,Body,Service Area Catergorisation,Service Division Catergorisation,Responsible Unit,Expenses Type,Detailed Expenses Type,Expenses Code,Date,Transaction Number,Amount,Capital / Revenue,Supplier Name,Supplier ID
North East Lincolnshire Council,http://statistics.data.gov.uk/id/local-authority/00FC),Gov  Dem Community Engagement,Gov Dem & Community Engagement,Armed Forces Hub,Cap Land/Build-Build Enh Wrk,Cap Land/Build-Build Enh Wrk,YA102,10/16/2018,537474,1400,,JOINT SERVICES MAJOR EVENTS TEAM N E LINCS,109747
North East Lincolnshire Council,http://statistics.data.gov.uk/id/local-authority/00FC),Gov  Dem Community Engagement,Gov Dem & Community Engagement,Armed Forces Hub,Cap Land/Build-Build Enh Wrk,Cap Land/Build-Build Enh Wrk,YA102,10/11/2018,537476,4000,,JOINT SERVICES MAJOR EVENTS TEAM N E LINCS,109747
North East Lincolnshire Council,http://statistics.data.gov.uk/id/local-authority/00FC),Finance Operations & Resources,Resources,Backlog Maintenance,Cap Land/Build-Build Enh Wrk,Cap Land/Build-Build Enh Wrk,YA102,10/23/2018,538805,285,,NEWGLAZE,100642
North East Lincolnshire Council,http://statistics.data.gov.uk/id/local-authority/00FC),Finance Operations & Resources,Resources,Backlog Maintenance,Cap Land/Build-Build Enh Wrk,Cap Land/Build-Build Enh Wrk,YA102,10/23/2018,538803,417,,SIGNS EXPRESS (N & NE LINCS),100983
North East Lincolnshire Council,http://statistics.data.gov.uk/id/local-authority/00FC),Finance Operations & Resources,Resources,Backlog Maintenance,Cap Land/Build-Build Enh Wrk,Cap Land/Build-Build Enh Wrk,YA102,10/23/2018,538804,836.5,,KES BUILDING MAINTENANCE LIMITED,100786
North East Lincolnshire Council,http://statistics.data.gov.uk/id/local-authority/00FC),Finance Operations & Resources,Resources,Backlog Maintenance,Cap Land/Build-Build Enh Wrk,Cap Land/Build-Build Enh Wrk,YA102,10/9/2018,536147,615,,ENGIE SERVICES LTD,133267
North East Lincolnshire Council,http://statistics.data.gov.uk/id/local-authority/00FC),Finance Operations & Resources,Resources,Backlog Maintenance,Cap Land/Build-Build Enh Wrk,Cap Land/Build-Build Enh Wrk,YA102,10/23/2018,538798,9940,,ETON-LINCS LIMITED,101510
North East Lincolnshire Council,http://statistics.data.gov.uk/id/local-authority/00FC),Finance Operations & Resources,Resources,Backlog Maintenance,Cap Land/Build-Build Enh Wrk,Cap Land/Build-Build Enh Wrk,YA102,10/16/2018,538010,1200,,SIGNS EXPRESS (N & NE LINCS),100983
North East Lincolnshire Council,http://statistics.data.gov.uk/id/local-authority/00FC),Finance Operations & Resources,Resources,Backlog Maintenance,Cap Land/Build-Build Enh Wrk,Cap Land/Build-Build Enh Wrk,YA102,10/16/2018,538020,82221.75,,LINCS ELECTRICAL SERVICES LTD,102044
North East Lincolnshire Council,http://statistics.data.gov.uk/id/local-authority/00FC),Finance Operations & Resources,Resources,Backlog Maintenance,Cap Land/Build-Build Enh Wrk,Cap Land/Build-Build Enh Wrk,YA102,10/9/2018,536149,3665,,ENGIE SERVICES LTD,133267
North East Lincolnshire Council,http://statistics.data.gov.uk/id/local-authority/00FC),Finance Operations & Resources,Resources,Property Rationalisation Prog,Cap Land/Build-Build Enh Wrk,Cap Land/Build-Build Enh Wrk,YA102,10/23/2018,538779,675.73,,ELLGIA LIMITED,101433
North East Lincolnshire Council,http://statistics.data.gov.uk/id/local-authority/00FC),Finance Operations & Resources,Resources,Property Rationalisation Prog,Cap Infrastr-Purchase,Cap Infrastr-Purchase,YC101,10/25/2018,535521,500,,CIVICA UK LIMITED,103029
North East Lincolnshire Council,http://statistics.data.gov.uk/id/local-authority/00FC),Finance Operations & Resources,Resources,Property Rationalisation Prog,Cap Land/Build-Build Enh Wrk,Cap Land/Build-Build Enh Wrk,YA102,10/2/2018,536082,285,CAPITAL,KINGDOM SERVICES GROUP LTD,138536
North East Lincolnshire Council,http://statistics.data.gov.uk/id/local-authority/00FC),Finance Operations & Resources,Resources,Property Rationalisation Prog,Cap Land/Build-Build Enh Wrk,Cap Land/Build-Build Enh Wrk,YA102,10/23/2018,538802,5001.73,CAPITAL,F R TOWNSEND & CO LTD,104217
North East Lincolnshire Council,http://statistics.data.gov.uk/id/local-authority/00FC),Finance Operations & Resources,Resources,Property Rationalisation Prog,Cap Land/Build-Build Enh Wrk,Cap Land/Build-Build Enh Wrk,YA102,10/2/2018,536080,690,CAPITAL,KINGDOM SERVICES GROUP LTD,138536
North East Lincolnshire Council,http://statistics.data.gov.uk/id/local-authority/00FC),Finance Operations & Resources,Resources,Property Rationalisation Prog,Cap Infrastr-Purchase,Cap Infrastr-Purchase,YC101,10/9/2018,536533,-305,CAPITAL,INSIGHT DIRECT (UK) LTD,101011
North East Lincolnshire Council,http://statistics.data.gov.uk/id/local-authority/00FC),Finance Operations & Resources,Resources,Property Rationalisation Prog,Cap Infrastr-Purchase,Cap Infrastr-Purchase,YC101,10/11/2018,537574,296.99,CAPITAL,INSIGHT DIRECT (UK) LTD,101011
North East Lincolnshire Council,http://statistics.data.gov.uk/id/local-authority/00FC),Finance Operations & Resources,Resources,Heritage Assets At Risk,Cap Infrastr-Build Enh Wrk,Cap Infrastr-Build Enh Wrk,YC102,10/4/2018,536480,2350,CAPITAL,FDA DESIGN,141044
North East Lincolnshire Council,http://statistics.data.gov.uk/id/local-authority/00FC),Finance Operations & Resources,Shared Services,Ict Refresh 16-17,Cap Land/Build-Build Enh Wrk,Cap Land/Build-Build Enh Wrk,YA102,10/4/2018,536479,10254.6,CAPITAL,XMA LIMITED,100699
North East Lincolnshire Council,http://statistics.data.gov.uk/id/local-authority/00FC),Finance Operations & Resources,Shared Services,Ict Refresh 16-17,Cap Land/Build-Build Enh Wrk,Cap Land/Build-Build Enh Wrk,YA102,10/30/2018,539760,9629.2,CAPITAL,XMA LIMITED,100699
North East Lincolnshire Council,http://statistics.data.gov.uk/id/local-authority/00FC),Finance Operations & Resources,Shared Services,Ict Refresh 16-17,Cap Intangible Assets,Cap Intangible Assets,YH101,10/30/2018,534680,688.03,CAPITAL,TRUSTMARQUE SOLUTIONS LTD,101275
North East Lincolnshire Council,http://statistics.data.gov.uk/id/local-authority/00FC),Finance Operations & Resources,Shared Services,Ict Refresh 16-17,Cap Intangible Assets,Cap Intangible Assets,YH101,10/30/2018,536988,688.03,CAPITAL,TRUSTMARQUE SOLUTIONS LTD,101275
North East Lincolnshire Council,http://statistics.data.gov.uk/id/local-authority/00FC),Finance Operations & Resources,Shared Services,Ict Refresh 16-17,Cap Intangible Assets,Cap Intangible Assets,YH101,10/18/2018,534614,5795,CAPITAL,GLOBAL KNOWLEDGE NETWORK TRAINING LTD,112519
North East Lincolnshire Council,http://statistics.data.gov.uk/id/local-authority/00FC),Finance Operations & Resources,Environment,Fleet Replacement Programme,Cap Veh Plt Eqp-Purchase,Cap Veh Plt Eqp-Purchase,YB101,10/30/2018,538402,23870.9,CAPITAL,FORD MOTOR COMPANY LTD,137829
North East Lincolnshire Council,http://statistics.data.gov.uk/id/local-authority/00FC),Finance Operations & Resources,Environment,Fleet Replacement Programme,Cap Veh Plt Eqp-Purchase,Cap Veh Plt Eqp-Purchase,YB101,10/30/2018,538402,305,CAPITAL,FORD MOTOR COMPANY LTD,137829
North East Lincolnshire Council,http://statistics.data.gov.uk/id/local-authority/00FC),Finance Operations & Resources,Environment,Fleet Replacement Programme,Cap Veh Plt Eqp-Purchase,Cap Veh Plt Eqp-Purchase,YB101,10/30/2018,539307,430,CAPITAL,JOHNSTON SWEEPERS LTD,101463
North East Lincolnshire Council,http://statistics.data.gov.uk/id/local-authority/00FC),Finance Operations & Resources,Environment,Household Recycling Scheme,Cap Land/Build-Build Enh Wrk,Cap Land/Build-Build Enh Wrk,YA102,10/30/2018,539721,26656,CAPITAL,A&C WEBER UK LTD,105231
North East Lincolnshire Council,http://statistics.data.gov.uk/id/local-authority/00FC),Economy And Growth,Economy & Growth,Local Transport Plan Schemes,Cap Infrastr-Build Enh Wrk,Cap Infrastr-Build Enh Wrk,YC102,10/4/2018,536029,1000,CAPITAL,ENGIE SERVICES LTD,133267
North East Lincolnshire Council,http://statistics.data.gov.uk/id/local-authority/00FC),Economy And Growth,Economy & Growth,Local Transport Plan Schemes,Cap Infrastr-Build Enh Wrk,Cap Infrastr-Build Enh Wrk,YC102,10/25/2018,539302,146559.24,CAPITAL,PBS CONSTRUCTION (NORTH EAST) LTD,127459
North East Lincolnshire Council,http://statistics.data.gov.uk/id/local-authority/00FC),Economy And Growth,Economy & Growth,Local Transport Plan Schemes,Cap Infrastr-Build Enh Wrk,Cap Infrastr-Build Enh Wrk,YC102,10/2/2018,536161,5500.12,CAPITAL,EC SURFACING LTD,125951
North East Lincolnshire Council,http://statistics.data.gov.uk/id/local-authority/00FC),Economy And Growth,Economy & Growth,Local Transport Plan Schemes,Cap Infrastr-Build Enh Wrk,Cap Infrastr-Build Enh Wrk,YC102,10/4/2018,536020,732.02,CAPITAL,ENGIE SERVICES LTD,133267
North East Lincolnshire Council,http://statistics.data.gov.uk/id/local-authority/00FC),Economy And Growth,Economy & Growth,Local Transport Plan Schemes,Cap Land/Build-Build Enh Wrk,Cap Land/Build-Build Enh Wrk,YA102,10/23/2018,538801,3158.84,CAPITAL,J MCCANN & CO LTD,100841
North East Lincolnshire Council,http://statistics.data.gov.uk/id/local-authority/00FC),Economy And Growth,Economy & Growth,Local Transport Plan Schemes,Cap Land/Build-Build Enh Wrk,Cap Land/Build-Build Enh Wrk,YA102,10/23/2018,538800,1143.55,CAPITAL,J MCCANN & CO LTD,100841
North East Lincolnshire Council,http://statistics.data.gov.uk/id/local-authority/00FC),Economy And Growth,Economy & Growth,Local Transport Plan Schemes,Cap Infrastr-Build Enh Wrk,Cap Infrastr-Build Enh Wrk,YC102,10/23/2018,538329,392.5,CAPITAL,ALMEGA PROMOTIONAL GIFTS LTD,129985
North East Lincolnshire Council,http://statistics.data.gov.uk/id/local-authority/00FC),Economy And Growth,Economy & Growth,Local Transport Plan Schemes,Cap Infrastr-Build Enh Wrk,Cap Infrastr-Build Enh Wrk,YC102,10/23/2018,538329,595,CAPITAL,ALMEGA PROMOTIONAL GIFTS LTD,129985
North East Lincolnshire Council,http://statistics.data.gov.uk/id/local-authority/00FC),Economy And Growth,Economy & Growth,Local Transport Plan Schemes,Cap Infrastr-Build Enh Wrk,Cap Infrastr-Build Enh Wrk,YC102,10/23/2018,538329,278,CAPITAL,ALMEGA PROMOTIONAL GIFTS LTD,129985
North East Lincolnshire Council,http://statistics.data.gov.uk/id/local-authority/00FC),Economy And Growth,Economy & Growth,Local Transport Plan Schemes,Cap Infrastr-Build Enh Wrk,Cap Infrastr-Build Enh Wrk,YC102,10/23/2018,538329,330,CAPITAL,ALMEGA PROMOTIONAL GIFTS LTD,129985
North East Lincolnshire Council,http://statistics.data.gov.uk/id/local-authority/00FC),Economy And Growth,Economy & Growth,Local Transport Plan Schemes,Cap Infrastr-Prof Fees,Cap Infrastr-Prof Fees,YC103,10/9/2018,534361,299,CAPITAL,TRL LIMITED,131763
North East Lincolnshire Council,http://statistics.data.gov.uk/id/local-authority/00FC),Economy And Growth,Economy & Growth,Local Transport Plan Schemes,Cap Infrastr-Purchase,Cap Infrastr-Purchase,YC101,10/25/2018,538934,1930,CAPITAL,COMMUTAPORTS LTD,120108
North East Lincolnshire Council,http://statistics.data.gov.uk/id/local-authority/00FC),Economy And Growth,Economy & Growth,Local Transport Plan Schemes,Cap Infrastr-Purchase,Cap Infrastr-Purchase,YC101,10/25/2018,538935,1930,CAPITAL,COMMUTAPORTS LTD,120108
North East Lincolnshire Council,http://statistics.data.gov.uk/id/local-authority/00FC),Economy And Growth,Economy & Growth,Local Transport Plan Schemes,Cap Infrastr-Purchase,Cap Infrastr-Purchase,YC101,10/9/2018,536896,12636.05,CAPITAL,R2P UK SYSTEMS LTD,124772
North East Lincolnshire Council,http://statistics.data.gov.uk/id/local-authority/00FC),Economy And Growth,Economy & Growth,Local Transport Plan Schemes,Cap Infrastr-Build Enh Wrk,Cap Infrastr-Build Enh Wrk,YC102,10/30/2018,539409,1826.64,CAPITAL,HUMBERSIDE MATERIALS LABORATORY LTD,122103
North East Lincolnshire Council,http://statistics.data.gov.uk/id/local-authority/00FC),Economy And Growth,Economy & Growth,Local Transport Plan Schemes,Cap Infrastr-Build Enh Wrk,Cap Infrastr-Build Enh Wrk,YC102,10/11/2018,537043,49517.76,CAPITAL,EC SURFACING LTD,125951
North East Lincolnshire Council,http://statistics.data.gov.uk/id/local-authority/00FC),Economy And Growth,Economy & Growth,Local Transport Plan Schemes,Cap Infrastr-Build Enh Wrk,Cap Infrastr-Build Enh Wrk,YC102,10/9/2018,536907,1928.5,CAPITAL,ONEWAY TM LIMITED,128602
North East Lincolnshire Council,http://statistics.data.gov.uk/id/local-authority/00FC),Economy And Growth,Economy & Growth,Local Transport Plan Schemes,Cap Infrastr-Build Enh Wrk,Cap Infrastr-Build Enh Wrk,YC102,10/9/2018,536032,9000,CAPITAL,ENGIE SERVICES LTD,133267
North East Lincolnshire Council,http://statistics.data.gov.uk/id/local-authority/00FC),Economy And Growth,Economy & Growth,Local Transport Plan Schemes,Cap Infrastr-Build Enh Wrk,Cap Infrastr-Build Enh Wrk,YC102,10/4/2018,536017,1355.78,CAPITAL,ENGIE SERVICES LTD,133267
North East Lincolnshire Council,http://statistics.data.gov.uk/id/local-authority/00FC),Economy And Growth,Economy & Growth,Local Transport Plan Schemes,Cap Infrastr-Build Enh Wrk,Cap Infrastr-Build Enh Wrk,YC102,10/16/2018,538191,217999.99,CAPITAL,KIELY BROS LTD,106644
North East Lincolnshire Council,http://statistics.data.gov.uk/id/local-authority/00FC),Economy And Growth,Economy & Growth,Local Transport Plan Schemes,Cap Infrastr-Build Enh Wrk,Cap Infrastr-Build Enh Wrk,YC102,10/2/2018,536217,145821.39,CAPITAL,KIELY BROS LTD,106644
North East Lincolnshire Council,http://statistics.data.gov.uk/id/local-authority/00FC),Economy And Growth,Economy & Growth,Local Transport Plan Schemes,Cap Infrastr-Build Enh Wrk,Cap Infrastr-Build Enh Wrk,YC102,10/16/2018,538191,63620,CAPITAL,KIELY BROS LTD,106644
North East Lincolnshire Council,http://statistics.data.gov.uk/id/local-authority/00FC),Economy And Growth,Economy & Growth,Local Transport Plan Schemes,Cap Infrastr-Build Enh Wrk,Cap Infrastr-Build Enh Wrk,YC102,10/2/2018,536164,22439.54,CAPITAL,EC SURFACING LTD,125951
North East Lincolnshire Council,http://statistics.data.gov.uk/id/local-authority/00FC),Economy And Growth,Economy & Growth,Local Transport Plan Schemes,Cap Infrastr-Build Enh Wrk,Cap Infrastr-Build Enh Wrk,YC102,10/23/2018,538840,2200.09,CAPITAL,COLVESTER HOMES LTD,140201
North East Lincolnshire Council,http://statistics.data.gov.uk/id/local-authority/00FC),Economy And Growth,Economy & Growth,Local Transport Plan Schemes,Cap Infrastr-Build Enh Wrk,Cap Infrastr-Build Enh Wrk,YC102,10/11/2018,537481,2874,CAPITAL,ADVANTAGE TSC & D LTD,109136
North East Lincolnshire Council,http://statistics.data.gov.uk/id/local-authority/00FC),Economy And Growth,Economy & Growth,Local Transport Plan Schemes,Cap Infrastr-Build Enh Wrk,Cap Infrastr-Build Enh Wrk,YC102,10/11/2018,537045,159746.51,CAPITAL,C R REYNOLDS (CONSTRUCTION) LTD,103021
North East Lincolnshire Council,http://statistics.data.gov.uk/id/local-authority/00FC),Economy And Growth,Economy & Growth,Local Transport Plan Schemes,Cap Infrastr-Build Enh Wrk,Cap Infrastr-Build Enh Wrk,YC102,10/4/2018,536023,2340,CAPITAL,ENGIE SERVICES LTD,133267
North East Lincolnshire Council,http://statistics.data.gov.uk/id/local-authority/00FC),Economy And Growth,Economy & Growth,Local Transport Plan Schemes,Cap Infrastr-Build Enh Wrk,Cap Infrastr-Build Enh Wrk,YC102,10/9/2018,536851,914.24,CAPITAL,J MCCANN & CO LTD,100841
North East Lincolnshire Council,http://statistics.data.gov.uk/id/local-authority/00FC),Economy And Growth,Economy & Growth,Local Transport Plan Schemes,Cap Infrastr-Build Enh Wrk,Cap Infrastr-Build Enh Wrk,YC102,10/11/2018,537042,320,CAPITAL,ONEWAY TM LIMITED,128602
North East Lincolnshire Council,http://statistics.data.gov.uk/id/local-authority/00FC),Economy And Growth,Economy & Growth,Local Transport Plan Schemes,Cap Infrastr-Purchase,Cap Infrastr-Purchase,YC101,10/11/2018,537478,6995,CAPITAL,AUTOCROSS EUROSHEL LTD,139206
North East Lincolnshire Council,http://statistics.data.gov.uk/id/local-authority/00FC),Economy And Growth,Economy & Growth,Local Transport Plan Schemes,Cap Infrastr-Purchase,Cap Infrastr-Purchase,YC101,10/11/2018,537492,675,CAPITAL,AUTOCROSS EUROSHEL LTD,139206
North East Lincolnshire Council,http://statistics.data.gov.uk/id/local-authority/00FC),Economy And Growth,Economy & Growth,Local Transport Plan Schemes,Cap Infrastr-Build Enh Wrk,Cap Infrastr-Build Enh Wrk,YC102,10/9/2018,536876,32253.23,CAPITAL,J MCCANN & CO LTD,100841
North East Lincolnshire Council,http://statistics.data.gov.uk/id/local-authority/00FC),Economy And Growth,Economy & Growth,Local Transport Plan Schemes,Cap Infrastr-Build Enh Wrk,Cap Infrastr-Build Enh Wrk,YC102,10/11/2018,537607,1483.93,CAPITAL,SPECIALIST SURFACING LIMITED,100579
North East Lincolnshire Council,http://statistics.data.gov.uk/id/local-authority/00FC),Economy And Growth,Economy & Growth,Local Transport Plan Schemes,Cap Infrastr-Build Enh Wrk,Cap Infrastr-Build Enh Wrk,YC102,10/23/2018,538470,2810,CAPITAL,POD POINT LTD,112406
North East Lincolnshire Council,http://statistics.data.gov.uk/id/local-authority/00FC),Economy And Growth,Economy & Growth,Local Transport Plan Schemes,Cap Infrastr-Build Enh Wrk,Cap Infrastr-Build Enh Wrk,YC102,10/2/2018,536210,2810,CAPITAL,POD POINT LTD,112406
North East Lincolnshire Council,http://statistics.data.gov.uk/id/local-authority/00FC),Economy And Growth,Economy & Growth,Local Transport Plan Schemes,Cap Infrastr-Build Enh Wrk,Cap Infrastr-Build Enh Wrk,YC102,10/11/2018,537608,108927.38,CAPITAL,SPECIALIST SURFACING LIMITED,100579
North East Lincolnshire Council,http://statistics.data.gov.uk/id/local-authority/00FC),Economy And Growth,Economy & Growth,Local Transport Plan Schemes,Cap Infrastr-Build Enh Wrk,Cap Infrastr-Build Enh Wrk,YC102,10/4/2018,536024,8000,CAPITAL,ENGIE SERVICES LTD,133267
North East Lincolnshire Council,http://statistics.data.gov.uk/id/local-authority/00FC),Economy And Growth,Economy & Growth,Local Transport Plan Schemes,Cap Infrastr-Build Enh Wrk,Cap Infrastr-Build Enh Wrk,YC102,10/18/2018,538332,282.54,CAPITAL,LOCAL WORLD LIMITED,118774
North East Lincolnshire Council,http://statistics.data.gov.uk/id/local-authority/00FC),Economy And Growth,Economy & Growth,Local Transport Plan Schemes,Cap Infrastr-Build Enh Wrk,Cap Infrastr-Build Enh Wrk,YC102,10/16/2018,537958,282.54,CAPITAL,LOCAL WORLD LIMITED,118774
North East Lincolnshire Council,http://statistics.data.gov.uk/id/local-authority/00FC),Economy And Growth,Economy & Growth,Gllep Junction Improvement,Cap Land/Build-Build Enh Wrk,Cap Land/Build-Build Enh Wrk,YA102,10/4/2018,536014,6000,CAPITAL,ENGIE SERVICES LTD,133267
North East Lincolnshire Council,http://statistics.data.gov.uk/id/local-authority/00FC),Economy And Growth,Economy & Growth,Gllep Junction Improvement,Cap Infrastr-Build Enh Wrk,Cap Infrastr-Build Enh Wrk,YC102,10/4/2018,536016,5000,CAPITAL,ENGIE SERVICES LTD,133267
North East Lincolnshire Council,http://statistics.data.gov.uk/id/local-authority/00FC),Economy And Growth,Economy & Growth,Gllep Junction Improvement,Cap Infrastr-Prof Fees,Cap Infrastr-Prof Fees,YC103,10/18/2018,538339,10000,CAPITAL,AECOM LTD,133565
North East Lincolnshire Council,http://statistics.data.gov.uk/id/local-authority/00FC),Economy And Growth,Economy & Growth,Gllep Junction Improvement,Cap Infrastr-Prof Fees,Cap Infrastr-Prof Fees,YC103,10/30/2018,537975,800,CAPITAL,DELTA-SIMONS ENVIRONMENTAL CONSULTANTS LTD,122455
North East Lincolnshire Council,http://statistics.data.gov.uk/id/local-authority/00FC),Economy And Growth,Economy & Growth,Victoria Mills (Capital),Cap Land/Build-Build Enh Wrk,Cap Land/Build-Build Enh Wrk,YA102,10/30/2018,539677,1300,CAPITAL,SKYFPV AERIAL PHOTOGRAPHY,140781
North East Lincolnshire Council,http://statistics.data.gov.uk/id/local-authority/00FC),Economy And Growth,Economy & Growth,Shiip Scheme,Cap Infrastr-Build Enh Wrk,Cap Infrastr-Build Enh Wrk,YC102,10/30/2018,537727,17900,CAPITAL,OXFORD ARCHAEOLOGY LTD,136496
North East Lincolnshire Council,http://statistics.data.gov.uk/id/local-authority/00FC),Economy And Growth,Economy & Growth,Shiip Scheme,Cap Infrastr-Prof Fees,Cap Infrastr-Prof Fees,YC103,10/18/2018,538358,1142.4,CAPITAL,EAST RIDING OF YORKSHIRE COUNCIL,100377
North East Lincolnshire Council,http://statistics.data.gov.uk/id/local-authority/00FC),Economy And Growth,Economy & Growth,Shiip Scheme,Cap Infrastr-Prof Fees,Cap Infrastr-Prof Fees,YC103,10/18/2018,538365,1142.4,CAPITAL,EAST RIDING OF YORKSHIRE COUNCIL,100377
North East Lincolnshire Council,http://statistics.data.gov.uk/id/local-authority/00FC),Economy And Growth,Economy & Growth,Shiip Scheme,Cap Infrastr-Prof Fees,Cap Infrastr-Prof Fees,YC103,10/18/2018,538360,-1142.4,CAPITAL,EAST RIDING OF YORKSHIRE COUNCIL,100377
North East Lincolnshire Council,http://statistics.data.gov.uk/id/local-authority/00FC),Economy And Growth,Economy & Growth,Shiip Scheme,Cap Infrastr-Build Enh Wrk,Cap Infrastr-Build Enh Wrk,YC102,10/23/2018,537679,940.52,CAPITAL,HUMBERSIDE MATERIALS LABORATORY LTD,122103
North East Lincolnshire Council,http://statistics.data.gov.uk/id/local-authority/00FC),Economy And Growth,Economy & Growth,Shiip Scheme,Cap Infrastr-Build Enh Wrk,Cap Infrastr-Build Enh Wrk,YC102,10/9/2018,536162,15383.75,CAPITAL,EC SURFACING LTD,125951
North East Lincolnshire Council,http://statistics.data.gov.uk/id/local-authority/00FC),Economy And Growth,Economy & Growth,Shiip Scheme,Cap Infrastr-Prof Fees,Cap Infrastr-Prof Fees,YC103,10/30/2018,536951,9250,CAPITAL,ENGIE SERVICES LTD,133267
North East Lincolnshire Council,http://statistics.data.gov.uk/id/local-authority/00FC),Economy And Growth,Economy & Growth,Shiip Scheme,Cap Infrastr-Prof Fees,Cap Infrastr-Prof Fees,YC103,10/30/2018,539690,660,CAPITAL,WARDELL ARMSTRONG LLP,137631
North East Lincolnshire Council,http://statistics.data.gov.uk/id/local-authority/00FC),Economy And Growth,Economy & Growth,Catch Offshore,Cap Infrastr-Build Enh Wrk,Cap Infrastr-Build Enh Wrk,YC102,10/31/2018,535520,1302,CAPITAL,HUMBERSIDE SUNBLINDS LTD,100851
North East Lincolnshire Council,http://statistics.data.gov.uk/id/local-authority/00FC),Economy And Growth,Economy & Growth,Scartho Road Hosp Junc Imp,Cap Infrastr-Build Enh Wrk,Cap Infrastr-Build Enh Wrk,YC102,10/2/2018,536163,29894.93,CAPITAL,PBS CONSTRUCTION (NORTH EAST) LTD,127459
North East Lincolnshire Council,http://statistics.data.gov.uk/id/local-authority/00FC),Economy And Growth,Economy & Growth,Scartho Road Hosp Junc Imp,Cap Infrastr-Build Enh Wrk,Cap Infrastr-Build Enh Wrk,YC102,10/9/2018,536285,1150,CAPITAL,LOCAL TRANSPORT PROJECTS LTD,121248
North East Lincolnshire Council,http://statistics.data.gov.uk/id/local-authority/00FC),Economy And Growth,Economy & Growth,Coastal Communities Fund,Cap Infrastr-Build Enh Wrk,Cap Infrastr-Build Enh Wrk,YC102,10/23/2018,538541,1800,CAPITAL,BT PAYPHONES RECEIVABLES,119376
North East Lincolnshire Council,http://statistics.data.gov.uk/id/local-authority/00FC),Economy And Growth,Economy & Growth,Coastal Communities Fund,Cap Infrastr-Build Enh Wrk,Cap Infrastr-Build Enh Wrk,YC102,10/23/2018,538622,11825.07,CAPITAL,NORTHERN POWERGRID (YORKSHIRE) PLC,108328
North East Lincolnshire Council,http://statistics.data.gov.uk/id/local-authority/00FC),Economy And Growth,Economy & Growth,Coastal Communities Fund,Cap Infrastr-Build Enh Wrk,Cap Infrastr-Build Enh Wrk,YC102,10/9/2018,536249,14999.98,CAPITAL,ENGIE SERVICES LTD,133267
North East Lincolnshire Council,http://statistics.data.gov.uk/id/local-authority/00FC),Economy And Growth,Economy & Growth,Cleethorpes Cycle Hub,Cap Infrastr-Build Enh Wrk,Cap Infrastr-Build Enh Wrk,YC102,10/4/2018,536482,88962.89,CAPITAL,S VOASE BUILDERS LTD,103594
North East Lincolnshire Council,http://statistics.data.gov.uk/id/local-authority/00FC),Economy And Growth,Economy & Growth,A18 Laceby To Ludborough,Cap Infrastr-Build Enh Wrk,Cap Infrastr-Build Enh Wrk,YC102,10/18/2018,537468,6385,CAPITAL,CLUGSTON SURVEY SERVICES,105668
North East Lincolnshire Council,http://statistics.data.gov.uk/id/local-authority/00FC),Economy And Growth,Economy & Growth,A18 Laceby To Ludborough,Cap Infrastr-Build Enh Wrk,Cap Infrastr-Build Enh Wrk,YC102,10/4/2018,536251,30139.29,CAPITAL,ENGIE SERVICES LTD,133267
North East Lincolnshire Council,http://statistics.data.gov.uk/id/local-authority/00FC),Public Health And Leisure,Leisure,Library Self Service Equipment,Cap Land/Build-Purchase,Cap Land/Build-Purchase,YA101,10/23/2018,538043,157815.22,CAPITAL,AUDITORIA SERVICES LTD,128689
North East Lincolnshire Council,http://statistics.data.gov.uk/id/local-authority/00FC),Adult Services,Adult Services,Hps-Disabled Fac. Grants,Cap Grants To O/Side Sources,Cap Grants To O/Side Sources,YJ101,10/11/2018,537637,12677.72,CAPITAL,P G INGOLDBY & SONS LTD,100591
North East Lincolnshire Council,http://statistics.data.gov.uk/id/local-authority/00FC),Adult Services,Adult Services,Hps-Disabled Fac. Grants,Cap Grants To O/Side Sources,Cap Grants To O/Side Sources,YJ101,10/18/2018,538400,10905.15,CAPITAL,F R TOWNSEND & CO LTD,104217
North East Lincolnshire Council,http://statistics.data.gov.uk/id/local-authority/00FC),Adult Services,Adult Services,Hps-Disabled Fac. Grants,Cap Grants To O/Side Sources,Cap Grants To O/Side Sources,YJ101,10/30/2018,539695,1578.13,CAPITAL,YES ENERGY SOLUTIONS,138575
North East Lincolnshire Council,http://statistics.data.gov.uk/id/local-authority/00FC),Adult Services,Adult Services,Hps-Disabled Fac. Grants,Cap Grants To O/Side Sources,Cap Grants To O/Side Sources,YJ101,10/30/2018,539673,1569,CAPITAL,OBAM LIFT SERVICES LTD,112666
North East Lincolnshire Council,http://statistics.data.gov.uk/id/local-authority/00FC),Adult Services,Adult Services,Hps-Disabled Fac. Grants,Cap Grants To O/Side Sources,Cap Grants To O/Side Sources,YJ101,10/11/2018,537443,2599.66,CAPITAL,DOLPHIN MOBILITY EAST MIDLANDS LTD,101317
North East Lincolnshire Council,http://statistics.data.gov.uk/id/local-authority/00FC),Adult Services,Adult Services,Hps-Disabled Fac. Grants,Cap Grants To O/Side Sources,Cap Grants To O/Side Sources,YJ101,10/18/2018,538369,4890.99,CAPITAL,MARK BENNETT,101838
North East Lincolnshire Council,http://statistics.data.gov.uk/id/local-authority/00FC),Adult Services,Adult Services,Hps-Disabled Fac. Grants,Cap Grants To O/Side Sources,Cap Grants To O/Side Sources,YJ101,10/23/2018,538589,1569,CAPITAL,OBAM LIFT SERVICES LTD,112666
North East Lincolnshire Council,http://statistics.data.gov.uk/id/local-authority/00FC),Adult Services,Adult Services,Hps-Disabled Fac. Grants,Cap Grants To O/Side Sources,Cap Grants To O/Side Sources,YJ101,10/2/2018,536238,1741.16,CAPITAL,OBAM LIFT SERVICES LTD,112666
North East Lincolnshire Council,http://statistics.data.gov.uk/id/local-authority/00FC),Adult Services,Adult Services,Hps-Disabled Fac. Grants,Cap Grants To O/Side Sources,Cap Grants To O/Side Sources,YJ101,10/18/2018,538447,2337.81,CAPITAL,MARK BENNETT,101838
North East Lincolnshire Council,http://statistics.data.gov.uk/id/local-authority/00FC),Adult Services,Adult Services,Hps-Disabled Fac. Grants,Cap Grants To O/Side Sources,Cap Grants To O/Side Sources,YJ101,10/25/2018,538857,7196.13,CAPITAL,VIC HANSEN BUILDING & JOINERY LTD,103981
North East Lincolnshire Council,http://statistics.data.gov.uk/id/local-authority/00FC),Adult Services,Adult Services,Hps-Disabled Fac. Grants,Cap Grants To O/Side Sources,Cap Grants To O/Side Sources,YJ101,10/25/2018,538914,5027.64,CAPITAL,PROBUILD,140504
North East Lincolnshire Council,http://statistics.data.gov.uk/id/local-authority/00FC),Adult Services,Adult Services,Hps-Disabled Fac. Grants,Cap Grants To O/Side Sources,Cap Grants To O/Side Sources,YJ101,10/9/2018,536627,270,CAPITAL,ENGIE SERVICES LTD,133267
North East Lincolnshire Council,http://statistics.data.gov.uk/id/local-authority/00FC),Adult Services,Adult Services,Hps-Disabled Fac. Grants,Cap Grants To O/Side Sources,Cap Grants To O/Side Sources,YJ101,10/23/2018,538856,1569,CAPITAL,OBAM LIFT SERVICES LTD,112666
North East Lincolnshire Council,http://statistics.data.gov.uk/id/local-authority/00FC),Adult Services,Adult Services,Hps-Disabled Fac. Grants,Cap Grants To O/Side Sources,Cap Grants To O/Side Sources,YJ101,10/18/2018,538368,8959.49,CAPITAL,E S RUDKIN LTD,100632
North East Lincolnshire Council,http://statistics.data.gov.uk/id/local-authority/00FC),Adult Services,Adult Services,Hps-Disabled Fac. Grants,Cap Grants To O/Side Sources,Cap Grants To O/Side Sources,YJ101,10/18/2018,538471,1456,CAPITAL,OBAM LIFT SERVICES LTD,112666
North East Lincolnshire Council,http://statistics.data.gov.uk/id/local-authority/00FC),Adult Services,Adult Services,Hps-Disabled Fac. Grants,Cap Grants To O/Side Sources,Cap Grants To O/Side Sources,YJ101,10/11/2018,537466,4920,CAPITAL,OBAM LIFT SERVICES LTD,112666
North East Lincolnshire Council,http://statistics.data.gov.uk/id/local-authority/00FC),Adult Services,Adult Services,Hps-Disabled Fac. Grants,Cap Grants To O/Side Sources,Cap Grants To O/Side Sources,YJ101,10/25/2018,539279,3950,CAPITAL,CLOSOMAT LTD,100849
North East Lincolnshire Council,http://statistics.data.gov.uk/id/local-authority/00FC),Adult Services,Adult Services,Hps-Disabled Fac. Grants,Cap Grants To O/Side Sources,Cap Grants To O/Side Sources,YJ101,10/23/2018,538519,8954.44,CAPITAL,E S RUDKIN LTD,100632
North East Lincolnshire Council,http://statistics.data.gov.uk/id/local-authority/00FC),Adult Services,Adult Services,Hps-Disabled Fac. Grants,Cap Grants To O/Side Sources,Cap Grants To O/Side Sources,YJ101,10/11/2018,537444,1640,CAPITAL,DOLPHIN MOBILITY EAST MIDLANDS LTD,101317
North East Lincolnshire Council,http://statistics.data.gov.uk/id/local-authority/00FC),Adult Services,Adult Services,Hps-Disabled Fac. Grants,Cap Grants To O/Side Sources,Cap Grants To O/Side Sources,YJ101,10/11/2018,537446,15000,CAPITAL,VIC HANSEN BUILDING & JOINERY LTD,103981
North East Lincolnshire Council,http://statistics.data.gov.uk/id/local-authority/00FC),Adult Services,Adult Services,Hps-Disabled Fac. Grants,Cap Grants To O/Side Sources,Cap Grants To O/Side Sources,YJ101,10/25/2018,539164,828.8,CAPITAL,PRISM MEDICAL UK LTD,119507
North East Lincolnshire Council,http://statistics.data.gov.uk/id/local-authority/00FC),Adult Services,Adult Services,Housing Assist Grants And Loan,Cap Grants To O/Side Sources,Cap Grants To O/Side Sources,YJ101,10/16/2018,536993,446.67,CAPITAL,AMAZING GLAZING,112748
North East Lincolnshire Council,http://statistics.data.gov.uk/id/local-authority/00FC),Adult Services,Adult Services,Housing Assist Grants And Loan,Cap Grants To O/Side Sources,Cap Grants To O/Side Sources,YJ101,10/30/2018,539385,1113,CAPITAL,EMPOWER EMPLOYABILITY MENTORING PROGRAMME,118831
North East Lincolnshire Council,http://statistics.data.gov.uk/id/local-authority/00FC),Children & Family Services,Ass Dir - Skills,Community Learning Services,Miscellaneous Expenses,Activities - Service Users,LL114,10/25/2018,539187,294.71,REVENUE,AMAZON,138632
North East Lincolnshire Council,http://statistics.data.gov.uk/id/local-authority/00FC),Children & Family Services,Ass Dir - Skills,Community Learning Services,Miscellaneous Expenses,Exam Fees,LL115,10/18/2018,537498,250,REVENUE,PASTURES DEVELOPMENT COMPANY,138098
North East Lincolnshire Council,http://statistics.data.gov.uk/id/local-authority/00FC),Children & Family Services,Ass Dir - Skills,Community Learning Services,Miscellaneous Expenses,Exam Fees,LL115,10/9/2018,536872,251,REVENUE,NOCN,123052
North East Lincolnshire Council,http://statistics.data.gov.uk/id/local-authority/00FC),Children & Family Services,Ass Dir - Skills,Community Learning Services,Miscellaneous Expenses,Exam Fees,LL115,10/9/2018,536873,286.5,REVENUE,NOCN,123052
North East Lincolnshire Council,http://statistics.data.gov.uk/id/local-authority/00FC),Children & Family Services,Ass Dir - Education,Access And Education Services,Contract Hire-Operating Leases,Vehicles - Contract Hire,JC101,10/11/2018,537266,1170,REVENUE,MINICABS CLEETHORPES (LINCS) LTD,102124
North East Lincolnshire Council,http://statistics.data.gov.uk/id/local-authority/00FC),Children & Family Services,Ass Dir - Education,Access And Education Services,Contract Hire-Operating Leases,Vehicles - Contract Hire,JC101,10/30/2018,539463,435,REVENUE,LINKS TAXIS,100546
North East Lincolnshire Council,http://statistics.data.gov.uk/id/local-authority/00FC),Children & Family Services,Ass Dir - Education,Access And Education Services,Contract Hire-Operating Leases,Vehicles - Contract Hire,JC101,10/30/2018,539443,900,REVENUE,LINKS TAXIS,100546
North East Lincolnshire Council,http://statistics.data.gov.uk/id/local-authority/00FC),Children & Family Services,Ass Dir - Education,Access And Education Services,Contract Hire-Operating Leases,Vehicles - Contract Hire,JC101,10/30/2018,539465,682.5,REVENUE,LINKS TAXIS,100546
North East Lincolnshire Council,http://statistics.data.gov.uk/id/local-authority/00FC),Children & Family Services,Ass Dir - Education,Access And Education Services,Contract Hire-Operating Leases,Vehicles - Contract Hire,JC101,10/30/2018,539454,617.5,REVENUE,LINKS TAXIS,100546
North East Lincolnshire Council,http://statistics.data.gov.uk/id/local-authority/00FC),Children & Family Services,Ass Dir - Education,Access And Education Services,Contract Hire-Operating Leases,Vehicles - Contract Hire,JC101,10/30/2018,539373,1140,REVENUE,AA RADIO CARS LTD,101222
North East Lincolnshire Council,http://statistics.data.gov.uk/id/local-authority/00FC),Children & Family Services,Ass Dir - Education,Access And Education Services,Contract Hire-Operating Leases,Vehicles - Contract Hire,JC101,10/30/2018,539455,640,REVENUE,LINKS TAXIS,100546
North East Lincolnshire Council,http://statistics.data.gov.uk/id/local-authority/00FC),Children & Family Services,Ass Dir - Education,Access And Education Services,Contract Hire-Operating Leases,Vehicles - Contract Hire,JC101,10/30/2018,539435,672,REVENUE,LINKS TAXIS,100546
North East Lincolnshire Council,http://statistics.data.gov.uk/id/local-authority/00FC),Children & Family Services,Ass Dir - Education,Access And Education Services,Contract Hire-Operating Leases,Vehicles - Contract Hire,JC101,10/30/2018,539434,310,REVENUE,LINKS TAXIS,100546
North East Lincolnshire Council,http://statistics.data.gov.uk/id/local-authority/00FC),Children & Family Services,Ass Dir - Education,Access And Education Services,Contract Hire-Operating Leases,Vehicles - Contract Hire,JC101,10/25/2018,538548,270,REVENUE,FON A CAR LTD,140517
North East Lincolnshire Council,http://statistics.data.gov.uk/id/local-authority/00FC),Children & Family Services,Ass Dir - Education,Access And Education Services,Contract Hire-Operating Leases,Vehicles - Contract Hire,JC101,10/30/2018,539375,855,REVENUE,FON A CAR LTD,140517
North East Lincolnshire Council,http://statistics.data.gov.uk/id/local-authority/00FC),Children & Family Services,Ass Dir - Education,Access And Education Services,Contract Hire-Operating Leases,Vehicles - Contract Hire,JC101,10/30/2018,539438,604,REVENUE,LINKS TAXIS,100546
North East Lincolnshire Council,http://statistics.data.gov.uk/id/local-authority/00FC),Children & Family Services,Ass Dir - Education,Access And Education Services,Contract Hire-Operating Leases,Vehicles - Contract Hire,JC101,10/30/2018,539393,654,REVENUE,LINKS TAXIS,100546
North East Lincolnshire Council,http://statistics.data.gov.uk/id/local-authority/00FC),Children & Family Services,Ass Dir - Education,Access And Education Services,Contract Hire-Operating Leases,Vehicles - Contract Hire,JC101,10/11/2018,537276,285,REVENUE,COXONS CARS LIMITED,100578
North East Lincolnshire Council,http://statistics.data.gov.uk/id/local-authority/00FC),Children & Family Services,Ass Dir - Education,Access And Education Services,Contract Hire-Operating Leases,Vehicles - Contract Hire,JC101,10/30/2018,539378,414,REVENUE,LINKS TAXIS,100546
North East Lincolnshire Council,http://statistics.data.gov.uk/id/local-authority/00FC),Children & Family Services,Ass Dir - Education,Access And Education Services,Contract Hire-Operating Leases,Vehicles - Contract Hire,JC101,10/30/2018,539450,570,REVENUE,LINKS TAXIS,100546
North East Lincolnshire Council,http://statistics.data.gov.uk/id/local-authority/00FC),Children & Family Services,Ass Dir - Education,Access And Education Services,Contract Hire-Operating Leases,Vehicles - Contract Hire,JC101,10/30/2018,539448,280,REVENUE,LINKS TAXIS,100546
North East Lincolnshire Council,http://statistics.data.gov.uk/id/local-authority/00FC),Children & Family Services,Ass Dir - Education,Access And Education Services,Contract Hire-Operating Leases,Vehicles - Contract Hire,JC101,10/30/2018,539428,651,REVENUE,LINKS TAXIS,100546
North East Lincolnshire Council,http://statistics.data.gov.uk/id/local-authority/00FC),Children & Family Services,Ass Dir - Education,Access And Education Services,Contract Hire-Operating Leases,Vehicles - Contract Hire,JC101,10/30/2018,539439,1134,REVENUE,LINKS TAXIS,100546
North East Lincolnshire Council,http://statistics.data.gov.uk/id/local-authority/00FC),Children & Family Services,Ass Dir - Education,Access And Education Services,Contract Hire-Operating Leases,Vehicles - Contract Hire,JC101,10/30/2018,539383,642.5,REVENUE,LINKS TAXIS,100546
North East Lincolnshire Council,http://statistics.data.gov.uk/id/local-authority/00FC),Children & Family Services,Ass Dir - Education,Access And Education Services,Contract Hire-Operating Leases,Vehicles - Contract Hire,JC101,10/30/2018,539471,272,REVENUE,COXONS CARS LIMITED,100578
North East Lincolnshire Council,http://statistics.data.gov.uk/id/local-authority/00FC),Children & Family Services,Ass Dir - Education,Access And Education Services,Contract Hire-Operating Leases,Vehicles - Contract Hire,JC101,10/30/2018,539343,1266.75,REVENUE,LINKS TAXIS,100546
North East Lincolnshire Council,http://statistics.data.gov.uk/id/local-authority/00FC),Children & Family Services,Ass Dir - Education,Access And Education Services,Contract Hire-Operating Leases,Vehicles - Contract Hire,JC101,10/23/2018,538619,368,REVENUE,COXONS CARS LIMITED,100578
North East Lincolnshire Council,http://statistics.data.gov.uk/id/local-authority/00FC),Children & Family Services,Ass Dir - Education,Access And Education Services,Contract Hire-Operating Leases,Vehicles - Contract Hire,JC101,10/11/2018,537569,1980,REVENUE,BEST FUTURES COMMUNITY INTEREST COMPANY,128600
North East Lincolnshire Council,http://statistics.data.gov.uk/id/local-authority/00FC),Children & Family Services,Ass Dir - Education,Access And Education Services,Contract Hire-Operating Leases,Vehicles - Contract Hire,JC101,10/11/2018,537437,1280,REVENUE,MINICABS CLEETHORPES (LINCS) LTD,102124
North East Lincolnshire Council,http://statistics.data.gov.uk/id/local-authority/00FC),Children & Family Services,Ass Dir - Education,Access And Education Services,Contract Hire-Operating Leases,Vehicles - Contract Hire,JC101,10/16/2018,537564,802,REVENUE,AA RADIO CARS LTD,101222
North East Lincolnshire Council,http://statistics.data.gov.uk/id/local-authority/00FC),Children & Family Services,Ass Dir - Education,Access And Education Services,Contract Hire-Operating Leases,Vehicles - Contract Hire,JC101,10/11/2018,537560,936,REVENUE,AA RADIO CARS LTD,101222
North East Lincolnshire Council,http://statistics.data.gov.uk/id/local-authority/00FC),Children & Family Services,Ass Dir - Education,Access And Education Services,Contract Hire-Operating Leases,Vehicles - Contract Hire,JC101,10/30/2018,539464,651,REVENUE,LINKS TAXIS,100546
North East Lincolnshire Council,http://statistics.data.gov.uk/id/local-authority/00FC),Children & Family Services,Ass Dir - Education,Access And Education Services,Private Contractors,Concessionary Fares,PH104,10/11/2018,537567,404.1,REVENUE,STAGECOACH SERVICES,101404
North East Lincolnshire Council,http://statistics.data.gov.uk/id/local-authority/00FC),Children & Family Services,Ass Dir - Education,Access And Education Services,Contract Hire-Operating Leases,Vehicles - Contract Hire,JC101,10/23/2018,538556,2356,REVENUE,AMVALE MEDICAL TRANSPORT LTD,130777
North East Lincolnshire Council,http://statistics.data.gov.uk/id/local-authority/00FC),Children & Family Services,Ass Dir - Education,Access And Education Services,Contract Hire-Operating Leases,Vehicles - Contract Hire,JC101,10/30/2018,539449,1178,REVENUE,LINKS TAXIS,100546
North East Lincolnshire Council,http://statistics.data.gov.uk/id/local-authority/00FC),Children & Family Services,Ass Dir - Education,Access And Education Services,Contract Hire-Operating Leases,Vehicles - Contract Hire,JC101,10/30/2018,539458,1178,REVENUE,LINKS TAXIS,100546
North East Lincolnshire Council,http://statistics.data.gov.uk/id/local-authority/00FC),Children & Family Services,Ass Dir - Education,Access And Education Services,Contract Hire-Operating Leases,Vehicles - Contract Hire,JC101,10/11/2018,537568,450,REVENUE,AMVALE LIMITED,101030
North East Lincolnshire Council,http://statistics.data.gov.uk/id/local-authority/00FC),Children & Family Services,Ass Dir - Education,Access And Education Services,Contract Hire-Operating Leases,Vehicles - Contract Hire,JC101,10/23/2018,538557,2970,REVENUE,AMVALE LIMITED,101030
North East Lincolnshire Council,http://statistics.data.gov.uk/id/local-authority/00FC),Children & Family Services,Ass Dir - Education,Access And Education Services,Contract Hire-Operating Leases,Vehicles - Contract Hire,JC101,10/23/2018,538558,3150,REVENUE,AMVALE LIMITED,101030
North East Lincolnshire Council,http://statistics.data.gov.uk/id/local-authority/00FC),Children & Family Services,Ass Dir - Education,Access And Education Services,Contract Hire-Operating Leases,Vehicles - Contract Hire,JC101,10/23/2018,538559,2970,REVENUE,AMVALE LIMITED,101030
North East Lincolnshire Council,http://statistics.data.gov.uk/id/local-authority/00FC),Children & Family Services,Ass Dir - Education,Access And Education Services,Contract Hire-Operating Leases,Vehicles - Contract Hire,JC101,10/11/2018,537435,3568.2,REVENUE,MILLMAN COACHES,100700
North East Lincolnshire Council,http://statistics.data.gov.uk/id/local-authority/00FC),Children & Family Services,Ass Dir - Education,Access And Education Services,Contract Hire-Operating Leases,Vehicles - Contract Hire,JC101,10/30/2018,539461,1116,REVENUE,LINKS TAXIS,100546
North East Lincolnshire Council,http://statistics.data.gov.uk/id/local-authority/00FC),Children & Family Services,Ass Dir - Education,Access And Education Services,Contract Hire-Operating Leases,Vehicles - Contract Hire,JC101,10/11/2018,537561,356.44,REVENUE,AA RADIO CARS LTD,101222
North East Lincolnshire Council,http://statistics.data.gov.uk/id/local-authority/00FC),Children & Family Services,Ass Dir - Education,Access And Education Services,Contract Hire-Operating Leases,Vehicles - Contract Hire,JC101,10/11/2018,537562,882,REVENUE,AA RADIO CARS LTD,101222
North East Lincolnshire Council,http://statistics.data.gov.uk/id/local-authority/00FC),Children & Family Services,Ass Dir - Education,Access And Education Services,Contract Hire-Operating Leases,Vehicles - Contract Hire,JC101,10/23/2018,538616,540,REVENUE,COXONS CARS LIMITED,100578
North East Lincolnshire Council,http://statistics.data.gov.uk/id/local-authority/00FC),Children & Family Services,Ass Dir - Education,Access And Education Services,Contract Hire-Operating Leases,Vehicles - Contract Hire,JC101,10/23/2018,538584,2790,REVENUE,AMVALE LIMITED,101030
North East Lincolnshire Council,http://statistics.data.gov.uk/id/local-authority/00FC),Children & Family Services,Ass Dir - Education,Access And Education Services,Private Contractors,Concessionary Fares,PH104,10/11/2018,537567,364.8,REVENUE,STAGECOACH SERVICES,101404
North East Lincolnshire Council,http://statistics.data.gov.uk/id/local-authority/00FC),Children & Family Services,Ass Dir - Education,Access And Education Services,Contract Hire-Operating Leases,Vehicles - Contract Hire,JC101,10/23/2018,538543,3080,REVENUE,AMVALE MEDICAL TRANSPORT LTD,130777
North East Lincolnshire Council,http://statistics.data.gov.uk/id/local-authority/00FC),Children & Family Services,Ass Dir - Education,Access And Education Services,Contract Hire-Operating Leases,Vehicles - Contract Hire,JC101,10/11/2018,537436,2160,REVENUE,THE BUS RUN,101522
North East Lincolnshire Council,http://statistics.data.gov.uk/id/local-authority/00FC),Children & Family Services,Ass Dir - Education,Access And Education Services,Contract Hire-Operating Leases,Vehicles - Contract Hire,JC101,10/11/2018,537429,2534.4,REVENUE,GRIMSBY MINIBUSES LTD,121524
North East Lincolnshire Council,http://statistics.data.gov.uk/id/local-authority/00FC),Children & Family Services,Ass Dir - Education,Access And Education Services,Contract Hire-Operating Leases,Vehicles - Contract Hire,JC101,10/11/2018,537430,2525.4,REVENUE,GRIMSBY MINIBUSES LTD,121524
North East Lincolnshire Council,http://statistics.data.gov.uk/id/local-authority/00FC),Children & Family Services,Ass Dir - Education,Access And Education Services,Contract Hire-Operating Leases,Vehicles - Contract Hire,JC101,10/11/2018,537488,864,REVENUE,COXONS CARS LIMITED,100578
North East Lincolnshire Council,http://statistics.data.gov.uk/id/local-authority/00FC),Children & Family Services,Ass Dir - Education,Access And Education Services,Contract Hire-Operating Leases,Vehicles - Contract Hire,JC101,10/30/2018,539430,594,REVENUE,LINKS TAXIS,100546
North East Lincolnshire Council,http://statistics.data.gov.uk/id/local-authority/00FC),Children & Family Services,Ass Dir - Education,Access And Education Services,Contract Hire-Operating Leases,Vehicles - Contract Hire,JC101,10/11/2018,537483,576,REVENUE,COXONS CARS LIMITED,100578
North East Lincolnshire Council,http://statistics.data.gov.uk/id/local-authority/00FC),Children & Family Services,Ass Dir - Education,Access And Education Services,Contract Hire-Operating Leases,Vehicles - Contract Hire,JC101,10/30/2018,539460,846,REVENUE,LINKS TAXIS,100546
North East Lincolnshire Council,http://statistics.data.gov.uk/id/local-authority/00FC),Children & Family Services,Ass Dir - Education,Access And Education Services,Contract Hire-Operating Leases,Vehicles - Contract Hire,JC101,10/30/2018,539432,720,REVENUE,LINKS TAXIS,100546
North East Lincolnshire Council,http://statistics.data.gov.uk/id/local-authority/00FC),Children & Family Services,Ass Dir - Education,Access And Education Services,Contract Hire-Operating Leases,Vehicles - Contract Hire,JC101,10/23/2018,538542,2232,REVENUE,AMVALE MEDICAL TRANSPORT LTD,130777
North East Lincolnshire Council,http://statistics.data.gov.uk/id/local-authority/00FC),Children & Family Services,Ass Dir - Education,Access And Education Services,Contract Hire-Operating Leases,Vehicles - Contract Hire,JC101,10/11/2018,537550,1800,REVENUE,HANSONS AIRPORT EXPRESS,111879
North East Lincolnshire Council,http://statistics.data.gov.uk/id/local-authority/00FC),Children & Family Services,Ass Dir - Education,Access And Education Services,Contract Hire-Operating Leases,Vehicles - Contract Hire,JC101,10/23/2018,538546,820,REVENUE,AMVALE LIMITED,101030
North East Lincolnshire Council,http://statistics.data.gov.uk/id/local-authority/00FC),Children & Family Services,Ass Dir - Education,Access And Education Services,Contract Hire-Operating Leases,Vehicles - Contract Hire,JC101,10/23/2018,538547,820,REVENUE,AMVALE LIMITED,101030
North East Lincolnshire Council,http://statistics.data.gov.uk/id/local-authority/00FC),Children & Family Services,Ass Dir - Education,Access And Education Services,Contract Hire-Operating Leases,Vehicles - Contract Hire,JC101,10/30/2018,539376,891,REVENUE,REVELLS TAXIS (ED/SOC SERV),100559
North East Lincolnshire Council,http://statistics.data.gov.uk/id/local-authority/00FC),Children & Family Services,Ass Dir - Education,Access And Education Services,Contract Hire-Operating Leases,Vehicles - Contract Hire,JC101,10/11/2018,537268,900,REVENUE,MINICABS CLEETHORPES (LINCS) LTD,102124
North East Lincolnshire Council,http://statistics.data.gov.uk/id/local-authority/00FC),Children & Family Services,Ass Dir - Education,Access And Education Services,Contract Hire-Operating Leases,Vehicles - Contract Hire,JC101,10/30/2018,539437,900,REVENUE,LINKS TAXIS,100546
North East Lincolnshire Council,http://statistics.data.gov.uk/id/local-authority/00FC),Children & Family Services,Ass Dir - Education,Access And Education Services,Contract Hire-Operating Leases,Vehicles - Contract Hire,JC101,10/30/2018,539453,1490,REVENUE,LINKS TAXIS,100546
North East Lincolnshire Council,http://statistics.data.gov.uk/id/local-authority/00FC),Children & Family Services,Ass Dir - Education,Access And Education Services,Contract Hire-Operating Leases,Vehicles - Contract Hire,JC101,10/30/2018,539433,1775,REVENUE,LINKS TAXIS,100546
North East Lincolnshire Council,http://statistics.data.gov.uk/id/local-authority/00FC),Children & Family Services,Ass Dir - Education,Access And Education Services,Contract Hire-Operating Leases,Vehicles - Contract Hire,JC101,10/30/2018,539457,577.5,REVENUE,LINKS TAXIS,100546
North East Lincolnshire Council,http://statistics.data.gov.uk/id/local-authority/00FC),Children & Family Services,Ass Dir - Education,Access And Education Services,Contract Hire-Operating Leases,Vehicles - Contract Hire,JC101,10/23/2018,538544,2160,REVENUE,AMVALE MEDICAL TRANSPORT LTD,130777
North East Lincolnshire Council,http://statistics.data.gov.uk/id/local-authority/00FC),Children & Family Services,Ass Dir - Education,Access And Education Services,Contract Hire-Operating Leases,Vehicles - Contract Hire,JC101,10/23/2018,538553,3906,REVENUE,AMVALE MEDICAL TRANSPORT LTD,130777
North East Lincolnshire Council,http://statistics.data.gov.uk/id/local-authority/00FC),Children & Family Services,Ass Dir - Education,Access And Education Services,Contract Hire-Operating Leases,Vehicles - Contract Hire,JC101,10/11/2018,537559,954,REVENUE,AA RADIO CARS LTD,101222
North East Lincolnshire Council,http://statistics.data.gov.uk/id/local-authority/00FC),Children & Family Services,Ass Dir - Education,Access And Education Services,Contract Hire-Operating Leases,Vehicles - Contract Hire,JC101,10/30/2018,539459,1530,REVENUE,LINKS TAXIS,100546
North East Lincolnshire Council,http://statistics.data.gov.uk/id/local-authority/00FC),Children & Family Services,Ass Dir - Education,Access And Education Services,Contract Hire-Operating Leases,Vehicles - Contract Hire,JC101,10/23/2018,538554,3870,REVENUE,AMVALE MEDICAL TRANSPORT LTD,130777
North East Lincolnshire Council,http://statistics.data.gov.uk/id/local-authority/00FC),Children & Family Services,Ass Dir - Education,Access And Education Services,Contract Hire-Operating Leases,Vehicles - Contract Hire,JC101,10/23/2018,538552,2142,REVENUE,AMVALE MEDICAL TRANSPORT LTD,130777
North East Lincolnshire Council,http://statistics.data.gov.uk/id/local-authority/00FC),Children & Family Services,Ass Dir - Education,Access And Education Services,Contract Hire-Operating Leases,Vehicles - Contract Hire,JC101,10/11/2018,537486,384,REVENUE,COXONS CARS LIMITED,100578
North East Lincolnshire Council,http://statistics.data.gov.uk/id/local-authority/00FC),Children & Family Services,Ass Dir - Education,Access And Education Services,Contract Hire-Operating Leases,Vehicles - Contract Hire,JC101,10/11/2018,537487,576,REVENUE,COXONS CARS LIMITED,100578
North East Lincolnshire Council,http://statistics.data.gov.uk/id/local-authority/00FC),Children & Family Services,Ass Dir - Education,Access And Education Services,Contract Hire-Operating Leases,Vehicles - Contract Hire,JC101,10/23/2018,538620,495,REVENUE,COXONS CARS LIMITED,100578
North East Lincolnshire Council,http://statistics.data.gov.uk/id/local-authority/00FC),Children & Family Services,Ass Dir - Education,Access And Education Services,Contract Hire-Operating Leases,Vehicles - Contract Hire,JC101,10/11/2018,537556,841.5,REVENUE,MINICABS CLEETHORPES (LINCS) LTD,102124
North East Lincolnshire Council,http://statistics.data.gov.uk/id/local-authority/00FC),Children & Family Services,Ass Dir - Education,Access And Education Services,Contract Hire-Operating Leases,Vehicles - Contract Hire,JC101,10/30/2018,539431,1715,REVENUE,LINKS TAXIS,100546
North East Lincolnshire Council,http://statistics.data.gov.uk/id/local-authority/00FC),Children & Family Services,Ass Dir - Education,Access And Education Services,Contract Hire-Operating Leases,Vehicles - Contract Hire,JC101,10/30/2018,539456,720,REVENUE,LINKS TAXIS,100546
North East Lincolnshire Council,http://statistics.data.gov.uk/id/local-authority/00FC),Children & Family Services,Ass Dir - Education,Access And Education Services,Contract Hire-Operating Leases,Vehicles - Contract Hire,JC101,10/30/2018,539382,1391.5,REVENUE,LINKS TAXIS,100546
North East Lincolnshire Council,http://statistics.data.gov.uk/id/local-authority/00FC),Children & Family Services,Ass Dir - Education,Access And Education Services,Contract Hire-Operating Leases,Vehicles - Contract Hire,JC101,10/30/2018,539436,775,REVENUE,LINKS TAXIS,100546
North East Lincolnshire Council,http://statistics.data.gov.uk/id/local-authority/00FC),Children & Family Services,Ass Dir - Education,Access And Education Services,Contract Hire-Operating Leases,Vehicles - Contract Hire,JC101,10/16/2018,537514,1170,REVENUE,LINKS TAXIS,100546
North East Lincolnshire Council,http://statistics.data.gov.uk/id/local-authority/00FC),Children & Family Services,Ass Dir - Education,Access And Education Services,Contract Hire-Operating Leases,Vehicles - Contract Hire,JC101,10/30/2018,539386,660,REVENUE,LINKS TAXIS,100546
North East Lincolnshire Council,http://statistics.data.gov.uk/id/local-authority/00FC),Children & Family Services,Ass Dir - Education,Access And Education Services,Contract Hire-Operating Leases,Vehicles - Contract Hire,JC101,10/30/2018,539446,1615,REVENUE,LINKS TAXIS,100546
North East Lincolnshire Council,http://statistics.data.gov.uk/id/local-authority/00FC),Children & Family Services,Ass Dir - Education,Access And Education Services,Contract Hire-Operating Leases,Vehicles - Contract Hire,JC101,10/11/2018,537570,600,REVENUE,REDACTED PERSONAL INFORMATION,REDACTED PERSONAL INFORMATION
North East Lincolnshire Council,http://statistics.data.gov.uk/id/local-authority/00FC),Children & Family Services,Ass Dir - Education,Access And Education Services,Contract Hire-Operating Leases,Vehicles - Contract Hire,JC101,10/30/2018,539441,2014.4,REVENUE,LINKS TAXIS,100546
North East Lincolnshire Council,http://statistics.data.gov.uk/id/local-authority/00FC),Children & Family Services,Ass Dir - Education,Access And Education Services,Contract Hire-Operating Leases,Vehicles - Contract Hire,JC101,10/11/2018,537270,810,REVENUE,MINICABS CLEETHORPES (LINCS) LTD,102124
North East Lincolnshire Council,http://statistics.data.gov.uk/id/local-authority/00FC),Children & Family Services,Ass Dir - Education,Access And Education Services,Contract Hire-Operating Leases,Vehicles - Contract Hire,JC101,10/30/2018,539440,1376,REVENUE,LINKS TAXIS,100546
North East Lincolnshire Council,http://statistics.data.gov.uk/id/local-authority/00FC),Children & Family Services,Ass Dir - Education,Access And Education Services,Contract Hire-Operating Leases,Vehicles - Contract Hire,JC101,10/30/2018,539442,735,REVENUE,LINKS TAXIS,100546
North East Lincolnshire Council,http://statistics.data.gov.uk/id/local-authority/00FC),Children & Family Services,Ass Dir - Education,Access And Education Services,Contract Hire-Operating Leases,Vehicles - Contract Hire,JC101,10/11/2018,537482,576,REVENUE,COXONS CARS LIMITED,100578
North East Lincolnshire Council,http://statistics.data.gov.uk/id/local-authority/00FC),Children & Family Services,Ass Dir - Education,Access And Education Services,Contract Hire-Operating Leases,Vehicles - Contract Hire,JC101,10/11/2018,537489,684,REVENUE,COXONS CARS LIMITED,100578
North East Lincolnshire Council,http://statistics.data.gov.uk/id/local-authority/00FC),Children & Family Services,Ass Dir - Education,Access And Education Services,Contract Hire-Operating Leases,Vehicles - Contract Hire,JC101,10/30/2018,539445,1254.9,REVENUE,LINKS TAXIS,100546
North East Lincolnshire Council,http://statistics.data.gov.uk/id/local-authority/00FC),Children & Family Services,Ass Dir - Education,Access And Education Services,Contract Hire-Operating Leases,Vehicles - Contract Hire,JC101,10/11/2018,537555,1800,REVENUE,HANSONS AIRPORT EXPRESS,111879
North East Lincolnshire Council,http://statistics.data.gov.uk/id/local-authority/00FC),Children & Family Services,Ass Dir - Education,Access And Education Services,Contract Hire-Operating Leases,Vehicles - Contract Hire,JC101,10/11/2018,537271,900,REVENUE,MINICABS CLEETHORPES (LINCS) LTD,102124
North East Lincolnshire Council,http://statistics.data.gov.uk/id/local-authority/00FC),Children & Family Services,Ass Dir - Education,Access And Education Services,Contract Hire-Operating Leases,Vehicles - Contract Hire,JC101,10/11/2018,537269,810,REVENUE,MINICABS CLEETHORPES (LINCS) LTD,102124
North East Lincolnshire Council,http://statistics.data.gov.uk/id/local-authority/00FC),Children & Family Services,Ass Dir - Education,Access And Education Services,Contract Hire-Operating Leases,Vehicles - Contract Hire,JC101,10/11/2018,537484,648,REVENUE,COXONS CARS LIMITED,100578
North East Lincolnshire Council,http://statistics.data.gov.uk/id/local-authority/00FC),Children & Family Services,Ass Dir - Education,Access And Education Services,Contract Hire-Operating Leases,Vehicles - Contract Hire,JC101,10/23/2018,538545,820,REVENUE,AMVALE LIMITED,101030
North East Lincolnshire Council,http://statistics.data.gov.uk/id/local-authority/00FC),Children & Family Services,Ass Dir - Education,Access And Education Services,Contract Hire-Operating Leases,Vehicles - Contract Hire,JC101,10/30/2018,539462,1422.5,REVENUE,LINKS TAXIS,100546
North East Lincolnshire Council,http://statistics.data.gov.uk/id/local-authority/00FC),Children & Family Services,Ass Dir - Education,Access And Education Services,Contract Hire-Operating Leases,Vehicles - Contract Hire,JC101,10/11/2018,537551,780,REVENUE,DRS TAXI SERVICE,141083
North East Lincolnshire Council,http://statistics.data.gov.uk/id/local-authority/00FC),Children & Family Services,Ass Dir - Education,Access And Education Services,Contract Hire-Operating Leases,Vehicles - Contract Hire,JC101,10/16/2018,537617,617,REVENUE,AA RADIO CARS LTD,101222
North East Lincolnshire Council,http://statistics.data.gov.uk/id/local-authority/00FC),Children & Family Services,Ass Dir - Education,Access And Education Services,Contract Hire-Operating Leases,Vehicles - Contract Hire,JC101,10/30/2018,539448,280,REVENUE,LINKS TAXIS,100546
North East Lincolnshire Council,http://statistics.data.gov.uk/id/local-authority/00FC),Children & Family Services,Ass Dir - Education,Access And Education Services,Contract Hire-Operating Leases,Vehicles - Contract Hire,JC101,10/11/2018,537264,1110,REVENUE,MINICABS CLEETHORPES (LINCS) LTD,102124
North East Lincolnshire Council,http://statistics.data.gov.uk/id/local-authority/00FC),Children & Family Services,Ass Dir - Education,Access And Education Services,Contract Hire-Operating Leases,Vehicles - Contract Hire,JC101,10/23/2018,538555,2322,REVENUE,AMVALE MEDICAL TRANSPORT LTD,130777
North East Lincolnshire Council,http://statistics.data.gov.uk/id/local-authority/00FC),Children & Family Services,Ass Dir - Education,Access And Education Services,Contract Hire-Operating Leases,Vehicles - Contract Hire,JC101,10/11/2018,537274,385,REVENUE,MINICABS CLEETHORPES (LINCS) LTD,102124
North East Lincolnshire Council,http://statistics.data.gov.uk/id/local-authority/00FC),Children & Family Services,Ass Dir - Education,Access And Education Services,Contract Hire-Operating Leases,Vehicles - Contract Hire,JC101,10/30/2018,539452,1172.5,REVENUE,LINKS TAXIS,100546
North East Lincolnshire Council,http://statistics.data.gov.uk/id/local-authority/00FC),Children & Family Services,Ass Dir - Education,Access And Education Services,Contract Hire-Operating Leases,Vehicles - Contract Hire,JC101,10/11/2018,537275,440,REVENUE,MINICABS CLEETHORPES (LINCS) LTD,102124
North East Lincolnshire Council,http://statistics.data.gov.uk/id/local-authority/00FC),Children & Family Services,Ass Dir - Education,Access And Education Services,Contract Hire-Operating Leases,Vehicles - Contract Hire,JC101,10/23/2018,538618,1023,REVENUE,COXONS CARS LIMITED,100578
North East Lincolnshire Council,http://statistics.data.gov.uk/id/local-authority/00FC),Children & Family Services,Ass Dir - Education,Access And Education Services,Contract Hire-Operating Leases,Vehicles - Contract Hire,JC101,10/23/2018,538617,624,REVENUE,COXONS CARS LIMITED,100578
North East Lincolnshire Council,http://statistics.data.gov.uk/id/local-authority/00FC),Children & Family Services,Ass Dir - Education,Access And Education Services,Contract Hire-Operating Leases,Vehicles - Contract Hire,JC101,10/11/2018,537485,444,REVENUE,COXONS CARS LIMITED,100578
North East Lincolnshire Council,http://statistics.data.gov.uk/id/local-authority/00FC),Children & Family Services,Ass Dir - Education,Access And Education Services,Contract Hire-Operating Leases,Vehicles - Contract Hire,JC101,10/11/2018,537563,450,REVENUE,AA RADIO CARS LTD,101222
North East Lincolnshire Council,http://statistics.data.gov.uk/id/local-authority/00FC),Children & Family Services,Ass Dir - Education,Access And Education Services,Contract Hire-Operating Leases,Vehicles - Contract Hire,JC101,10/11/2018,537558,516,REVENUE,AA RADIO CARS LTD,101222
North East Lincolnshire Council,http://statistics.data.gov.uk/id/local-authority/00FC),Children & Family Services,Ass Dir - Education,Access And Education Services,Contract Hire-Operating Leases,Vehicles - Contract Hire,JC101,10/11/2018,537265,1250,REVENUE,MINICABS CLEETHORPES (LINCS) LTD,102124
North East Lincolnshire Council,http://statistics.data.gov.uk/id/local-authority/00FC),Children & Family Services,Ass Dir - Education,Access And Education Services,Contract Hire-Operating Leases,Vehicles - Contract Hire,JC101,10/30/2018,539384,880,REVENUE,LINKS TAXIS,100546
North East Lincolnshire Council,http://statistics.data.gov.uk/id/local-authority/00FC),Children & Family Services,Ass Dir - Education,Access And Education Services,Contract Hire-Operating Leases,Vehicles - Contract Hire,JC101,10/30/2018,539451,450,REVENUE,LINKS TAXIS,100546
North East Lincolnshire Council,http://statistics.data.gov.uk/id/local-authority/00FC),Children & Family Services,Ass Dir - Education,Access And Education Services,Contract Hire-Operating Leases,Vehicles - Contract Hire,JC101,10/11/2018,537565,504,REVENUE,AA RADIO CARS LTD,101222
North East Lincolnshire Council,http://statistics.data.gov.uk/id/local-authority/00FC),Children & Family Services,Ass Dir - Education,Access And Education Services,Contract Hire-Operating Leases,Vehicles - Contract Hire,JC101,10/30/2018,539447,1050,REVENUE,LINKS TAXIS,100546
North East Lincolnshire Council,http://statistics.data.gov.uk/id/local-authority/00FC),Children & Family Services,Ass Dir - Education,Access And Education Services,Contract Hire-Operating Leases,Vehicles - Contract Hire,JC101,10/11/2018,537431,2186.1,REVENUE,GRIMSBY MINIBUSES LTD,121524
North East Lincolnshire Council,http://statistics.data.gov.uk/id/local-authority/00FC),Children & Family Services,Ass Dir - Education,Access And Education Services,Contract Hire-Operating Leases,Vehicles - Contract Hire,JC101,10/30/2018,539444,1280,REVENUE,LINKS TAXIS,100546
North East Lincolnshire Council,http://statistics.data.gov.uk/id/local-authority/00FC),Children & Family Services,Ass Dir - Education,Access And Education Services,Contract Hire-Operating Leases,Vehicles - Contract Hire,JC101,10/30/2018,539429,1231.2,REVENUE,LINKS TAXIS,100546
North East Lincolnshire Council,http://statistics.data.gov.uk/id/local-authority/00FC),Children & Family Services,Ass Dir - Education,Access And Education Services,Contract Hire-Operating Leases,Vehicles - Contract Hire,JC101,10/11/2018,537552,745,REVENUE,DRS TAXI SERVICE,141083
North East Lincolnshire Council,http://statistics.data.gov.uk/id/local-authority/00FC),Children & Family Services,Ass Dir - Education,Access And Education Services,Contract Hire-Operating Leases,Vehicles - Contract Hire,JC101,10/16/2018,537546,2142.5,REVENUE,REDACTED PERSONAL INFORMATION,REDACTED PERSONAL INFORMATION
North East Lincolnshire Council,http://statistics.data.gov.uk/id/local-authority/00FC),Children & Family Services,Ass Dir - Education,Access And Education Services,Contract Hire-Operating Leases,Vehicles - Contract Hire,JC101,10/11/2018,537267,1014,REVENUE,MINICABS CLEETHORPES (LINCS) LTD,102124
North East Lincolnshire Council,http://statistics.data.gov.uk/id/local-authority/00FC),Children & Family Services,Ass Dir - Education,Access And Education Services,Contract Hire-Operating Leases,Vehicles - Contract Hire,JC101,10/23/2018,538540,2720,REVENUE,AMVALE MEDICAL TRANSPORT LTD,130777
North East Lincolnshire Council,http://statistics.data.gov.uk/id/local-authority/00FC),Children & Family Services,Ass Dir - Education,Access And Education Services,Contract Hire-Operating Leases,Vehicles - Contract Hire,JC101,10/11/2018,537272,1360,REVENUE,MINICABS CLEETHORPES (LINCS) LTD,102124
North East Lincolnshire Council,http://statistics.data.gov.uk/id/local-authority/00FC),Children & Family Services,Ass Dir - Education,Access And Education Services,Contract Hire-Operating Leases,Vehicles - Contract Hire,JC101,10/23/2018,538539,5400,REVENUE,AMVALE MEDICAL TRANSPORT LTD,130777
North East Lincolnshire Council,http://statistics.data.gov.uk/id/local-authority/00FC),Children & Family Services,Ass Dir - Education,Access And Education Services,Contract Hire-Operating Leases,Vehicles - Contract Hire,JC101,10/11/2018,537553,435,REVENUE,COUNTRY CABS,101999
North East Lincolnshire Council,http://statistics.data.gov.uk/id/local-authority/00FC),Children & Family Services,Ass Dir - Education,Access And Education Services,Contract Hire-Operating Leases,Vehicles - Contract Hire,JC101,10/23/2018,538551,1900,REVENUE,REDACTED PERSONAL INFORMATION,REDACTED PERSONAL INFORMATION
North East Lincolnshire Council,http://statistics.data.gov.uk/id/local-authority/00FC),Children & Family Services,Ass Dir - Education,Access And Education Services,Contract Hire-Operating Leases,Vehicles - Contract Hire,JC101,10/11/2018,537273,1500,REVENUE,MINICABS CLEETHORPES (LINCS) LTD,102124
North East Lincolnshire Council,http://statistics.data.gov.uk/id/local-authority/00FC),Children & Family Services,Ass Dir - Education,Access And Education Services,Contract Hire-Operating Leases,Vehicles - Contract Hire,JC101,10/11/2018,537434,3365,REVENUE,WATAXIS,141297
North East Lincolnshire Council,http://statistics.data.gov.uk/id/local-authority/00FC),Children & Family Services,Ass Dir - Education,Access And Education Services,Contract Hire-Operating Leases,Vehicles - Contract Hire,JC101,10/11/2018,537566,940,REVENUE,AA RADIO CARS LTD,101222
North East Lincolnshire Council,http://statistics.data.gov.uk/id/local-authority/00FC),Children & Family Services,Ass Dir - Education,Access And Education Services,Contract Hire-Operating Leases,Vehicles - Contract Hire,JC101,10/11/2018,537505,660,REVENUE,AIRPORT TRAVEL,102393
North East Lincolnshire Council,http://statistics.data.gov.uk/id/local-authority/00FC),Children & Family Services,Ass Dir - Education,Access And Education Services,Contract Hire-Operating Leases,Vehicles - Contract Hire,JC101,10/31/2018,540022,704,REVENUE,LINKS TAXIS,100546
North East Lincolnshire Council,http://statistics.data.gov.uk/id/local-authority/00FC),Children & Family Services,Ass Dir - Education,Access And Education Services,Contributions To Provisions,Contributions - Other,LK103,10/18/2018,631881,310,REVENUE,REDACTED PERSONAL INFORMATION,REDACTED PERSONAL INFORMATION
North East Lincolnshire Council,http://statistics.data.gov.uk/id/local-authority/00FC),Children & Family Services,Ass Dir - Education,Access And Education Services,Direct Employee Expenses,Agency Supply Teachers,EA104,10/30/2018,539387,600,REVENUE,ADRIAN CLARKE,132706
North East Lincolnshire Council,http://statistics.data.gov.uk/id/local-authority/00FC),Children & Family Services,Ass Dir - Education,Access And Education Services,Direct Employee Expenses,Agency Supply Teachers,EA104,10/25/2018,538926,300,REVENUE,JOSHUA ENGLAND,122088
North East Lincolnshire Council,http://statistics.data.gov.uk/id/local-authority/00FC),Children & Family Services,Ass Dir - Education,Access And Education Services,Direct Employee Expenses,Agency Supply Teachers,EA104,10/25/2018,538925,262.5,REVENUE,JOSHUA ENGLAND,122088
North East Lincolnshire Council,http://statistics.data.gov.uk/id/local-authority/00FC),Children & Family Services,Ass Dir - Education,Access And Education Services,Direct Employee Expenses,Agency Supply Teachers,EA104,10/16/2018,536994,375,REVENUE,EMMA MIDDLETON,105103
North East Lincolnshire Council,http://statistics.data.gov.uk/id/local-authority/00FC),Children & Family Services,Ass Dir - Education,Access And Education Services,Direct Employee Expenses,Agency Supply Teachers,EA104,10/25/2018,539161,1350,REVENUE,MUSIC LINCS LTD,100944
North East Lincolnshire Council,http://statistics.data.gov.uk/id/local-authority/00FC),Children & Family Services,Ass Dir - Education,Access And Education Services,Direct Employee Expenses,Agency Supply Teachers,EA104,10/25/2018,539163,285.75,REVENUE,MUSIC LINCS LTD,100944
North East Lincolnshire Council,http://statistics.data.gov.uk/id/local-authority/00FC),Children & Family Services,Ass Dir - Education,Access And Education Services,Direct Employee Expenses,Agency Supply Teachers,EA104,10/25/2018,539286,540,REVENUE,KEITH WESTON,102280
North East Lincolnshire Council,http://statistics.data.gov.uk/id/local-authority/00FC),Children & Family Services,Ass Dir - Education,Access And Education Services,Direct Employee Expenses,Agency Supply Teachers,EA104,10/25/2018,539176,800,REVENUE,KIM GOODEY,134788
North East Lincolnshire Council,http://statistics.data.gov.uk/id/local-authority/00FC),Children & Family Services,Ass Dir - Education,Access And Education Services,Direct Employee Expenses,Agency Supply Teachers,EA104,10/11/2018,537058,1175,REVENUE,ZOE EVERATT,106842
North East Lincolnshire Council,http://statistics.data.gov.uk/id/local-authority/00FC),Children & Family Services,Ass Dir - Education,Access And Education Services,Direct Employee Expenses,Agency Supply Teachers,EA104,10/9/2018,536856,4150,REVENUE,JACQUELINE KIRWIN,107311
North East Lincolnshire Council,http://statistics.data.gov.uk/id/local-authority/00FC),Children & Family Services,Ass Dir - Education,Access And Education Services,Direct Employee Expenses,Agency Supply Teachers,EA104,10/11/2018,537576,950,REVENUE,SAMUEL CARLTON,139890
North East Lincolnshire Council,http://statistics.data.gov.uk/id/local-authority/00FC),Children & Family Services,Ass Dir - Education,Access And Education Services,Direct Employee Expenses,Agency Supply Teachers,EA104,10/25/2018,539011,500,REVENUE,MIKE SELLARS,102161
North East Lincolnshire Council,http://statistics.data.gov.uk/id/local-authority/00FC),Children & Family Services,Ass Dir - Education,Access And Education Services,Direct Employee Expenses,Agency Supply Teachers,EA104,10/25/2018,539158,4400,REVENUE,MUSIC LINCS LTD,100944
North East Lincolnshire Council,http://statistics.data.gov.uk/id/local-authority/00FC),Children & Family Services,Ass Dir - Education,Access And Education Services,Direct Employee Expenses,Agency Supply Teachers,EA104,10/30/2018,539412,2978,REVENUE,FRANCESCA WHITE,102116
North East Lincolnshire Council,http://statistics.data.gov.uk/id/local-authority/00FC),Children & Family Services,Ass Dir - Education,Access And Education Services,Rents,Rent,GC101,10/23/2018,538027,1250,REVENUE,JOHN WHITGIFT ACADEMY,106898
North East Lincolnshire Council,http://statistics.data.gov.uk/id/local-authority/00FC),Children & Family Services,Ass Dir - Education,Access And Education Services,Rents,Rent,GC101,10/25/2018,539159,460,REVENUE,PCC OF ST AUGUSTINE'S PARISH,110980
North East Lincolnshire Council,http://statistics.data.gov.uk/id/local-authority/00FC),Children & Family Services,Ass Dir - Education,Access And Education Services,Other Agencies,Additional Cost,PJ114,10/29/2018,635115,400,REVENUE,REDACTED PERSONAL INFORMATION,REDACTED PERSONAL INFORMATION
North East Lincolnshire Council,http://statistics.data.gov.uk/id/local-authority/00FC),Children & Family Services,Ass Dir - Education,Access And Education Services,Other Agencies,Tuition,PJ112,10/22/2018,632700,250,REVENUE,REDACTED PERSONAL INFORMATION,REDACTED PERSONAL INFORMATION
North East Lincolnshire Council,http://statistics.data.gov.uk/id/local-authority/00FC),Children & Family Services,Ass Dir - Education,Access And Education Services,Other Agencies,Tuition,PJ112,10/15/2018,630800,250,REVENUE,REDACTED PERSONAL INFORMATION,REDACTED PERSONAL INFORMATION
North East Lincolnshire Council,http://statistics.data.gov.uk/id/local-authority/00FC),Children & Family Services,Ass Dir - Education,Access And Education Services,Other Agencies,Tuition,PJ112,10/4/2018,536463,732,REVENUE,KIP MCGRATH TUITION SCUNTHORPE LP,140787
North East Lincolnshire Council,http://statistics.data.gov.uk/id/local-authority/00FC),Children & Family Services,Ass Dir - Education,Access And Education Services,Other Agencies,Tuition,PJ112,10/25/2018,538375,426,REVENUE,KIP MCGRATH TUITION SCUNTHORPE LP,140787
North East Lincolnshire Council,http://statistics.data.gov.uk/id/local-authority/00FC),Children & Family Services,Ass Dir - Education,Access And Education Services,Other Agencies,Tuition,PJ112,10/23/2018,538356,370.83,REVENUE,GRADELY SPORTS AWARDS,100532
North East Lincolnshire Council,http://statistics.data.gov.uk/id/local-authority/00FC),Children & Family Services,Ass Dir - Education,Access And Education Services,Other Agencies,Tuition,PJ112,10/18/2018,538405,1182,REVENUE,PARK RETAIL LTD - LOVE2REWARD,111869
North East Lincolnshire Council,http://statistics.data.gov.uk/id/local-authority/00FC),Children & Family Services,Ass Dir - Education,Access And Education Services,Other Agencies,Tuition,PJ112,10/18/2018,538405,295.5,REVENUE,PARK RETAIL LTD - LOVE2REWARD,111869
North East Lincolnshire Council,http://statistics.data.gov.uk/id/local-authority/00FC),Children & Family Services,Ass Dir - Education,Sen/Inclusion,Other Local Authorities,Third Pp - Other Local Auth,PC101,10/2/2018,536257,2968,REVENUE,REDACTED PERSONAL INFORMATION,REDACTED PERSONAL INFORMATION
North East Lincolnshire Council,http://statistics.data.gov.uk/id/local-authority/00FC),Children & Family Services,Ass Dir - Education,Sen/Inclusion,Other Local Authorities,Third Pp - Other Local Auth,PC101,10/2/2018,536259,2968,REVENUE,REDACTED PERSONAL INFORMATION,REDACTED PERSONAL INFORMATION
North East Lincolnshire Council,http://statistics.data.gov.uk/id/local-authority/00FC),Children & Family Services,Ass Dir - Education,Sen/Inclusion,Other Local Authorities,Third Pp - Other Local Auth,PC101,10/2/2018,536260,2500,REVENUE,REDACTED PERSONAL INFORMATION,REDACTED PERSONAL INFORMATION
North East Lincolnshire Council,http://statistics.data.gov.uk/id/local-authority/00FC),Children & Family Services,Ass Dir - Education,Sen/Inclusion,Other Local Authorities,Third Pp - Other Local Auth,PC101,10/2/2018,536258,2968,REVENUE,REDACTED PERSONAL INFORMATION,REDACTED PERSONAL INFORMATION
North East Lincolnshire Council,http://statistics.data.gov.uk/id/local-authority/00FC),Children & Family Services,Ass Dir - Education,Sen/Inclusion,Other Local Authorities,Third Pp - Other Local Auth,PC101,10/2/2018,536261,2500,REVENUE,REDACTED PERSONAL INFORMATION,REDACTED PERSONAL INFORMATION
North East Lincolnshire Council,http://statistics.data.gov.uk/id/local-authority/00FC),Children & Family Services,Ass Dir - Education,Sen/Inclusion,Other Local Authorities,Third Pp - Other Local Auth,PC101,10/11/2018,536940,19264.29,REVENUE,REDACTED PERSONAL INFORMATION,REDACTED PERSONAL INFORMATION
North East Lincolnshire Council,http://statistics.data.gov.uk/id/local-authority/00FC),Children & Family Services,Ass Dir - Education,Sen/Inclusion,Other Local Authorities,Third Pp - Other Local Auth,PC101,10/2/2018,536252,9739.07,REVENUE,REDACTED PERSONAL INFORMATION,REDACTED PERSONAL INFORMATION
North East Lincolnshire Council,http://statistics.data.gov.uk/id/local-authority/00FC),Children & Family Services,Ass Dir - Education,Sen/Inclusion,Other Local Authorities,Third Pp - Other Local Auth,PC101,10/11/2018,536937,8321.25,REVENUE,REDACTED PERSONAL INFORMATION,REDACTED PERSONAL INFORMATION
North East Lincolnshire Council,http://statistics.data.gov.uk/id/local-authority/00FC),Children & Family Services,Ass Dir - Education,Sen/Inclusion,Other Local Authorities,Third Pp - Other Local Auth,PC101,10/11/2018,536942,11881.56,REVENUE,REDACTED PERSONAL INFORMATION,REDACTED PERSONAL INFORMATION
North East Lincolnshire Council,http://statistics.data.gov.uk/id/local-authority/00FC),Children & Family Services,Ass Dir - Education,Sen/Inclusion,Other Local Authorities,Third Pp - Other Local Auth,PC101,10/11/2018,537124,6307.5,REVENUE,REDACTED PERSONAL INFORMATION,REDACTED PERSONAL INFORMATION
North East Lincolnshire Council,http://statistics.data.gov.uk/id/local-authority/00FC),Children & Family Services,Ass Dir - Education,Sen/Inclusion,Other Local Authorities,Third Pp - Other Local Auth,PC101,10/18/2018,538364,3984.67,REVENUE,REDACTED PERSONAL INFORMATION,REDACTED PERSONAL INFORMATION
North East Lincolnshire Council,http://statistics.data.gov.uk/id/local-authority/00FC),Children & Family Services,Ass Dir - Education,Sen/Inclusion,Other Local Authorities,Third Pp - Other Local Auth,PC101,10/18/2018,538363,4611.67,REVENUE,REDACTED PERSONAL INFORMATION,REDACTED PERSONAL INFORMATION
North East Lincolnshire Council,http://statistics.data.gov.uk/id/local-authority/00FC),Children & Family Services,Ass Dir - Education,Sen/Inclusion,Other Local Authorities,Third Pp - Other Local Auth,PC101,10/18/2018,538362,1755.56,REVENUE,REDACTED PERSONAL INFORMATION,REDACTED PERSONAL INFORMATION
North East Lincolnshire Council,http://statistics.data.gov.uk/id/local-authority/00FC),Children & Family Services,Ass Dir - Education,Sen/Inclusion,Other Local Authorities,Third Pp - Other Local Auth,PC101,10/18/2018,538361,15309.57,REVENUE,REDACTED PERSONAL INFORMATION,REDACTED PERSONAL INFORMATION
North East Lincolnshire Council,http://statistics.data.gov.uk/id/local-authority/00FC),Children & Family Services,Ass Dir - Education,Sen/Inclusion,Other Local Authorities,Third Pp - Other Local Auth,PC101,10/9/2018,536253,4650.75,REVENUE,REDACTED PERSONAL INFORMATION,REDACTED PERSONAL INFORMATION
North East Lincolnshire Council,http://statistics.data.gov.uk/id/local-authority/00FC),Children & Family Services,Ass Dir - Education,Sen/Inclusion,Other Local Authorities,Third Pp - Other Local Auth,PC101,10/9/2018,536256,5247,REVENUE,REDACTED PERSONAL INFORMATION,REDACTED PERSONAL INFORMATION
North East Lincolnshire Council,http://statistics.data.gov.uk/id/local-authority/00FC),Children & Family Services,Ass Dir - Education,Sen/Inclusion,Other Local Authorities,Third Pp - Other Local Auth,PC101,10/9/2018,536254,4650.75,REVENUE,REDACTED PERSONAL INFORMATION,REDACTED PERSONAL INFORMATION
North East Lincolnshire Council,http://statistics.data.gov.uk/id/local-authority/00FC),Children & Family Services,Ass Dir - Education,Sen/Inclusion,Other Local Authorities,Third Pp - Other Local Auth,PC101,10/9/2018,536255,5247,REVENUE,REDACTED PERSONAL INFORMATION,REDACTED PERSONAL INFORMATION
North East Lincolnshire Council,http://statistics.data.gov.uk/id/local-authority/00FC),Children & Family Services,Ass Dir - Education,Sen/Inclusion,Other Local Authorities,Third Pp - Other Local Auth,PC101,10/4/2018,536465,2968,REVENUE,REDACTED PERSONAL INFORMATION,REDACTED PERSONAL INFORMATION
North East Lincolnshire Council,http://statistics.data.gov.uk/id/local-authority/00FC),Children & Family Services,Ass Dir - Education,Sen/Inclusion,Other Local Authorities,Third Pp - Other Local Auth,PC101,10/9/2018,536899,2552.27,REVENUE,REDACTED PERSONAL INFORMATION,REDACTED PERSONAL INFORMATION
North East Lincolnshire Council,http://statistics.data.gov.uk/id/local-authority/00FC),Children & Family Services,Ass Dir - Education,Sen/Inclusion,Other Local Authorities,Third Pp - Other Local Auth,PC101,10/9/2018,536636,81591.16,REVENUE,REDACTED PERSONAL INFORMATION,REDACTED PERSONAL INFORMATION
North East Lincolnshire Council,http://statistics.data.gov.uk/id/local-authority/00FC),Children & Family Services,Ass Dir - Education,Sen/Inclusion,Other Local Authorities,Third Pp - Other Local Auth,PC101,10/31/2018,539779,-777.37,REVENUE,REDACTED PERSONAL INFORMATION,REDACTED PERSONAL INFORMATION
North East Lincolnshire Council,http://statistics.data.gov.uk/id/local-authority/00FC),Children & Family Services,Ass Dir - Education,Sen/Inclusion,Other Local Authorities,Third Pp - Other Local Auth,PC101,10/11/2018,537107,6794.08,REVENUE,REDACTED PERSONAL INFORMATION,REDACTED PERSONAL INFORMATION
North East Lincolnshire Council,http://statistics.data.gov.uk/id/local-authority/00FC),Children & Family Services,Ass Dir - Education,Sen/Inclusion,Other Local Authorities,Third Pp - Other Local Auth,PC101,10/11/2018,537106,8333.34,REVENUE,REDACTED PERSONAL INFORMATION,REDACTED PERSONAL INFORMATION
North East Lincolnshire Council,http://statistics.data.gov.uk/id/local-authority/00FC),Children & Family Services,Ass Dir - Education,Sen/Inclusion,Other Local Authorities,Third Pp - Other Local Auth,PC101,10/11/2018,537108,45103.34,REVENUE,REDACTED PERSONAL INFORMATION,REDACTED PERSONAL INFORMATION
North East Lincolnshire Council,http://statistics.data.gov.uk/id/local-authority/00FC),Children & Family Services,Ass Dir - Education,Sen/Inclusion,Other Local Authorities,Third Pp - Other Local Auth,PC101,10/11/2018,537259,70359.29,REVENUE,REDACTED PERSONAL INFORMATION,REDACTED PERSONAL INFORMATION
North East Lincolnshire Council,http://statistics.data.gov.uk/id/local-authority/00FC),Children & Family Services,Ass Dir - Education,Sen/Inclusion,Other Local Authorities,Third Pp - Other Local Auth,PC101,10/31/2018,540057,8770.47,REVENUE,REDACTED PERSONAL INFORMATION,REDACTED PERSONAL INFORMATION
North East Lincolnshire Council,http://statistics.data.gov.uk/id/local-authority/00FC),Children & Family Services,Ass Dir - Education,Sen/Inclusion,Other Local Authorities,Third Pp - Other Local Auth,PC101,10/31/2018,540056,9710.17,REVENUE,REDACTED PERSONAL INFORMATION,REDACTED PERSONAL INFORMATION
North East Lincolnshire Council,http://statistics.data.gov.uk/id/local-authority/00FC),Children & Family Services,Ass Dir - Education,Sen/Inclusion,Other Local Authorities,Third Pp - Other Local Auth,PC101,10/31/2018,540058,2417.94,REVENUE,REDACTED PERSONAL INFORMATION,REDACTED PERSONAL INFORMATION
North East Lincolnshire Council,http://statistics.data.gov.uk/id/local-authority/00FC),Children & Family Services,Ass Dir - Education,Sen/Inclusion,Other Local Authorities,Third Pp - Other Local Auth,PC101,10/31/2018,540092,85274.82,REVENUE,REDACTED PERSONAL INFORMATION,REDACTED PERSONAL INFORMATION
North East Lincolnshire Council,http://statistics.data.gov.uk/id/local-authority/00FC),Children & Family Services,Ass Dir - Education,Sen/Inclusion,Private Contractors,Third Party Prov - Private,PH101,10/11/2018,536938,10614.9,REVENUE,REDACTED PERSONAL INFORMATION,REDACTED PERSONAL INFORMATION
North East Lincolnshire Council,http://statistics.data.gov.uk/id/local-authority/00FC),Children & Family Services,Ass Dir - Education,Sen/Inclusion,Private Contractors,Third Party Prov - Private,PH101,10/11/2018,536939,2136.9,REVENUE,REDACTED PERSONAL INFORMATION,REDACTED PERSONAL INFORMATION
North East Lincolnshire Council,http://statistics.data.gov.uk/id/local-authority/00FC),Children & Family Services,Ass Dir - Education,Sen/Inclusion,Private Contractors,Third Party Prov - Private,PH101,10/11/2018,536943,14327.14,REVENUE,REDACTED PERSONAL INFORMATION,REDACTED PERSONAL INFORMATION
North East Lincolnshire Council,http://statistics.data.gov.uk/id/local-authority/00FC),Children & Family Services,Ass Dir - Education,Sen/Inclusion,Private Contractors,Third Party Prov - Private,PH101,10/11/2018,536941,14325.09,REVENUE,REDACTED PERSONAL INFORMATION,REDACTED PERSONAL INFORMATION
North East Lincolnshire Council,http://statistics.data.gov.uk/id/local-authority/00FC),Children & Family Services,Ass Dir - Education,Sen/Inclusion,Private Contractors,Third Party Prov - Private,PH101,10/11/2018,537124,16294.66,REVENUE,REDACTED PERSONAL INFORMATION,REDACTED PERSONAL INFORMATION
North East Lincolnshire Council,http://statistics.data.gov.uk/id/local-authority/00FC),Children & Family Services,Ass Dir - Education,Sen/Inclusion,Private Contractors,Third Party Prov - Private,PH101,10/18/2018,538364,4731.11,REVENUE,REDACTED PERSONAL INFORMATION,REDACTED PERSONAL INFORMATION
North East Lincolnshire Council,http://statistics.data.gov.uk/id/local-authority/00FC),Children & Family Services,Ass Dir - Education,Sen/Inclusion,Private Contractors,Third Party Prov - Private,PH101,10/18/2018,538363,2837.33,REVENUE,REDACTED PERSONAL INFORMATION,REDACTED PERSONAL INFORMATION
North East Lincolnshire Council,http://statistics.data.gov.uk/id/local-authority/00FC),Children & Family Services,Ass Dir - Education,Sen/Inclusion,Private Contractors,Third Party Prov - Private,PH101,10/16/2018,536987,18640.71,REVENUE,REDACTED PERSONAL INFORMATION,REDACTED PERSONAL INFORMATION
North East Lincolnshire Council,http://statistics.data.gov.uk/id/local-authority/00FC),Children & Family Services,Ass Dir - Education,Sen/Inclusion,Private Contractors,Third Party Prov - Private,PH101,10/11/2018,537258,37648.6,REVENUE,REDACTED PERSONAL INFORMATION,REDACTED PERSONAL INFORMATION
North East Lincolnshire Council,http://statistics.data.gov.uk/id/local-authority/00FC),Children & Family Services,Ass Dir - Education,Sen/Inclusion,Private Contractors,Third Party Prov - Private,PH101,10/16/2018,537648,1914.86,REVENUE,REDACTED PERSONAL INFORMATION,REDACTED PERSONAL INFORMATION
North East Lincolnshire Council,http://statistics.data.gov.uk/id/local-authority/00FC),Children & Family Services,Ass Dir - Education,Sen/Inclusion,Private Contractors,Third Party Prov - Private,PH101,10/31/2018,540053,3555,REVENUE,REDACTED PERSONAL INFORMATION,REDACTED PERSONAL INFORMATION
North East Lincolnshire Council,http://statistics.data.gov.uk/id/local-authority/00FC),Children & Family Services,Ass Dir - Education,Sen/Inclusion,Private Contractors,Third Party Prov - Private,PH101,10/31/2018,540060,6930,REVENUE,REDACTED PERSONAL INFORMATION,REDACTED PERSONAL INFORMATION
North East Lincolnshire Council,http://statistics.data.gov.uk/id/local-authority/00FC),Children & Family Services,Ass Dir - Education,Sen/Inclusion,Private Contractors,Third Party Prov - Private,PH101,10/31/2018,540052,12245,REVENUE,REDACTED PERSONAL INFORMATION,REDACTED PERSONAL INFORMATION
North East Lincolnshire Council,http://statistics.data.gov.uk/id/local-authority/00FC),Children & Family Services,Ass Dir - Education,Sen/Inclusion,Private Contractors,Third Party Prov - Private,PH101,10/31/2018,540054,12245,REVENUE,REDACTED PERSONAL INFORMATION,REDACTED PERSONAL INFORMATION
North East Lincolnshire Council,http://statistics.data.gov.uk/id/local-authority/00FC),Children & Family Services,Ass Dir - Education,Sen/Inclusion,Private Contractors,Third Party Prov - Private,PH101,10/31/2018,540055,4620,REVENUE,REDACTED PERSONAL INFORMATION,REDACTED PERSONAL INFORMATION
North East Lincolnshire Council,http://statistics.data.gov.uk/id/local-authority/00FC),Children & Family Services,Ass Dir - Education,Sen/Inclusion,Private Contractors,Third Party Prov - Private,PH101,10/31/2018,540059,3555,REVENUE,REDACTED PERSONAL INFORMATION,REDACTED PERSONAL INFORMATION
North East Lincolnshire Council,http://statistics.data.gov.uk/id/local-authority/00FC),Children & Family Services,Ass Dir - Education,Sen/Inclusion,Contract Hire-Operating Leases,Vehicles - Contract Hire,JC101,10/11/2018,537129,975,REVENUE,MOTORVATION TRAINING LTD,138704
North East Lincolnshire Council,http://statistics.data.gov.uk/id/local-authority/00FC),Children & Family Services,Ass Dir - Education,Sen/Inclusion,Contract Hire-Operating Leases,Vehicles - Contract Hire,JC101,10/30/2018,539427,845,REVENUE,MOTORVATION TRAINING LTD,138704
North East Lincolnshire Council,http://statistics.data.gov.uk/id/local-authority/00FC),Children & Family Services,Ass Dir - Education,Sen/Inclusion,Miscellaneous Expenses,Contingency Reserve,LL123,10/23/2018,538959,12825,REVENUE,THE CAMBRIDGE PARK ACADEMY,107472
North East Lincolnshire Council,http://statistics.data.gov.uk/id/local-authority/00FC),Children & Family Services,Ass Dir - Education,Sen/Inclusion,Voluntary Associations,Third Pp - Third Sector,PF101,10/2/2018,536262,19500,REVENUE,BARNARDO SERVICES LTD,101050
North East Lincolnshire Council,http://statistics.data.gov.uk/id/local-authority/00FC),Children & Family Services,Ass Dir - Education,Sen/Inclusion,Contributions To Provisions,Contributions - Other,LK103,10/4/2018,536467,16687.25,REVENUE,BARNARDO SERVICES LTD,101050
North East Lincolnshire Council,http://statistics.data.gov.uk/id/local-authority/00FC),Children & Family Services,Ass Dir - Education,Sen/Inclusion,Contributions To Provisions,Contributions - Other,LK103,10/4/2018,536466,23989.5,REVENUE,BARNARDO SERVICES LTD,101050
North East Lincolnshire Council,http://statistics.data.gov.uk/id/local-authority/00FC),Children & Family Services,Ass Dir - Education,Sen/Inclusion,Contributions To Provisions,Contributions - Other,LK103,10/18/2018,538465,632,REVENUE,COMMUNITY ACCORD,106613
North East Lincolnshire Council,http://statistics.data.gov.uk/id/local-authority/00FC),Children & Family Services,Ass Dir - Education,Sen/Inclusion,Direct Employee Expenses,Pay Teachers Supply Cover,EA106,10/18/2018,537980,330,REVENUE,THE EDUCATION NETWORK,129224
North East Lincolnshire Council,http://statistics.data.gov.uk/id/local-authority/00FC),Children & Family Services,Ass Dir - Education,Sen/Inclusion,Rep Alterations Maint Building,Buildings - Repairs And Maint,GA102,10/25/2018,539368,1110,REVENUE,J W PLATER LTD,100555
North East Lincolnshire Council,http://statistics.data.gov.uk/id/local-authority/00FC),Children & Family Services,Ass Dir - Education,Sen/Inclusion,Equip / Furniture / Materials,Teaching Materials,LA117,10/9/2018,536928,4395,REVENUE,HUMANWARE EUROPE LTD,128854
North East Lincolnshire Council,http://statistics.data.gov.uk/id/local-authority/00FC),Children & Family Services,Ass Dir - Education,Sen/Inclusion,Private Contractors,Third Party Prov - Private,PH101,10/4/2018,628580,605.24,REVENUE,REDACTED PERSONAL INFORMATION,REDACTED PERSONAL INFORMATION
North East Lincolnshire Council,http://statistics.data.gov.uk/id/local-authority/00FC),Children & Family Services,Ass Dir - Education,Sen/Inclusion,Private Contractors,Third Party Prov - Private,PH101,10/22/2018,632856,280,REVENUE,REDACTED PERSONAL INFORMATION,REDACTED PERSONAL INFORMATION
North East Lincolnshire Council,http://statistics.data.gov.uk/id/local-authority/00FC),Children & Family Services,Ass Dir - Education,Sen/Inclusion,Private Contractors,Third Party Prov - Private,PH101,10/22/2018,632856,5800,REVENUE,REDACTED PERSONAL INFORMATION,REDACTED PERSONAL INFORMATION
North East Lincolnshire Council,http://statistics.data.gov.uk/id/local-authority/00FC),Children & Family Services,Ass Dir - Education,Sen/Inclusion,Private Contractors,Third Party Prov - Private,PH101,10/16/2018,529406,-6000,REVENUE,FRANKLIN COLLEGE,101073
North East Lincolnshire Council,http://statistics.data.gov.uk/id/local-authority/00FC),Children & Family Services,Ass Dir - Education,Sen/Inclusion,Private Contractors,Third Party Prov - Private,PH101,10/9/2018,536635,8395.2,REVENUE,LINKAGE COMMUNITY TRUST LTD,104471
North East Lincolnshire Council,http://statistics.data.gov.uk/id/local-authority/00FC),Children & Family Services,Ass Dir - Education,Sen/Inclusion,Private Contractors,Third Party Prov - Private,PH101,10/18/2018,538463,4601,REVENUE,REDACTED PERSONAL INFORMATION,REDACTED PERSONAL INFORMATION
North East Lincolnshire Council,http://statistics.data.gov.uk/id/local-authority/00FC),Children & Family Services,Ass Dir - Education,Sen/Inclusion,Private Contractors,Third Party Prov - Private,PH101,10/18/2018,538464,1732,REVENUE,REDACTED PERSONAL INFORMATION,REDACTED PERSONAL INFORMATION
North East Lincolnshire Council,http://statistics.data.gov.uk/id/local-authority/00FC),Children & Family Services,Ass Dir - Education,Sen/Inclusion,Private Contractors,Third Party Prov - Private,PH101,10/31/2018,540063,8274,REVENUE,LINKAGE COMMUNITY TRUST LTD,104471
North East Lincolnshire Council,http://statistics.data.gov.uk/id/local-authority/00FC),Children & Family Services,Ass Dir - Education,Sen/Inclusion,Miscellaneous Expenses,Contingency Reserve,LL123,10/23/2018,538969,1317,REVENUE,PHOENIX PARK ACADEMY,126685
North East Lincolnshire Council,http://statistics.data.gov.uk/id/local-authority/00FC),Children & Family Services,Ass Dir - Education,Sen/Inclusion,Miscellaneous Expenses,Contingency Reserve,LL123,10/23/2018,538967,4654,REVENUE,PHOENIX PARK ACADEMY,126685
North East Lincolnshire Council,http://statistics.data.gov.uk/id/local-authority/00FC),Children & Family Services,Ass Dir - Education,Sen/Inclusion,Miscellaneous Expenses,Contingency Reserve,LL123,10/23/2018,538966,15800,REVENUE,PHOENIX PARK ACADEMY,126685
North East Lincolnshire Council,http://statistics.data.gov.uk/id/local-authority/00FC),Children & Family Services,Ass Dir - Education,Sen/Inclusion,Miscellaneous Expenses,Contingency Reserve,LL123,10/23/2018,538968,44767,REVENUE,PHOENIX PARK ACADEMY,126685
North East Lincolnshire Council,http://statistics.data.gov.uk/id/local-authority/00FC),Children & Family Services,Ass Dir - Education,Sen/Inclusion,Miscellaneous Expenses,Contingency Reserve,LL123,10/23/2018,538971,26333,REVENUE,SEVENHILLS ACADEMY,128660
North East Lincolnshire Council,http://statistics.data.gov.uk/id/local-authority/00FC),Children & Family Services,Ass Dir - Education,Sen/Inclusion,Miscellaneous Expenses,Contingency Reserve,LL123,10/23/2018,538970,26333,REVENUE,SEVENHILLS ACADEMY,128660
North East Lincolnshire Council,http://statistics.data.gov.uk/id/local-authority/00FC),Children & Family Services,Ass Dir - Education,Sen/Inclusion,Contributions To Provisions,Contributions - Other,LK103,10/9/2018,536874,1753,REVENUE,CLEETHORPES CHILDCARE,101591
North East Lincolnshire Council,http://statistics.data.gov.uk/id/local-authority/00FC),Children & Family Services,Ass Dir - Education,Sen/Inclusion,Contributions To Provisions,Contributions - Other,LK103,10/16/2018,537649,534.93,REVENUE,IMMINGHAM DAY CARE,122312
North East Lincolnshire Council,http://statistics.data.gov.uk/id/local-authority/00FC),Children & Family Services,Ass Dir - Education,Sen/Inclusion,Contributions To Provisions,Contributions - Third Sector,LK102,10/22/2018,632932,470.75,REVENUE,REDACTED PERSONAL INFORMATION,REDACTED PERSONAL INFORMATION
North East Lincolnshire Council,http://statistics.data.gov.uk/id/local-authority/00FC),Children & Family Services,Ass Dir - Education,Sen/Inclusion,Contributions To Provisions,Contributions - Third Sector,LK102,10/29/2018,635096,1040,REVENUE,REDACTED PERSONAL INFORMATION,REDACTED PERSONAL INFORMATION
North East Lincolnshire Council,http://statistics.data.gov.uk/id/local-authority/00FC),Children & Family Services,Ass Dir - Education,Sen/Inclusion,Miscellaneous Expenses,Contingency Reserve,LL123,10/23/2018,538960,1666,REVENUE,THE CAMBRIDGE PARK ACADEMY,107472
North East Lincolnshire Council,http://statistics.data.gov.uk/id/local-authority/00FC),Children & Family Services,Ass Dir - Education,Sen/Inclusion,Miscellaneous Expenses,Contingency Reserve,LL123,10/23/2018,538958,135752,REVENUE,THE CAMBRIDGE PARK ACADEMY,107472
North East Lincolnshire Council,http://statistics.data.gov.uk/id/local-authority/00FC),Children & Family Services,Ass Dir - Education,Sen/Inclusion,Miscellaneous Expenses,Contingency Reserve,LL123,10/23/2018,538961,6666,REVENUE,HUMBERSTON PARK SPECIAL SCHOOL,107911
North East Lincolnshire Council,http://statistics.data.gov.uk/id/local-authority/00FC),Children & Family Services,Ass Dir - Education,Sen/Inclusion,Miscellaneous Expenses,Contingency Reserve,LL123,10/23/2018,538962,108009,REVENUE,HUMBERSTON PARK SPECIAL SCHOOL,107911
North East Lincolnshire Council,http://statistics.data.gov.uk/id/local-authority/00FC),Children & Family Services,Ass Dir - Education,Sen/Inclusion,Miscellaneous Expenses,Other Expenses General,LL119,10/23/2018,538965,5833,REVENUE,EASTFIELD PRIMARY ACADEMY,121907
North East Lincolnshire Council,http://statistics.data.gov.uk/id/local-authority/00FC),Children & Family Services,Ass Dir - Education,Sen/Inclusion,Miscellaneous Expenses,Other Expenses General,LL119,10/23/2018,538963,1944.92,REVENUE,EASTFIELD PRIMARY ACADEMY,121907
North East Lincolnshire Council,http://statistics.data.gov.uk/id/local-authority/00FC),Children & Family Services,Ass Dir - Education,Sen/Inclusion,Miscellaneous Expenses,Other Expenses General,LL119,10/23/2018,538964,8750,REVENUE,EASTFIELD PRIMARY ACADEMY,121907
North East Lincolnshire Council,http://statistics.data.gov.uk/id/local-authority/00FC),Children & Family Services,Ass Dir - Education,Sen/Inclusion,Contributions To Provisions,Contributions - Other,LK103,10/9/2018,537027,1221.48,REVENUE,LISLE MARSDEN CHILDCARE LIMITED,110493
North East Lincolnshire Council,http://statistics.data.gov.uk/id/local-authority/00FC),Children & Family Services,Ass Dir - Education,Sen/Inclusion,Contributions To Provisions,Contributions - Other,LK103,10/11/2018,537044,1409.4,REVENUE,ORMISTON SOUTH PARADE ACADEMY,111750
North East Lincolnshire Council,http://statistics.data.gov.uk/id/local-authority/00FC),Children & Family Services,Ass Dir - Education,Sen/Inclusion,Contributions To Provisions,Contributions - Other,LK103,10/11/2018,537025,657.72,REVENUE,THE CHILDRENS HOUSE,101141
North East Lincolnshire Council,http://statistics.data.gov.uk/id/local-authority/00FC),Children & Family Services,Ass Dir - Education,Sen/Inclusion,Contributions To Provisions,Contributions - Other,LK103,10/9/2018,537028,1644.3,REVENUE,WELHOLME PRE SCHOOL,101258
North East Lincolnshire Council,http://statistics.data.gov.uk/id/local-authority/00FC),Children & Family Services,Ass Dir - Education,Sen/Inclusion,Contributions To Provisions,Contributions - Other,LK103,10/11/2018,537026,1096.2,REVENUE,FOR UNDER FIVES (QUEENSWAY),102496
North East Lincolnshire Council,http://statistics.data.gov.uk/id/local-authority/00FC),Children & Family Services,Ass Dir - Education,Sen/Inclusion,Contributions To Provisions,Contributions - Other,LK103,10/11/2018,537025,1323.27,REVENUE,THE CHILDRENS HOUSE,101141
North East Lincolnshire Council,http://statistics.data.gov.uk/id/local-authority/00FC),Children & Family Services,Ass Dir - Education,Sen/Inclusion,Contributions To Provisions,Contributions - Other,LK103,10/9/2018,537027,840,REVENUE,LISLE MARSDEN CHILDCARE LIMITED,110493
North East Lincolnshire Council,http://statistics.data.gov.uk/id/local-authority/00FC),Children & Family Services,Ass Dir - Education,Sen/Inclusion,Contributions To Provisions,Contributions - Other,LK103,10/2/2018,536078,1644.3,REVENUE,SPRINGFIELD PRIMARY ACADEMY,131306
North East Lincolnshire Council,http://statistics.data.gov.uk/id/local-authority/00FC),Children & Family Services,Ass Dir - Education,School Improvement,Direct Employee Expenses,Agency Staff,EA105,10/25/2018,539012,400,REVENUE,WYBERS WOOD PRIMARY ACADEMY,115078
North East Lincolnshire Council,http://statistics.data.gov.uk/id/local-authority/00FC),Children & Family Services,Ass Dir - Education,School Improvement,Direct Employee Expenses,Agency Staff,EA105,10/9/2018,536136,400,REVENUE,OLD CLEE PRIMARY ACADEMY,119822
North East Lincolnshire Council,http://statistics.data.gov.uk/id/local-authority/00FC),Children & Family Services,Ass Dir - Education,School Improvement,Direct Employee Expenses,Agency Staff,EA105,10/16/2018,537086,400,REVENUE,SIGNHILLS INFANT ACADEMY,114843
North East Lincolnshire Council,http://statistics.data.gov.uk/id/local-authority/00FC),Children & Family Services,Ass Dir - Education,School Improvement,Direct Employee Expenses,Agency Staff,EA105,10/11/2018,537438,661.2,REVENUE,NUMBER FUN LTD,106048
North East Lincolnshire Council,http://statistics.data.gov.uk/id/local-authority/00FC),Children & Family Services,Ass Dir - Education,School Improvement,Direct Employee Expenses,Agency Staff,EA105,10/18/2018,537688,400,REVENUE,SIGNHILLS INFANTS ACADEMY,110645
North East Lincolnshire Council,http://statistics.data.gov.uk/id/local-authority/00FC),Children & Family Services,Ass Dir - Education,Palliative / Complex Care,Equip / Furniture / Materials,Equipment - Maintenance,LA104,10/31/2018,538940,1200,REVENUE,RESMED (UK) LIMITED,138460
North East Lincolnshire Council,http://statistics.data.gov.uk/id/local-authority/00FC),Children & Family Services,Ass Dir - Education,Palliative / Complex Care,Private Contractors,Third Party Prov - Private,PH101,10/18/2018,535107,999,REVENUE,APOLLO HOME HEALTHCARE LIMITED,138437
North East Lincolnshire Council,http://statistics.data.gov.uk/id/local-authority/00FC),Children & Family Services,Ass Dir - Education,Palliative / Complex Care,Private Contractors,Third Party Prov - Private,PH101,10/30/2018,539732,666,REVENUE,APOLLO HOME HEALTHCARE LIMITED,138437
North East Lincolnshire Council,http://statistics.data.gov.uk/id/local-authority/00FC),Children & Family Services,Ass Dir - Education,Palliative / Complex Care,Private Contractors,Third Party Prov - Private,PH101,10/30/2018,538621,1105.5,REVENUE,APOLLO HOME HEALTHCARE LIMITED,138437
North East Lincolnshire Council,http://statistics.data.gov.uk/id/local-authority/00FC),Children & Family Services,Ass Dir - Education,Palliative / Complex Care,Private Contractors,Third Party Prov - Private,PH101,10/31/2018,539410,832.5,REVENUE,APOLLO HOME HEALTHCARE LIMITED,138437
North East Lincolnshire Council,http://statistics.data.gov.uk/id/local-authority/00FC),Children & Family Services,Ass Dir - Education,Palliative / Complex Care,Private Contractors,Third Party Prov - Private,PH101,10/25/2018,538040,1599,REVENUE,THE ROWAN ORGANISATION,140036
North East Lincolnshire Council,http://statistics.data.gov.uk/id/local-authority/00FC),Children & Family Services,Ass Dir - Education,Palliative / Complex Care,Private Contractors,Third Party Prov - Private,PH101,10/25/2018,538039,666.25,REVENUE,THE ROWAN ORGANISATION,140037
North East Lincolnshire Council,http://statistics.data.gov.uk/id/local-authority/00FC),Children & Family Services,Ass Dir - Education,Palliative / Complex Care,Private Contractors,Third Party Prov - Private,PH101,10/18/2018,538042,319.8,REVENUE,THE ROWAN ORGANISATION,140038
North East Lincolnshire Council,http://statistics.data.gov.uk/id/local-authority/00FC),Children & Family Services,Ass Dir - Education,Palliative / Complex Care,Private Contractors,Third Party Prov - Private,PH101,10/16/2018,538037,1599,REVENUE,THE ROWAN ORGANISATION,140039
North East Lincolnshire Council,http://statistics.data.gov.uk/id/local-authority/00FC),Children & Family Services,Ass Dir - Education,Palliative / Complex Care,Private Contractors,Third Party Prov - Private,PH101,10/25/2018,538041,2132,REVENUE,THE ROWAN ORGANISATION,140040
North East Lincolnshire Council,http://statistics.data.gov.uk/id/local-authority/00FC),Children & Family Services,Ass Dir - Children & Families,Family Hubs,Private Contractors,Third Party Prov - Private,PH101,10/16/2018,536982,10167,REVENUE,N LINCS & GOOLE HOSPITALS NHS FOUNDATION TRUS,111074
North East Lincolnshire Council,http://statistics.data.gov.uk/id/local-authority/00FC),Children & Family Services,Ass Dir - Children & Families,Family Hubs,Other Agencies,Educational Visits,PJ152,10/23/2018,538899,260,REVENUE,COOPERS TOURS (LINCS) LTD,111878
North East Lincolnshire Council,http://statistics.data.gov.uk/id/local-authority/00FC),Children & Family Services,Ass Dir - Children & Families,Family Hubs,Indirect Employee Expenses,Staff Training,EB122,10/30/2018,539722,250,REVENUE,STAFFORCE PERSONNEL LTD,101081
North East Lincolnshire Council,http://statistics.data.gov.uk/id/local-authority/00FC),Children & Family Services,Ass Dir - Children & Families,Family Hubs,Equip / Furniture / Materials,Equipment - Purchase,LA101,10/23/2018,538824,391.85,REVENUE,FINDEL EDUCATION LTD,101237
North East Lincolnshire Council,http://statistics.data.gov.uk/id/local-authority/00FC),Children & Family Services,Ass Dir - Children & Families,Family Hubs,Catering,Provisions,LB101,10/18/2018,538023,1000,REVENUE,TESCO STORES LIMITED,102576
North East Lincolnshire Council,http://statistics.data.gov.uk/id/local-authority/00FC),Children & Family Services,Ass Dir - Children & Families,Family Hubs,Miscellaneous Expenses,Activities - Service Users,LL114,10/16/2018,537658,1870,REVENUE,MILLMAN COACHES,100700
North East Lincolnshire Council,http://statistics.data.gov.uk/id/local-authority/00FC),Children & Family Services,Ass Dir - Children & Families,Family Hubs,Equip / Furniture / Materials,Non-Teaching Resources,LA118,10/23/2018,538164,255.89,REVENUE,PETER HOGARTH & SONS LTD,100815
North East Lincolnshire Council,http://statistics.data.gov.uk/id/local-authority/00FC),Children & Family Services,Ass Dir - Children & Families,Head Of Child Resource & Reg,Miscellaneous Expenses,Activities - Service Users,LL114,10/4/2018,536530,318.04,REVENUE,VULNERABLE YOUNG PEOPLE PROJECT HENEAGE,110637
North East Lincolnshire Council,http://statistics.data.gov.uk/id/local-authority/00FC),Children & Family Services,Ass Dir - Children & Families,Head Of Child Resource & Reg,Rents,Rent,GC101,10/25/2018,539338,4426,REVENUE,BOURNE LEISURE LTD,109336
North East Lincolnshire Council,http://statistics.data.gov.uk/id/local-authority/00FC),Children & Family Services,Ass Dir - Children & Families,Head Of Child Resource & Reg,Other Agencies,Additional Cost,PJ114,10/22/2018,632734,313,REVENUE,REDACTED PERSONAL INFORMATION,REDACTED PERSONAL INFORMATION
North East Lincolnshire Council,http://statistics.data.gov.uk/id/local-authority/00FC),Children & Family Services,Ass Dir - Children & Families,Head Of Child Resource & Reg,Other Agencies,Additional Cost,PJ114,10/22/2018,632785,320,REVENUE,REDACTED PERSONAL INFORMATION,REDACTED PERSONAL INFORMATION
North East Lincolnshire Council,http://statistics.data.gov.uk/id/local-authority/00FC),Children & Family Services,Ass Dir - Children & Families,Head Of Child Resource & Reg,Other Agencies,Additional Cost,PJ114,10/11/2018,537467,740,REVENUE,READY RENT A CAR,100557
North East Lincolnshire Council,http://statistics.data.gov.uk/id/local-authority/00FC),Children & Family Services,Ass Dir - Children & Families,Head Of Child Resource & Reg,Other Agencies,Child Care Payments,PJ104,10/1/2018,627356,1017,REVENUE,REDACTED PERSONAL INFORMATION,REDACTED PERSONAL INFORMATION
North East Lincolnshire Council,http://statistics.data.gov.uk/id/local-authority/00FC),Children & Family Services,Ass Dir - Children & Families,Head Of Child Resource & Reg,Other Agencies,Child Care Payments,PJ104,10/1/2018,627357,692,REVENUE,REDACTED PERSONAL INFORMATION,REDACTED PERSONAL INFORMATION
North East Lincolnshire Council,http://statistics.data.gov.uk/id/local-authority/00FC),Children & Family Services,Ass Dir - Children & Families,Head Of Child Resource & Reg,Other Agencies,Child Care Payments,PJ104,10/1/2018,627359,650,REVENUE,REDACTED PERSONAL INFORMATION,REDACTED PERSONAL INFORMATION
North East Lincolnshire Council,http://statistics.data.gov.uk/id/local-authority/00FC),Children & Family Services,Ass Dir - Children & Families,Head Of Child Resource & Reg,Other Agencies,Child Care Payments,PJ104,10/1/2018,627364,650,REVENUE,REDACTED PERSONAL INFORMATION,REDACTED PERSONAL INFORMATION
North East Lincolnshire Council,http://statistics.data.gov.uk/id/local-authority/00FC),Children & Family Services,Ass Dir - Children & Families,Head Of Child Resource & Reg,Other Agencies,Child Care Payments,PJ104,10/1/2018,627365,312,REVENUE,REDACTED PERSONAL INFORMATION,REDACTED PERSONAL INFORMATION
North East Lincolnshire Council,http://statistics.data.gov.uk/id/local-authority/00FC),Children & Family Services,Ass Dir - Children & Families,Head Of Child Resource & Reg,Other Agencies,Child Care Payments,PJ104,10/1/2018,627372,637,REVENUE,REDACTED PERSONAL INFORMATION,REDACTED PERSONAL INFORMATION
North East Lincolnshire Council,http://statistics.data.gov.uk/id/local-authority/00FC),Children & Family Services,Ass Dir - Children & Families,Head Of Child Resource & Reg,Other Agencies,Child Care Payments,PJ104,10/1/2018,627376,975,REVENUE,REDACTED PERSONAL INFORMATION,REDACTED PERSONAL INFORMATION
North East Lincolnshire Council,http://statistics.data.gov.uk/id/local-authority/00FC),Children & Family Services,Ass Dir - Children & Families,Head Of Child Resource & Reg,Other Agencies,Child Care Payments,PJ104,10/1/2018,627384,1004,REVENUE,REDACTED PERSONAL INFORMATION,REDACTED PERSONAL INFORMATION
North East Lincolnshire Council,http://statistics.data.gov.uk/id/local-authority/00FC),Children & Family Services,Ass Dir - Children & Families,Head Of Child Resource & Reg,Other Agencies,Child Care Payments,PJ104,10/1/2018,627404,650,REVENUE,REDACTED PERSONAL INFORMATION,REDACTED PERSONAL INFORMATION
North East Lincolnshire Council,http://statistics.data.gov.uk/id/local-authority/00FC),Children & Family Services,Ass Dir - Children & Families,Head Of Child Resource & Reg,Other Agencies,Child Care Payments,PJ104,10/1/2018,627405,996,REVENUE,REDACTED PERSONAL INFORMATION,REDACTED PERSONAL INFORMATION
North East Lincolnshire Council,http://statistics.data.gov.uk/id/local-authority/00FC),Children & Family Services,Ass Dir - Children & Families,Head Of Child Resource & Reg,Other Agencies,Child Care Payments,PJ104,10/1/2018,627428,692,REVENUE,REDACTED PERSONAL INFORMATION,REDACTED PERSONAL INFORMATION
North East Lincolnshire Council,http://statistics.data.gov.uk/id/local-authority/00FC),Children & Family Services,Ass Dir - Children & Families,Head Of Child Resource & Reg,Other Agencies,Child Care Payments,PJ104,10/1/2018,627429,325,REVENUE,REDACTED PERSONAL INFORMATION,REDACTED PERSONAL INFORMATION
North East Lincolnshire Council,http://statistics.data.gov.uk/id/local-authority/00FC),Children & Family Services,Ass Dir - Children & Families,Head Of Child Resource & Reg,Other Agencies,Child Care Payments,PJ104,10/1/2018,627440,624,REVENUE,REDACTED PERSONAL INFORMATION,REDACTED PERSONAL INFORMATION
North East Lincolnshire Council,http://statistics.data.gov.uk/id/local-authority/00FC),Children & Family Services,Ass Dir - Children & Families,Head Of Child Resource & Reg,Other Agencies,Child Care Payments,PJ104,10/1/2018,627443,637,REVENUE,REDACTED PERSONAL INFORMATION,REDACTED PERSONAL INFORMATION
North East Lincolnshire Council,http://statistics.data.gov.uk/id/local-authority/00FC),Children & Family Services,Ass Dir - Children & Families,Head Of Child Resource & Reg,Other Agencies,Child Care Payments,PJ104,10/1/2018,627140,671,REVENUE,REDACTED PERSONAL INFORMATION,REDACTED PERSONAL INFORMATION
North East Lincolnshire Council,http://statistics.data.gov.uk/id/local-authority/00FC),Children & Family Services,Ass Dir - Children & Families,Head Of Child Resource & Reg,Other Agencies,Child Care Payments,PJ104,10/1/2018,627463,650,REVENUE,REDACTED PERSONAL INFORMATION,REDACTED PERSONAL INFORMATION
North East Lincolnshire Council,http://statistics.data.gov.uk/id/local-authority/00FC),Children & Family Services,Ass Dir - Children & Families,Head Of Child Resource & Reg,Other Agencies,Child Care Payments,PJ104,10/1/2018,627480,346,REVENUE,REDACTED PERSONAL INFORMATION,REDACTED PERSONAL INFORMATION
North East Lincolnshire Council,http://statistics.data.gov.uk/id/local-authority/00FC),Children & Family Services,Ass Dir - Children & Families,Head Of Child Resource & Reg,Other Agencies,Child Care Payments,PJ104,10/1/2018,627141,692,REVENUE,REDACTED PERSONAL INFORMATION,REDACTED PERSONAL INFORMATION
North East Lincolnshire Council,http://statistics.data.gov.uk/id/local-authority/00FC),Children & Family Services,Ass Dir - Children & Families,Head Of Child Resource & Reg,Other Agencies,Child Care Payments,PJ104,10/1/2018,627144,949,REVENUE,REDACTED PERSONAL INFORMATION,REDACTED PERSONAL INFORMATION
North East Lincolnshire Council,http://statistics.data.gov.uk/id/local-authority/00FC),Children & Family Services,Ass Dir - Children & Families,Head Of Child Resource & Reg,Other Agencies,Child Care Payments,PJ104,10/1/2018,627499,325,REVENUE,REDACTED PERSONAL INFORMATION,REDACTED PERSONAL INFORMATION
North East Lincolnshire Council,http://statistics.data.gov.uk/id/local-authority/00FC),Children & Family Services,Ass Dir - Children & Families,Head Of Child Resource & Reg,Other Agencies,Child Care Payments,PJ104,10/1/2018,627147,325,REVENUE,REDACTED PERSONAL INFORMATION,REDACTED PERSONAL INFORMATION
North East Lincolnshire Council,http://statistics.data.gov.uk/id/local-authority/00FC),Children & Family Services,Ass Dir - Children & Families,Head Of Child Resource & Reg,Other Agencies,Child Care Payments,PJ104,10/1/2018,627148,346,REVENUE,REDACTED PERSONAL INFORMATION,REDACTED PERSONAL INFORMATION
North East Lincolnshire Council,http://statistics.data.gov.uk/id/local-authority/00FC),Children & Family Services,Ass Dir - Children & Families,Head Of Child Resource & Reg,Other Agencies,Child Care Payments,PJ104,10/1/2018,627151,692,REVENUE,REDACTED PERSONAL INFORMATION,REDACTED PERSONAL INFORMATION
North East Lincolnshire Council,http://statistics.data.gov.uk/id/local-authority/00FC),Children & Family Services,Ass Dir - Children & Families,Head Of Child Resource & Reg,Other Agencies,Child Care Payments,PJ104,10/1/2018,627152,312,REVENUE,REDACTED PERSONAL INFORMATION,REDACTED PERSONAL INFORMATION
North East Lincolnshire Council,http://statistics.data.gov.uk/id/local-authority/00FC),Children & Family Services,Ass Dir - Children & Families,Head Of Child Resource & Reg,Other Agencies,Child Care Payments,PJ104,10/1/2018,627154,346,REVENUE,REDACTED PERSONAL INFORMATION,REDACTED PERSONAL INFORMATION
North East Lincolnshire Council,http://statistics.data.gov.uk/id/local-authority/00FC),Children & Family Services,Ass Dir - Children & Families,Head Of Child Resource & Reg,Other Agencies,Child Care Payments,PJ104,10/1/2018,627158,1023,REVENUE,REDACTED PERSONAL INFORMATION,REDACTED PERSONAL INFORMATION
North East Lincolnshire Council,http://statistics.data.gov.uk/id/local-authority/00FC),Children & Family Services,Ass Dir - Children & Families,Head Of Child Resource & Reg,Other Agencies,Child Care Payments,PJ104,10/1/2018,627162,996,REVENUE,REDACTED PERSONAL INFORMATION,REDACTED PERSONAL INFORMATION
North East Lincolnshire Council,http://statistics.data.gov.uk/id/local-authority/00FC),Children & Family Services,Ass Dir - Children & Families,Head Of Child Resource & Reg,Other Agencies,Child Care Payments,PJ104,10/1/2018,627164,671,REVENUE,REDACTED PERSONAL INFORMATION,REDACTED PERSONAL INFORMATION
North East Lincolnshire Council,http://statistics.data.gov.uk/id/local-authority/00FC),Children & Family Services,Ass Dir - Children & Families,Head Of Child Resource & Reg,Other Agencies,Child Care Payments,PJ104,10/1/2018,627165,637,REVENUE,REDACTED PERSONAL INFORMATION,REDACTED PERSONAL INFORMATION
North East Lincolnshire Council,http://statistics.data.gov.uk/id/local-authority/00FC),Children & Family Services,Ass Dir - Children & Families,Head Of Child Resource & Reg,Other Agencies,Child Care Payments,PJ104,10/1/2018,627167,1038,REVENUE,REDACTED PERSONAL INFORMATION,REDACTED PERSONAL INFORMATION
North East Lincolnshire Council,http://statistics.data.gov.uk/id/local-authority/00FC),Children & Family Services,Ass Dir - Children & Families,Head Of Child Resource & Reg,Other Agencies,Child Care Payments,PJ104,10/1/2018,627168,650,REVENUE,REDACTED PERSONAL INFORMATION,REDACTED PERSONAL INFORMATION
North East Lincolnshire Council,http://statistics.data.gov.uk/id/local-authority/00FC),Children & Family Services,Ass Dir - Children & Families,Head Of Child Resource & Reg,Other Agencies,Child Care Payments,PJ104,10/1/2018,627170,698,REVENUE,REDACTED PERSONAL INFORMATION,REDACTED PERSONAL INFORMATION
North East Lincolnshire Council,http://statistics.data.gov.uk/id/local-authority/00FC),Children & Family Services,Ass Dir - Children & Families,Head Of Child Resource & Reg,Other Agencies,Child Care Payments,PJ104,10/1/2018,627182,637,REVENUE,REDACTED PERSONAL INFORMATION,REDACTED PERSONAL INFORMATION
North East Lincolnshire Council,http://statistics.data.gov.uk/id/local-authority/00FC),Children & Family Services,Ass Dir - Children & Families,Head Of Child Resource & Reg,Other Agencies,Child Care Payments,PJ104,10/1/2018,627186,1709,REVENUE,REDACTED PERSONAL INFORMATION,REDACTED PERSONAL INFORMATION
North East Lincolnshire Council,http://statistics.data.gov.uk/id/local-authority/00FC),Children & Family Services,Ass Dir - Children & Families,Head Of Child Resource & Reg,Other Agencies,Child Care Payments,PJ104,10/1/2018,627189,1017,REVENUE,REDACTED PERSONAL INFORMATION,REDACTED PERSONAL INFORMATION
North East Lincolnshire Council,http://statistics.data.gov.uk/id/local-authority/00FC),Children & Family Services,Ass Dir - Children & Families,Head Of Child Resource & Reg,Other Agencies,Child Care Payments,PJ104,10/1/2018,627191,692,REVENUE,REDACTED PERSONAL INFORMATION,REDACTED PERSONAL INFORMATION
North East Lincolnshire Council,http://statistics.data.gov.uk/id/local-authority/00FC),Children & Family Services,Ass Dir - Children & Families,Head Of Child Resource & Reg,Other Agencies,Child Care Payments,PJ104,10/1/2018,627193,373,REVENUE,REDACTED PERSONAL INFORMATION,REDACTED PERSONAL INFORMATION
North East Lincolnshire Council,http://statistics.data.gov.uk/id/local-authority/00FC),Children & Family Services,Ass Dir - Children & Families,Head Of Child Resource & Reg,Other Agencies,Child Care Payments,PJ104,10/1/2018,627194,373,REVENUE,REDACTED PERSONAL INFORMATION,REDACTED PERSONAL INFORMATION
North East Lincolnshire Council,http://statistics.data.gov.uk/id/local-authority/00FC),Children & Family Services,Ass Dir - Children & Families,Head Of Child Resource & Reg,Other Agencies,Child Care Payments,PJ104,10/1/2018,627196,637,REVENUE,REDACTED PERSONAL INFORMATION,REDACTED PERSONAL INFORMATION
North East Lincolnshire Council,http://statistics.data.gov.uk/id/local-authority/00FC),Children & Family Services,Ass Dir - Children & Families,Head Of Child Resource & Reg,Other Agencies,Child Care Payments,PJ104,10/1/2018,627209,1017,REVENUE,REDACTED PERSONAL INFORMATION,REDACTED PERSONAL INFORMATION
North East Lincolnshire Council,http://statistics.data.gov.uk/id/local-authority/00FC),Children & Family Services,Ass Dir - Children & Families,Head Of Child Resource & Reg,Other Agencies,Child Care Payments,PJ104,10/1/2018,627214,970,REVENUE,REDACTED PERSONAL INFORMATION,REDACTED PERSONAL INFORMATION
North East Lincolnshire Council,http://statistics.data.gov.uk/id/local-authority/00FC),Children & Family Services,Ass Dir - Children & Families,Head Of Child Resource & Reg,Other Agencies,Child Care Payments,PJ104,10/1/2018,627216,637,REVENUE,REDACTED PERSONAL INFORMATION,REDACTED PERSONAL INFORMATION
North East Lincolnshire Council,http://statistics.data.gov.uk/id/local-authority/00FC),Children & Family Services,Ass Dir - Children & Families,Head Of Child Resource & Reg,Other Agencies,Child Care Payments,PJ104,10/1/2018,627223,650,REVENUE,REDACTED PERSONAL INFORMATION,REDACTED PERSONAL INFORMATION
North East Lincolnshire Council,http://statistics.data.gov.uk/id/local-authority/00FC),Children & Family Services,Ass Dir - Children & Families,Head Of Child Resource & Reg,Other Agencies,Child Care Payments,PJ104,10/1/2018,627228,1654,REVENUE,REDACTED PERSONAL INFORMATION,REDACTED PERSONAL INFORMATION
North East Lincolnshire Council,http://statistics.data.gov.uk/id/local-authority/00FC),Children & Family Services,Ass Dir - Children & Families,Head Of Child Resource & Reg,Other Agencies,Child Care Payments,PJ104,10/1/2018,627249,395.43,REVENUE,REDACTED PERSONAL INFORMATION,REDACTED PERSONAL INFORMATION
North East Lincolnshire Council,http://statistics.data.gov.uk/id/local-authority/00FC),Children & Family Services,Ass Dir - Children & Families,Head Of Child Resource & Reg,Other Agencies,Child Care Payments,PJ104,10/1/2018,627255,346,REVENUE,REDACTED PERSONAL INFORMATION,REDACTED PERSONAL INFORMATION
North East Lincolnshire Council,http://statistics.data.gov.uk/id/local-authority/00FC),Children & Family Services,Ass Dir - Children & Families,Head Of Child Resource & Reg,Other Agencies,Child Care Payments,PJ104,10/1/2018,627268,1329,REVENUE,REDACTED PERSONAL INFORMATION,REDACTED PERSONAL INFORMATION
North East Lincolnshire Council,http://statistics.data.gov.uk/id/local-authority/00FC),Children & Family Services,Ass Dir - Children & Families,Head Of Child Resource & Reg,Other Agencies,Child Care Payments,PJ104,10/1/2018,627271,698,REVENUE,REDACTED PERSONAL INFORMATION,REDACTED PERSONAL INFORMATION
North East Lincolnshire Council,http://statistics.data.gov.uk/id/local-authority/00FC),Children & Family Services,Ass Dir - Children & Families,Head Of Child Resource & Reg,Other Agencies,Child Care Payments,PJ104,10/1/2018,627276,996,REVENUE,REDACTED PERSONAL INFORMATION,REDACTED PERSONAL INFORMATION
North East Lincolnshire Council,http://statistics.data.gov.uk/id/local-authority/00FC),Children & Family Services,Ass Dir - Children & Families,Head Of Child Resource & Reg,Other Agencies,Child Care Payments,PJ104,10/1/2018,627278,1017,REVENUE,REDACTED PERSONAL INFORMATION,REDACTED PERSONAL INFORMATION
North East Lincolnshire Council,http://statistics.data.gov.uk/id/local-authority/00FC),Children & Family Services,Ass Dir - Children & Families,Head Of Child Resource & Reg,Other Agencies,Child Care Payments,PJ104,10/1/2018,627290,996,REVENUE,REDACTED PERSONAL INFORMATION,REDACTED PERSONAL INFORMATION
North East Lincolnshire Council,http://statistics.data.gov.uk/id/local-authority/00FC),Children & Family Services,Ass Dir - Children & Families,Head Of Child Resource & Reg,Other Agencies,Child Care Payments,PJ104,10/1/2018,627297,650,REVENUE,REDACTED PERSONAL INFORMATION,REDACTED PERSONAL INFORMATION
North East Lincolnshire Council,http://statistics.data.gov.uk/id/local-authority/00FC),Children & Family Services,Ass Dir - Children & Families,Head Of Child Resource & Reg,Other Agencies,Child Care Payments,PJ104,10/1/2018,627301,1348,REVENUE,REDACTED PERSONAL INFORMATION,REDACTED PERSONAL INFORMATION
North East Lincolnshire Council,http://statistics.data.gov.uk/id/local-authority/00FC),Children & Family Services,Ass Dir - Children & Families,Head Of Child Resource & Reg,Other Agencies,Child Care Payments,PJ104,10/1/2018,627314,1017,REVENUE,REDACTED PERSONAL INFORMATION,REDACTED PERSONAL INFORMATION
North East Lincolnshire Council,http://statistics.data.gov.uk/id/local-authority/00FC),Children & Family Services,Ass Dir - Children & Families,Head Of Child Resource & Reg,Other Agencies,Child Care Payments,PJ104,10/1/2018,627317,325,REVENUE,REDACTED PERSONAL INFORMATION,REDACTED PERSONAL INFORMATION
North East Lincolnshire Council,http://statistics.data.gov.uk/id/local-authority/00FC),Children & Family Services,Ass Dir - Children & Families,Head Of Child Resource & Reg,Other Agencies,Child Care Payments,PJ104,10/1/2018,627331,996,REVENUE,REDACTED PERSONAL INFORMATION,REDACTED PERSONAL INFORMATION
North East Lincolnshire Council,http://statistics.data.gov.uk/id/local-authority/00FC),Children & Family Services,Ass Dir - Children & Families,Head Of Child Resource & Reg,Other Agencies,Child Care Payments,PJ104,10/1/2018,627336,373,REVENUE,REDACTED PERSONAL INFORMATION,REDACTED PERSONAL INFORMATION
North East Lincolnshire Council,http://statistics.data.gov.uk/id/local-authority/00FC),Children & Family Services,Ass Dir - Children & Families,Head Of Child Resource & Reg,Other Agencies,Child Care Payments,PJ104,10/1/2018,627342,650,REVENUE,REDACTED PERSONAL INFORMATION,REDACTED PERSONAL INFORMATION
North East Lincolnshire Council,http://statistics.data.gov.uk/id/local-authority/00FC),Children & Family Services,Ass Dir - Children & Families,Head Of Child Resource & Reg,Other Agencies,Child Care Payments,PJ104,10/8/2018,629077,624,REVENUE,REDACTED PERSONAL INFORMATION,REDACTED PERSONAL INFORMATION
North East Lincolnshire Council,http://statistics.data.gov.uk/id/local-authority/00FC),Children & Family Services,Ass Dir - Children & Families,Head Of Child Resource & Reg,Other Agencies,Child Care Payments,PJ104,10/8/2018,629081,637,REVENUE,REDACTED PERSONAL INFORMATION,REDACTED PERSONAL INFORMATION
North East Lincolnshire Council,http://statistics.data.gov.uk/id/local-authority/00FC),Children & Family Services,Ass Dir - Children & Families,Head Of Child Resource & Reg,Other Agencies,Child Care Payments,PJ104,10/8/2018,629102,278.58,REVENUE,REDACTED PERSONAL INFORMATION,REDACTED PERSONAL INFORMATION
North East Lincolnshire Council,http://statistics.data.gov.uk/id/local-authority/00FC),Children & Family Services,Ass Dir - Children & Families,Head Of Child Resource & Reg,Other Agencies,Child Care Payments,PJ104,10/8/2018,629120,346,REVENUE,REDACTED PERSONAL INFORMATION,REDACTED PERSONAL INFORMATION
North East Lincolnshire Council,http://statistics.data.gov.uk/id/local-authority/00FC),Children & Family Services,Ass Dir - Children & Families,Head Of Child Resource & Reg,Other Agencies,Child Care Payments,PJ104,10/8/2018,628777,671,REVENUE,REDACTED PERSONAL INFORMATION,REDACTED PERSONAL INFORMATION
North East Lincolnshire Council,http://statistics.data.gov.uk/id/local-authority/00FC),Children & Family Services,Ass Dir - Children & Families,Head Of Child Resource & Reg,Other Agencies,Child Care Payments,PJ104,10/8/2018,628778,692,REVENUE,REDACTED PERSONAL INFORMATION,REDACTED PERSONAL INFORMATION
North East Lincolnshire Council,http://statistics.data.gov.uk/id/local-authority/00FC),Children & Family Services,Ass Dir - Children & Families,Head Of Child Resource & Reg,Other Agencies,Child Care Payments,PJ104,10/8/2018,628781,949,REVENUE,REDACTED PERSONAL INFORMATION,REDACTED PERSONAL INFORMATION
North East Lincolnshire Council,http://statistics.data.gov.uk/id/local-authority/00FC),Children & Family Services,Ass Dir - Children & Families,Head Of Child Resource & Reg,Other Agencies,Child Care Payments,PJ104,10/8/2018,628782,1392.58,REVENUE,REDACTED PERSONAL INFORMATION,REDACTED PERSONAL INFORMATION
North East Lincolnshire Council,http://statistics.data.gov.uk/id/local-authority/00FC),Children & Family Services,Ass Dir - Children & Families,Head Of Child Resource & Reg,Other Agencies,Child Care Payments,PJ104,10/8/2018,629139,592.42,REVENUE,REDACTED PERSONAL INFORMATION,REDACTED PERSONAL INFORMATION
North East Lincolnshire Council,http://statistics.data.gov.uk/id/local-authority/00FC),Children & Family Services,Ass Dir - Children & Families,Head Of Child Resource & Reg,Other Agencies,Child Care Payments,PJ104,10/8/2018,628785,325,REVENUE,REDACTED PERSONAL INFORMATION,REDACTED PERSONAL INFORMATION
North East Lincolnshire Council,http://statistics.data.gov.uk/id/local-authority/00FC),Children & Family Services,Ass Dir - Children & Families,Head Of Child Resource & Reg,Other Agencies,Child Care Payments,PJ104,10/8/2018,628786,346,REVENUE,REDACTED PERSONAL INFORMATION,REDACTED PERSONAL INFORMATION
North East Lincolnshire Council,http://statistics.data.gov.uk/id/local-authority/00FC),Children & Family Services,Ass Dir - Children & Families,Head Of Child Resource & Reg,Other Agencies,Child Care Payments,PJ104,10/8/2018,628789,692,REVENUE,REDACTED PERSONAL INFORMATION,REDACTED PERSONAL INFORMATION
North East Lincolnshire Council,http://statistics.data.gov.uk/id/local-authority/00FC),Children & Family Services,Ass Dir - Children & Families,Head Of Child Resource & Reg,Other Agencies,Child Care Payments,PJ104,10/8/2018,628790,312,REVENUE,REDACTED PERSONAL INFORMATION,REDACTED PERSONAL INFORMATION
North East Lincolnshire Council,http://statistics.data.gov.uk/id/local-authority/00FC),Children & Family Services,Ass Dir - Children & Families,Head Of Child Resource & Reg,Other Agencies,Child Care Payments,PJ104,10/8/2018,628792,346,REVENUE,REDACTED PERSONAL INFORMATION,REDACTED PERSONAL INFORMATION
North East Lincolnshire Council,http://statistics.data.gov.uk/id/local-authority/00FC),Children & Family Services,Ass Dir - Children & Families,Head Of Child Resource & Reg,Other Agencies,Child Care Payments,PJ104,10/8/2018,628793,383.42,REVENUE,REDACTED PERSONAL INFORMATION,REDACTED PERSONAL INFORMATION
North East Lincolnshire Council,http://statistics.data.gov.uk/id/local-authority/00FC),Children & Family Services,Ass Dir - Children & Families,Head Of Child Resource & Reg,Other Agencies,Child Care Payments,PJ104,10/8/2018,628796,1023,REVENUE,REDACTED PERSONAL INFORMATION,REDACTED PERSONAL INFORMATION
North East Lincolnshire Council,http://statistics.data.gov.uk/id/local-authority/00FC),Children & Family Services,Ass Dir - Children & Families,Head Of Child Resource & Reg,Other Agencies,Child Care Payments,PJ104,10/8/2018,628800,996,REVENUE,REDACTED PERSONAL INFORMATION,REDACTED PERSONAL INFORMATION
North East Lincolnshire Council,http://statistics.data.gov.uk/id/local-authority/00FC),Children & Family Services,Ass Dir - Children & Families,Head Of Child Resource & Reg,Other Agencies,Child Care Payments,PJ104,10/8/2018,628802,671,REVENUE,REDACTED PERSONAL INFORMATION,REDACTED PERSONAL INFORMATION
North East Lincolnshire Council,http://statistics.data.gov.uk/id/local-authority/00FC),Children & Family Services,Ass Dir - Children & Families,Head Of Child Resource & Reg,Other Agencies,Child Care Payments,PJ104,10/8/2018,628803,637,REVENUE,REDACTED PERSONAL INFORMATION,REDACTED PERSONAL INFORMATION
North East Lincolnshire Council,http://statistics.data.gov.uk/id/local-authority/00FC),Children & Family Services,Ass Dir - Children & Families,Head Of Child Resource & Reg,Other Agencies,Child Care Payments,PJ104,10/8/2018,628805,1038,REVENUE,REDACTED PERSONAL INFORMATION,REDACTED PERSONAL INFORMATION
North East Lincolnshire Council,http://statistics.data.gov.uk/id/local-authority/00FC),Children & Family Services,Ass Dir - Children & Families,Head Of Child Resource & Reg,Other Agencies,Child Care Payments,PJ104,10/8/2018,628806,650,REVENUE,REDACTED PERSONAL INFORMATION,REDACTED PERSONAL INFORMATION
North East Lincolnshire Council,http://statistics.data.gov.uk/id/local-authority/00FC),Children & Family Services,Ass Dir - Children & Families,Head Of Child Resource & Reg,Other Agencies,Child Care Payments,PJ104,10/8/2018,628808,698,REVENUE,REDACTED PERSONAL INFORMATION,REDACTED PERSONAL INFORMATION
North East Lincolnshire Council,http://statistics.data.gov.uk/id/local-authority/00FC),Children & Family Services,Ass Dir - Children & Families,Head Of Child Resource & Reg,Other Agencies,Child Care Payments,PJ104,10/8/2018,628820,637,REVENUE,REDACTED PERSONAL INFORMATION,REDACTED PERSONAL INFORMATION
North East Lincolnshire Council,http://statistics.data.gov.uk/id/local-authority/00FC),Children & Family Services,Ass Dir - Children & Families,Head Of Child Resource & Reg,Other Agencies,Child Care Payments,PJ104,10/8/2018,628824,1709,REVENUE,REDACTED PERSONAL INFORMATION,REDACTED PERSONAL INFORMATION
North East Lincolnshire Council,http://statistics.data.gov.uk/id/local-authority/00FC),Children & Family Services,Ass Dir - Children & Families,Head Of Child Resource & Reg,Other Agencies,Child Care Payments,PJ104,10/8/2018,628827,1017,REVENUE,REDACTED PERSONAL INFORMATION,REDACTED PERSONAL INFORMATION
North East Lincolnshire Council,http://statistics.data.gov.uk/id/local-authority/00FC),Children & Family Services,Ass Dir - Children & Families,Head Of Child Resource & Reg,Other Agencies,Child Care Payments,PJ104,10/8/2018,628829,692,REVENUE,REDACTED PERSONAL INFORMATION,REDACTED PERSONAL INFORMATION
North East Lincolnshire Council,http://statistics.data.gov.uk/id/local-authority/00FC),Children & Family Services,Ass Dir - Children & Families,Head Of Child Resource & Reg,Other Agencies,Child Care Payments,PJ104,10/8/2018,628831,373,REVENUE,REDACTED PERSONAL INFORMATION,REDACTED PERSONAL INFORMATION
North East Lincolnshire Council,http://statistics.data.gov.uk/id/local-authority/00FC),Children & Family Services,Ass Dir - Children & Families,Head Of Child Resource & Reg,Other Agencies,Child Care Payments,PJ104,10/8/2018,628832,373,REVENUE,REDACTED PERSONAL INFORMATION,REDACTED PERSONAL INFORMATION
North East Lincolnshire Council,http://statistics.data.gov.uk/id/local-authority/00FC),Children & Family Services,Ass Dir - Children & Families,Head Of Child Resource & Reg,Other Agencies,Child Care Payments,PJ104,10/8/2018,628834,637,REVENUE,REDACTED PERSONAL INFORMATION,REDACTED PERSONAL INFORMATION
North East Lincolnshire Council,http://statistics.data.gov.uk/id/local-authority/00FC),Children & Family Services,Ass Dir - Children & Families,Head Of Child Resource & Reg,Other Agencies,Child Care Payments,PJ104,10/8/2018,628847,1017,REVENUE,REDACTED PERSONAL INFORMATION,REDACTED PERSONAL INFORMATION
North East Lincolnshire Council,http://statistics.data.gov.uk/id/local-authority/00FC),Children & Family Services,Ass Dir - Children & Families,Head Of Child Resource & Reg,Other Agencies,Child Care Payments,PJ104,10/8/2018,628852,970,REVENUE,REDACTED PERSONAL INFORMATION,REDACTED PERSONAL INFORMATION
North East Lincolnshire Council,http://statistics.data.gov.uk/id/local-authority/00FC),Children & Family Services,Ass Dir - Children & Families,Head Of Child Resource & Reg,Other Agencies,Child Care Payments,PJ104,10/8/2018,628855,637,REVENUE,REDACTED PERSONAL INFORMATION,REDACTED PERSONAL INFORMATION
North East Lincolnshire Council,http://statistics.data.gov.uk/id/local-authority/00FC),Children & Family Services,Ass Dir - Children & Families,Head Of Child Resource & Reg,Other Agencies,Child Care Payments,PJ104,10/8/2018,628861,650,REVENUE,REDACTED PERSONAL INFORMATION,REDACTED PERSONAL INFORMATION
North East Lincolnshire Council,http://statistics.data.gov.uk/id/local-authority/00FC),Children & Family Services,Ass Dir - Children & Families,Head Of Child Resource & Reg,Other Agencies,Child Care Payments,PJ104,10/8/2018,628866,1654,REVENUE,REDACTED PERSONAL INFORMATION,REDACTED PERSONAL INFORMATION
North East Lincolnshire Council,http://statistics.data.gov.uk/id/local-authority/00FC),Children & Family Services,Ass Dir - Children & Families,Head Of Child Resource & Reg,Other Agencies,Child Care Payments,PJ104,10/8/2018,628886,1367.42,REVENUE,REDACTED PERSONAL INFORMATION,REDACTED PERSONAL INFORMATION
North East Lincolnshire Council,http://statistics.data.gov.uk/id/local-authority/00FC),Children & Family Services,Ass Dir - Children & Families,Head Of Child Resource & Reg,Other Agencies,Child Care Payments,PJ104,10/8/2018,628892,346,REVENUE,REDACTED PERSONAL INFORMATION,REDACTED PERSONAL INFORMATION
North East Lincolnshire Council,http://statistics.data.gov.uk/id/local-authority/00FC),Children & Family Services,Ass Dir - Children & Families,Head Of Child Resource & Reg,Other Agencies,Child Care Payments,PJ104,10/8/2018,628906,1329,REVENUE,REDACTED PERSONAL INFORMATION,REDACTED PERSONAL INFORMATION
North East Lincolnshire Council,http://statistics.data.gov.uk/id/local-authority/00FC),Children & Family Services,Ass Dir - Children & Families,Head Of Child Resource & Reg,Other Agencies,Child Care Payments,PJ104,10/8/2018,628909,698,REVENUE,REDACTED PERSONAL INFORMATION,REDACTED PERSONAL INFORMATION
North East Lincolnshire Council,http://statistics.data.gov.uk/id/local-authority/00FC),Children & Family Services,Ass Dir - Children & Families,Head Of Child Resource & Reg,Other Agencies,Child Care Payments,PJ104,10/8/2018,628914,996,REVENUE,REDACTED PERSONAL INFORMATION,REDACTED PERSONAL INFORMATION
North East Lincolnshire Council,http://statistics.data.gov.uk/id/local-authority/00FC),Children & Family Services,Ass Dir - Children & Families,Head Of Child Resource & Reg,Other Agencies,Child Care Payments,PJ104,10/8/2018,628916,1017,REVENUE,REDACTED PERSONAL INFORMATION,REDACTED PERSONAL INFORMATION
North East Lincolnshire Council,http://statistics.data.gov.uk/id/local-authority/00FC),Children & Family Services,Ass Dir - Children & Families,Head Of Child Resource & Reg,Other Agencies,Child Care Payments,PJ104,10/8/2018,628928,996,REVENUE,REDACTED PERSONAL INFORMATION,REDACTED PERSONAL INFORMATION
North East Lincolnshire Council,http://statistics.data.gov.uk/id/local-authority/00FC),Children & Family Services,Ass Dir - Children & Families,Head Of Child Resource & Reg,Other Agencies,Child Care Payments,PJ104,10/8/2018,628935,928.57,REVENUE,REDACTED PERSONAL INFORMATION,REDACTED PERSONAL INFORMATION
North East Lincolnshire Council,http://statistics.data.gov.uk/id/local-authority/00FC),Children & Family Services,Ass Dir - Children & Families,Head Of Child Resource & Reg,Other Agencies,Child Care Payments,PJ104,10/8/2018,628939,1348,REVENUE,REDACTED PERSONAL INFORMATION,REDACTED PERSONAL INFORMATION
North East Lincolnshire Council,http://statistics.data.gov.uk/id/local-authority/00FC),Children & Family Services,Ass Dir - Children & Families,Head Of Child Resource & Reg,Other Agencies,Child Care Payments,PJ104,10/8/2018,628951,1017,REVENUE,REDACTED PERSONAL INFORMATION,REDACTED PERSONAL INFORMATION
North East Lincolnshire Council,http://statistics.data.gov.uk/id/local-authority/00FC),Children & Family Services,Ass Dir - Children & Families,Head Of Child Resource & Reg,Other Agencies,Child Care Payments,PJ104,10/8/2018,628954,325,REVENUE,REDACTED PERSONAL INFORMATION,REDACTED PERSONAL INFORMATION
North East Lincolnshire Council,http://statistics.data.gov.uk/id/local-authority/00FC),Children & Family Services,Ass Dir - Children & Families,Head Of Child Resource & Reg,Other Agencies,Child Care Payments,PJ104,10/8/2018,628968,996,REVENUE,REDACTED PERSONAL INFORMATION,REDACTED PERSONAL INFORMATION
North East Lincolnshire Council,http://statistics.data.gov.uk/id/local-authority/00FC),Children & Family Services,Ass Dir - Children & Families,Head Of Child Resource & Reg,Other Agencies,Child Care Payments,PJ104,10/8/2018,628973,471.86,REVENUE,REDACTED PERSONAL INFORMATION,REDACTED PERSONAL INFORMATION
North East Lincolnshire Council,http://statistics.data.gov.uk/id/local-authority/00FC),Children & Family Services,Ass Dir - Children & Families,Head Of Child Resource & Reg,Other Agencies,Child Care Payments,PJ104,10/8/2018,628979,783.71,REVENUE,REDACTED PERSONAL INFORMATION,REDACTED PERSONAL INFORMATION
North East Lincolnshire Council,http://statistics.data.gov.uk/id/local-authority/00FC),Children & Family Services,Ass Dir - Children & Families,Head Of Child Resource & Reg,Other Agencies,Child Care Payments,PJ104,10/8/2018,628993,1017,REVENUE,REDACTED PERSONAL INFORMATION,REDACTED PERSONAL INFORMATION
North East Lincolnshire Council,http://statistics.data.gov.uk/id/local-authority/00FC),Children & Family Services,Ass Dir - Children & Families,Head Of Child Resource & Reg,Other Agencies,Child Care Payments,PJ104,10/8/2018,628994,692,REVENUE,REDACTED PERSONAL INFORMATION,REDACTED PERSONAL INFORMATION
North East Lincolnshire Council,http://statistics.data.gov.uk/id/local-authority/00FC),Children & Family Services,Ass Dir - Children & Families,Head Of Child Resource & Reg,Other Agencies,Child Care Payments,PJ104,10/8/2018,628996,783.71,REVENUE,REDACTED PERSONAL INFORMATION,REDACTED PERSONAL INFORMATION
North East Lincolnshire Council,http://statistics.data.gov.uk/id/local-authority/00FC),Children & Family Services,Ass Dir - Children & Families,Head Of Child Resource & Reg,Other Agencies,Child Care Payments,PJ104,10/8/2018,629001,650,REVENUE,REDACTED PERSONAL INFORMATION,REDACTED PERSONAL INFORMATION
North East Lincolnshire Council,http://statistics.data.gov.uk/id/local-authority/00FC),Children & Family Services,Ass Dir - Children & Families,Head Of Child Resource & Reg,Other Agencies,Child Care Payments,PJ104,10/8/2018,629002,312,REVENUE,REDACTED PERSONAL INFORMATION,REDACTED PERSONAL INFORMATION
North East Lincolnshire Council,http://statistics.data.gov.uk/id/local-authority/00FC),Children & Family Services,Ass Dir - Children & Families,Head Of Child Resource & Reg,Other Agencies,Child Care Payments,PJ104,10/8/2018,629009,637,REVENUE,REDACTED PERSONAL INFORMATION,REDACTED PERSONAL INFORMATION
North East Lincolnshire Council,http://statistics.data.gov.uk/id/local-authority/00FC),Children & Family Services,Ass Dir - Children & Families,Head Of Child Resource & Reg,Other Agencies,Child Care Payments,PJ104,10/8/2018,629013,975,REVENUE,REDACTED PERSONAL INFORMATION,REDACTED PERSONAL INFORMATION
North East Lincolnshire Council,http://statistics.data.gov.uk/id/local-authority/00FC),Children & Family Services,Ass Dir - Children & Families,Head Of Child Resource & Reg,Other Agencies,Child Care Payments,PJ104,10/8/2018,629021,1004,REVENUE,REDACTED PERSONAL INFORMATION,REDACTED PERSONAL INFORMATION
North East Lincolnshire Council,http://statistics.data.gov.uk/id/local-authority/00FC),Children & Family Services,Ass Dir - Children & Families,Head Of Child Resource & Reg,Other Agencies,Child Care Payments,PJ104,10/8/2018,629041,650,REVENUE,REDACTED PERSONAL INFORMATION,REDACTED PERSONAL INFORMATION
North East Lincolnshire Council,http://statistics.data.gov.uk/id/local-authority/00FC),Children & Family Services,Ass Dir - Children & Families,Head Of Child Resource & Reg,Other Agencies,Child Care Payments,PJ104,10/8/2018,629042,996,REVENUE,REDACTED PERSONAL INFORMATION,REDACTED PERSONAL INFORMATION
North East Lincolnshire Council,http://statistics.data.gov.uk/id/local-authority/00FC),Children & Family Services,Ass Dir - Children & Families,Head Of Child Resource & Reg,Other Agencies,Child Care Payments,PJ104,10/8/2018,629065,692,REVENUE,REDACTED PERSONAL INFORMATION,REDACTED PERSONAL INFORMATION
North East Lincolnshire Council,http://statistics.data.gov.uk/id/local-authority/00FC),Children & Family Services,Ass Dir - Children & Families,Head Of Child Resource & Reg,Other Agencies,Child Care Payments,PJ104,10/8/2018,629066,325,REVENUE,REDACTED PERSONAL INFORMATION,REDACTED PERSONAL INFORMATION
North East Lincolnshire Council,http://statistics.data.gov.uk/id/local-authority/00FC),Children & Family Services,Ass Dir - Children & Families,Head Of Child Resource & Reg,Other Agencies,Child Care Payments,PJ104,10/15/2018,630758,996,REVENUE,REDACTED PERSONAL INFORMATION,REDACTED PERSONAL INFORMATION
North East Lincolnshire Council,http://statistics.data.gov.uk/id/local-authority/00FC),Children & Family Services,Ass Dir - Children & Families,Head Of Child Resource & Reg,Other Agencies,Child Care Payments,PJ104,10/15/2018,630760,1017,REVENUE,REDACTED PERSONAL INFORMATION,REDACTED PERSONAL INFORMATION
North East Lincolnshire Council,http://statistics.data.gov.uk/id/local-authority/00FC),Children & Family Services,Ass Dir - Children & Families,Head Of Child Resource & Reg,Other Agencies,Child Care Payments,PJ104,10/15/2018,630772,999,REVENUE,REDACTED PERSONAL INFORMATION,REDACTED PERSONAL INFORMATION
North East Lincolnshire Council,http://statistics.data.gov.uk/id/local-authority/00FC),Children & Family Services,Ass Dir - Children & Families,Head Of Child Resource & Reg,Other Agencies,Child Care Payments,PJ104,10/15/2018,630779,650,REVENUE,REDACTED PERSONAL INFORMATION,REDACTED PERSONAL INFORMATION
North East Lincolnshire Council,http://statistics.data.gov.uk/id/local-authority/00FC),Children & Family Services,Ass Dir - Children & Families,Head Of Child Resource & Reg,Other Agencies,Child Care Payments,PJ104,10/15/2018,630783,1348,REVENUE,REDACTED PERSONAL INFORMATION,REDACTED PERSONAL INFORMATION
North East Lincolnshire Council,http://statistics.data.gov.uk/id/local-authority/00FC),Children & Family Services,Ass Dir - Children & Families,Head Of Child Resource & Reg,Other Agencies,Child Care Payments,PJ104,10/15/2018,630795,1017,REVENUE,REDACTED PERSONAL INFORMATION,REDACTED PERSONAL INFORMATION
North East Lincolnshire Council,http://statistics.data.gov.uk/id/local-authority/00FC),Children & Family Services,Ass Dir - Children & Families,Head Of Child Resource & Reg,Other Agencies,Child Care Payments,PJ104,10/15/2018,630798,325,REVENUE,REDACTED PERSONAL INFORMATION,REDACTED PERSONAL INFORMATION
North East Lincolnshire Council,http://statistics.data.gov.uk/id/local-authority/00FC),Children & Family Services,Ass Dir - Children & Families,Head Of Child Resource & Reg,Other Agencies,Child Care Payments,PJ104,10/15/2018,630812,996,REVENUE,REDACTED PERSONAL INFORMATION,REDACTED PERSONAL INFORMATION
North East Lincolnshire Council,http://statistics.data.gov.uk/id/local-authority/00FC),Children & Family Services,Ass Dir - Children & Families,Head Of Child Resource & Reg,Other Agencies,Child Care Payments,PJ104,10/15/2018,630817,373,REVENUE,REDACTED PERSONAL INFORMATION,REDACTED PERSONAL INFORMATION
North East Lincolnshire Council,http://statistics.data.gov.uk/id/local-authority/00FC),Children & Family Services,Ass Dir - Children & Families,Head Of Child Resource & Reg,Other Agencies,Child Care Payments,PJ104,10/15/2018,630823,650,REVENUE,REDACTED PERSONAL INFORMATION,REDACTED PERSONAL INFORMATION
North East Lincolnshire Council,http://statistics.data.gov.uk/id/local-authority/00FC),Children & Family Services,Ass Dir - Children & Families,Head Of Child Resource & Reg,Other Agencies,Child Care Payments,PJ104,10/15/2018,630837,1017,REVENUE,REDACTED PERSONAL INFORMATION,REDACTED PERSONAL INFORMATION
North East Lincolnshire Council,http://statistics.data.gov.uk/id/local-authority/00FC),Children & Family Services,Ass Dir - Children & Families,Head Of Child Resource & Reg,Other Agencies,Child Care Payments,PJ104,10/15/2018,630838,692,REVENUE,REDACTED PERSONAL INFORMATION,REDACTED PERSONAL INFORMATION
North East Lincolnshire Council,http://statistics.data.gov.uk/id/local-authority/00FC),Children & Family Services,Ass Dir - Children & Families,Head Of Child Resource & Reg,Other Agencies,Child Care Payments,PJ104,10/15/2018,630840,650,REVENUE,REDACTED PERSONAL INFORMATION,REDACTED PERSONAL INFORMATION
North East Lincolnshire Council,http://statistics.data.gov.uk/id/local-authority/00FC),Children & Family Services,Ass Dir - Children & Families,Head Of Child Resource & Reg,Other Agencies,Child Care Payments,PJ104,10/15/2018,630845,650,REVENUE,REDACTED PERSONAL INFORMATION,REDACTED PERSONAL INFORMATION
North East Lincolnshire Council,http://statistics.data.gov.uk/id/local-authority/00FC),Children & Family Services,Ass Dir - Children & Families,Head Of Child Resource & Reg,Other Agencies,Child Care Payments,PJ104,10/15/2018,630846,312,REVENUE,REDACTED PERSONAL INFORMATION,REDACTED PERSONAL INFORMATION
North East Lincolnshire Council,http://statistics.data.gov.uk/id/local-authority/00FC),Children & Family Services,Ass Dir - Children & Families,Head Of Child Resource & Reg,Other Agencies,Child Care Payments,PJ104,10/15/2018,630853,637,REVENUE,REDACTED PERSONAL INFORMATION,REDACTED PERSONAL INFORMATION
North East Lincolnshire Council,http://statistics.data.gov.uk/id/local-authority/00FC),Children & Family Services,Ass Dir - Children & Families,Head Of Child Resource & Reg,Other Agencies,Child Care Payments,PJ104,10/15/2018,630857,975,REVENUE,REDACTED PERSONAL INFORMATION,REDACTED PERSONAL INFORMATION
North East Lincolnshire Council,http://statistics.data.gov.uk/id/local-authority/00FC),Children & Family Services,Ass Dir - Children & Families,Head Of Child Resource & Reg,Other Agencies,Child Care Payments,PJ104,10/15/2018,630865,1004,REVENUE,REDACTED PERSONAL INFORMATION,REDACTED PERSONAL INFORMATION
North East Lincolnshire Council,http://statistics.data.gov.uk/id/local-authority/00FC),Children & Family Services,Ass Dir - Children & Families,Head Of Child Resource & Reg,Other Agencies,Child Care Payments,PJ104,10/15/2018,630885,650,REVENUE,REDACTED PERSONAL INFORMATION,REDACTED PERSONAL INFORMATION
North East Lincolnshire Council,http://statistics.data.gov.uk/id/local-authority/00FC),Children & Family Services,Ass Dir - Children & Families,Head Of Child Resource & Reg,Other Agencies,Child Care Payments,PJ104,10/15/2018,630886,996,REVENUE,REDACTED PERSONAL INFORMATION,REDACTED PERSONAL INFORMATION
North East Lincolnshire Council,http://statistics.data.gov.uk/id/local-authority/00FC),Children & Family Services,Ass Dir - Children & Families,Head Of Child Resource & Reg,Other Agencies,Child Care Payments,PJ104,10/15/2018,630908,692,REVENUE,REDACTED PERSONAL INFORMATION,REDACTED PERSONAL INFORMATION
North East Lincolnshire Council,http://statistics.data.gov.uk/id/local-authority/00FC),Children & Family Services,Ass Dir - Children & Families,Head Of Child Resource & Reg,Other Agencies,Child Care Payments,PJ104,10/15/2018,630909,325,REVENUE,REDACTED PERSONAL INFORMATION,REDACTED PERSONAL INFORMATION
North East Lincolnshire Council,http://statistics.data.gov.uk/id/local-authority/00FC),Children & Family Services,Ass Dir - Children & Families,Head Of Child Resource & Reg,Other Agencies,Child Care Payments,PJ104,10/15/2018,630920,624,REVENUE,REDACTED PERSONAL INFORMATION,REDACTED PERSONAL INFORMATION
North East Lincolnshire Council,http://statistics.data.gov.uk/id/local-authority/00FC),Children & Family Services,Ass Dir - Children & Families,Head Of Child Resource & Reg,Other Agencies,Child Care Payments,PJ104,10/15/2018,630923,637,REVENUE,REDACTED PERSONAL INFORMATION,REDACTED PERSONAL INFORMATION
North East Lincolnshire Council,http://statistics.data.gov.uk/id/local-authority/00FC),Children & Family Services,Ass Dir - Children & Families,Head Of Child Resource & Reg,Other Agencies,Child Care Payments,PJ104,10/15/2018,630960,346,REVENUE,REDACTED PERSONAL INFORMATION,REDACTED PERSONAL INFORMATION
North East Lincolnshire Council,http://statistics.data.gov.uk/id/local-authority/00FC),Children & Family Services,Ass Dir - Children & Families,Head Of Child Resource & Reg,Other Agencies,Child Care Payments,PJ104,10/15/2018,630979,325,REVENUE,REDACTED PERSONAL INFORMATION,REDACTED PERSONAL INFORMATION
North East Lincolnshire Council,http://statistics.data.gov.uk/id/local-authority/00FC),Children & Family Services,Ass Dir - Children & Families,Head Of Child Resource & Reg,Other Agencies,Child Care Payments,PJ104,10/15/2018,630620,671,REVENUE,REDACTED PERSONAL INFORMATION,REDACTED PERSONAL INFORMATION
North East Lincolnshire Council,http://statistics.data.gov.uk/id/local-authority/00FC),Children & Family Services,Ass Dir - Children & Families,Head Of Child Resource & Reg,Other Agencies,Child Care Payments,PJ104,10/15/2018,630621,939.14,REVENUE,REDACTED PERSONAL INFORMATION,REDACTED PERSONAL INFORMATION
North East Lincolnshire Council,http://statistics.data.gov.uk/id/local-authority/00FC),Children & Family Services,Ass Dir - Children & Families,Head Of Child Resource & Reg,Other Agencies,Child Care Payments,PJ104,10/15/2018,630622,692,REVENUE,REDACTED PERSONAL INFORMATION,REDACTED PERSONAL INFORMATION
North East Lincolnshire Council,http://statistics.data.gov.uk/id/local-authority/00FC),Children & Family Services,Ass Dir - Children & Families,Head Of Child Resource & Reg,Other Agencies,Child Care Payments,PJ104,10/15/2018,630625,949,REVENUE,REDACTED PERSONAL INFORMATION,REDACTED PERSONAL INFORMATION
North East Lincolnshire Council,http://statistics.data.gov.uk/id/local-authority/00FC),Children & Family Services,Ass Dir - Children & Families,Head Of Child Resource & Reg,Other Agencies,Child Care Payments,PJ104,10/15/2018,630628,325,REVENUE,REDACTED PERSONAL INFORMATION,REDACTED PERSONAL INFORMATION
North East Lincolnshire Council,http://statistics.data.gov.uk/id/local-authority/00FC),Children & Family Services,Ass Dir - Children & Families,Head Of Child Resource & Reg,Other Agencies,Child Care Payments,PJ104,10/15/2018,630629,346,REVENUE,REDACTED PERSONAL INFORMATION,REDACTED PERSONAL INFORMATION
North East Lincolnshire Council,http://statistics.data.gov.uk/id/local-authority/00FC),Children & Family Services,Ass Dir - Children & Families,Head Of Child Resource & Reg,Other Agencies,Child Care Payments,PJ104,10/15/2018,630632,692,REVENUE,REDACTED PERSONAL INFORMATION,REDACTED PERSONAL INFORMATION
North East Lincolnshire Council,http://statistics.data.gov.uk/id/local-authority/00FC),Children & Family Services,Ass Dir - Children & Families,Head Of Child Resource & Reg,Other Agencies,Child Care Payments,PJ104,10/15/2018,630633,312,REVENUE,REDACTED PERSONAL INFORMATION,REDACTED PERSONAL INFORMATION
North East Lincolnshire Council,http://statistics.data.gov.uk/id/local-authority/00FC),Children & Family Services,Ass Dir - Children & Families,Head Of Child Resource & Reg,Other Agencies,Child Care Payments,PJ104,10/15/2018,630635,346,REVENUE,REDACTED PERSONAL INFORMATION,REDACTED PERSONAL INFORMATION
North East Lincolnshire Council,http://statistics.data.gov.uk/id/local-authority/00FC),Children & Family Services,Ass Dir - Children & Families,Head Of Child Resource & Reg,Other Agencies,Child Care Payments,PJ104,10/15/2018,630639,1023,REVENUE,REDACTED PERSONAL INFORMATION,REDACTED PERSONAL INFORMATION
North East Lincolnshire Council,http://statistics.data.gov.uk/id/local-authority/00FC),Children & Family Services,Ass Dir - Children & Families,Head Of Child Resource & Reg,Other Agencies,Child Care Payments,PJ104,10/15/2018,630643,996,REVENUE,REDACTED PERSONAL INFORMATION,REDACTED PERSONAL INFORMATION
North East Lincolnshire Council,http://statistics.data.gov.uk/id/local-authority/00FC),Children & Family Services,Ass Dir - Children & Families,Head Of Child Resource & Reg,Other Agencies,Child Care Payments,PJ104,10/15/2018,630645,671,REVENUE,REDACTED PERSONAL INFORMATION,REDACTED PERSONAL INFORMATION
North East Lincolnshire Council,http://statistics.data.gov.uk/id/local-authority/00FC),Children & Family Services,Ass Dir - Children & Families,Head Of Child Resource & Reg,Other Agencies,Child Care Payments,PJ104,10/15/2018,630646,637,REVENUE,REDACTED PERSONAL INFORMATION,REDACTED PERSONAL INFORMATION
North East Lincolnshire Council,http://statistics.data.gov.uk/id/local-authority/00FC),Children & Family Services,Ass Dir - Children & Families,Head Of Child Resource & Reg,Other Agencies,Child Care Payments,PJ104,10/15/2018,630648,1038,REVENUE,REDACTED PERSONAL INFORMATION,REDACTED PERSONAL INFORMATION
North East Lincolnshire Council,http://statistics.data.gov.uk/id/local-authority/00FC),Children & Family Services,Ass Dir - Children & Families,Head Of Child Resource & Reg,Other Agencies,Child Care Payments,PJ104,10/15/2018,630649,650,REVENUE,REDACTED PERSONAL INFORMATION,REDACTED PERSONAL INFORMATION
North East Lincolnshire Council,http://statistics.data.gov.uk/id/local-authority/00FC),Children & Family Services,Ass Dir - Children & Families,Head Of Child Resource & Reg,Other Agencies,Child Care Payments,PJ104,10/15/2018,630651,698,REVENUE,REDACTED PERSONAL INFORMATION,REDACTED PERSONAL INFORMATION
North East Lincolnshire Council,http://statistics.data.gov.uk/id/local-authority/00FC),Children & Family Services,Ass Dir - Children & Families,Head Of Child Resource & Reg,Other Agencies,Child Care Payments,PJ104,10/15/2018,630663,637,REVENUE,REDACTED PERSONAL INFORMATION,REDACTED PERSONAL INFORMATION
North East Lincolnshire Council,http://statistics.data.gov.uk/id/local-authority/00FC),Children & Family Services,Ass Dir - Children & Families,Head Of Child Resource & Reg,Other Agencies,Child Care Payments,PJ104,10/15/2018,630667,1716.71,REVENUE,REDACTED PERSONAL INFORMATION,REDACTED PERSONAL INFORMATION
North East Lincolnshire Council,http://statistics.data.gov.uk/id/local-authority/00FC),Children & Family Services,Ass Dir - Children & Families,Head Of Child Resource & Reg,Other Agencies,Child Care Payments,PJ104,10/15/2018,630670,1017,REVENUE,REDACTED PERSONAL INFORMATION,REDACTED PERSONAL INFORMATION
North East Lincolnshire Council,http://statistics.data.gov.uk/id/local-authority/00FC),Children & Family Services,Ass Dir - Children & Families,Head Of Child Resource & Reg,Other Agencies,Child Care Payments,PJ104,10/15/2018,630672,346,REVENUE,REDACTED PERSONAL INFORMATION,REDACTED PERSONAL INFORMATION
North East Lincolnshire Council,http://statistics.data.gov.uk/id/local-authority/00FC),Children & Family Services,Ass Dir - Children & Families,Head Of Child Resource & Reg,Other Agencies,Child Care Payments,PJ104,10/15/2018,630674,373,REVENUE,REDACTED PERSONAL INFORMATION,REDACTED PERSONAL INFORMATION
North East Lincolnshire Council,http://statistics.data.gov.uk/id/local-authority/00FC),Children & Family Services,Ass Dir - Children & Families,Head Of Child Resource & Reg,Other Agencies,Child Care Payments,PJ104,10/15/2018,630675,373,REVENUE,REDACTED PERSONAL INFORMATION,REDACTED PERSONAL INFORMATION
North East Lincolnshire Council,http://statistics.data.gov.uk/id/local-authority/00FC),Children & Family Services,Ass Dir - Children & Families,Head Of Child Resource & Reg,Other Agencies,Child Care Payments,PJ104,10/15/2018,630677,637,REVENUE,REDACTED PERSONAL INFORMATION,REDACTED PERSONAL INFORMATION
North East Lincolnshire Council,http://statistics.data.gov.uk/id/local-authority/00FC),Children & Family Services,Ass Dir - Children & Families,Head Of Child Resource & Reg,Other Agencies,Child Care Payments,PJ104,10/15/2018,630690,1017,REVENUE,REDACTED PERSONAL INFORMATION,REDACTED PERSONAL INFORMATION
North East Lincolnshire Council,http://statistics.data.gov.uk/id/local-authority/00FC),Children & Family Services,Ass Dir - Children & Families,Head Of Child Resource & Reg,Other Agencies,Child Care Payments,PJ104,10/15/2018,630695,970,REVENUE,REDACTED PERSONAL INFORMATION,REDACTED PERSONAL INFORMATION
North East Lincolnshire Council,http://statistics.data.gov.uk/id/local-authority/00FC),Children & Family Services,Ass Dir - Children & Families,Head Of Child Resource & Reg,Other Agencies,Child Care Payments,PJ104,10/15/2018,630698,637,REVENUE,REDACTED PERSONAL INFORMATION,REDACTED PERSONAL INFORMATION
North East Lincolnshire Council,http://statistics.data.gov.uk/id/local-authority/00FC),Children & Family Services,Ass Dir - Children & Families,Head Of Child Resource & Reg,Other Agencies,Child Care Payments,PJ104,10/15/2018,630705,650,REVENUE,REDACTED PERSONAL INFORMATION,REDACTED PERSONAL INFORMATION
North East Lincolnshire Council,http://statistics.data.gov.uk/id/local-authority/00FC),Children & Family Services,Ass Dir - Children & Families,Head Of Child Resource & Reg,Other Agencies,Child Care Payments,PJ104,10/15/2018,630710,1654,REVENUE,REDACTED PERSONAL INFORMATION,REDACTED PERSONAL INFORMATION
North East Lincolnshire Council,http://statistics.data.gov.uk/id/local-authority/00FC),Children & Family Services,Ass Dir - Children & Families,Head Of Child Resource & Reg,Other Agencies,Child Care Payments,PJ104,10/15/2018,630730,346,REVENUE,REDACTED PERSONAL INFORMATION,REDACTED PERSONAL INFORMATION
North East Lincolnshire Council,http://statistics.data.gov.uk/id/local-authority/00FC),Children & Family Services,Ass Dir - Children & Families,Head Of Child Resource & Reg,Other Agencies,Child Care Payments,PJ104,10/15/2018,630736,346,REVENUE,REDACTED PERSONAL INFORMATION,REDACTED PERSONAL INFORMATION
North East Lincolnshire Council,http://statistics.data.gov.uk/id/local-authority/00FC),Children & Family Services,Ass Dir - Children & Families,Head Of Child Resource & Reg,Other Agencies,Child Care Payments,PJ104,10/15/2018,630749,1329,REVENUE,REDACTED PERSONAL INFORMATION,REDACTED PERSONAL INFORMATION
North East Lincolnshire Council,http://statistics.data.gov.uk/id/local-authority/00FC),Children & Family Services,Ass Dir - Children & Families,Head Of Child Resource & Reg,Other Agencies,Child Care Payments,PJ104,10/15/2018,630752,698,REVENUE,REDACTED PERSONAL INFORMATION,REDACTED PERSONAL INFORMATION
North East Lincolnshire Council,http://statistics.data.gov.uk/id/local-authority/00FC),Children & Family Services,Ass Dir - Children & Families,Head Of Child Resource & Reg,Other Agencies,Child Care Payments,PJ104,10/15/2018,630753,790.86,REVENUE,REDACTED PERSONAL INFORMATION,REDACTED PERSONAL INFORMATION
North East Lincolnshire Council,http://statistics.data.gov.uk/id/local-authority/00FC),Children & Family Services,Ass Dir - Children & Families,Head Of Child Resource & Reg,Other Agencies,Child Care Payments,PJ104,10/22/2018,632861,346,REVENUE,REDACTED PERSONAL INFORMATION,REDACTED PERSONAL INFORMATION
North East Lincolnshire Council,http://statistics.data.gov.uk/id/local-authority/00FC),Children & Family Services,Ass Dir - Children & Families,Head Of Child Resource & Reg,Other Agencies,Child Care Payments,PJ104,10/22/2018,632881,423.86,REVENUE,REDACTED PERSONAL INFORMATION,REDACTED PERSONAL INFORMATION
North East Lincolnshire Council,http://statistics.data.gov.uk/id/local-authority/00FC),Children & Family Services,Ass Dir - Children & Families,Head Of Child Resource & Reg,Other Agencies,Child Care Payments,PJ104,10/22/2018,632521,671,REVENUE,REDACTED PERSONAL INFORMATION,REDACTED PERSONAL INFORMATION
North East Lincolnshire Council,http://statistics.data.gov.uk/id/local-authority/00FC),Children & Family Services,Ass Dir - Children & Families,Head Of Child Resource & Reg,Other Agencies,Child Care Payments,PJ104,10/22/2018,632522,692,REVENUE,REDACTED PERSONAL INFORMATION,REDACTED PERSONAL INFORMATION
North East Lincolnshire Council,http://statistics.data.gov.uk/id/local-authority/00FC),Children & Family Services,Ass Dir - Children & Families,Head Of Child Resource & Reg,Other Agencies,Child Care Payments,PJ104,10/22/2018,632525,949,REVENUE,REDACTED PERSONAL INFORMATION,REDACTED PERSONAL INFORMATION
North East Lincolnshire Council,http://statistics.data.gov.uk/id/local-authority/00FC),Children & Family Services,Ass Dir - Children & Families,Head Of Child Resource & Reg,Other Agencies,Child Care Payments,PJ104,10/22/2018,632528,325,REVENUE,REDACTED PERSONAL INFORMATION,REDACTED PERSONAL INFORMATION
North East Lincolnshire Council,http://statistics.data.gov.uk/id/local-authority/00FC),Children & Family Services,Ass Dir - Children & Families,Head Of Child Resource & Reg,Other Agencies,Child Care Payments,PJ104,10/22/2018,632529,346,REVENUE,REDACTED PERSONAL INFORMATION,REDACTED PERSONAL INFORMATION
North East Lincolnshire Council,http://statistics.data.gov.uk/id/local-authority/00FC),Children & Family Services,Ass Dir - Children & Families,Head Of Child Resource & Reg,Other Agencies,Child Care Payments,PJ104,10/22/2018,632532,692,REVENUE,REDACTED PERSONAL INFORMATION,REDACTED PERSONAL INFORMATION
North East Lincolnshire Council,http://statistics.data.gov.uk/id/local-authority/00FC),Children & Family Services,Ass Dir - Children & Families,Head Of Child Resource & Reg,Other Agencies,Child Care Payments,PJ104,10/22/2018,632533,312,REVENUE,REDACTED PERSONAL INFORMATION,REDACTED PERSONAL INFORMATION
North East Lincolnshire Council,http://statistics.data.gov.uk/id/local-authority/00FC),Children & Family Services,Ass Dir - Children & Families,Head Of Child Resource & Reg,Other Agencies,Child Care Payments,PJ104,10/22/2018,632535,790.86,REVENUE,REDACTED PERSONAL INFORMATION,REDACTED PERSONAL INFORMATION
North East Lincolnshire Council,http://statistics.data.gov.uk/id/local-authority/00FC),Children & Family Services,Ass Dir - Children & Families,Head Of Child Resource & Reg,Other Agencies,Child Care Payments,PJ104,10/22/2018,632539,1023,REVENUE,REDACTED PERSONAL INFORMATION,REDACTED PERSONAL INFORMATION
North East Lincolnshire Council,http://statistics.data.gov.uk/id/local-authority/00FC),Children & Family Services,Ass Dir - Children & Families,Head Of Child Resource & Reg,Other Agencies,Child Care Payments,PJ104,10/22/2018,632543,996,REVENUE,REDACTED PERSONAL INFORMATION,REDACTED PERSONAL INFORMATION
North East Lincolnshire Council,http://statistics.data.gov.uk/id/local-authority/00FC),Children & Family Services,Ass Dir - Children & Families,Head Of Child Resource & Reg,Other Agencies,Child Care Payments,PJ104,10/22/2018,632545,671,REVENUE,REDACTED PERSONAL INFORMATION,REDACTED PERSONAL INFORMATION
North East Lincolnshire Council,http://statistics.data.gov.uk/id/local-authority/00FC),Children & Family Services,Ass Dir - Children & Families,Head Of Child Resource & Reg,Other Agencies,Child Care Payments,PJ104,10/22/2018,632546,637,REVENUE,REDACTED PERSONAL INFORMATION,REDACTED PERSONAL INFORMATION
North East Lincolnshire Council,http://statistics.data.gov.uk/id/local-authority/00FC),Children & Family Services,Ass Dir - Children & Families,Head Of Child Resource & Reg,Other Agencies,Child Care Payments,PJ104,10/22/2018,632548,1038,REVENUE,REDACTED PERSONAL INFORMATION,REDACTED PERSONAL INFORMATION
North East Lincolnshire Council,http://statistics.data.gov.uk/id/local-authority/00FC),Children & Family Services,Ass Dir - Children & Families,Head Of Child Resource & Reg,Other Agencies,Child Care Payments,PJ104,10/22/2018,632549,650,REVENUE,REDACTED PERSONAL INFORMATION,REDACTED PERSONAL INFORMATION
North East Lincolnshire Council,http://statistics.data.gov.uk/id/local-authority/00FC),Children & Family Services,Ass Dir - Children & Families,Head Of Child Resource & Reg,Other Agencies,Child Care Payments,PJ104,10/22/2018,632551,698,REVENUE,REDACTED PERSONAL INFORMATION,REDACTED PERSONAL INFORMATION
North East Lincolnshire Council,http://statistics.data.gov.uk/id/local-authority/00FC),Children & Family Services,Ass Dir - Children & Families,Head Of Child Resource & Reg,Other Agencies,Child Care Payments,PJ104,10/22/2018,632563,637,REVENUE,REDACTED PERSONAL INFORMATION,REDACTED PERSONAL INFORMATION
North East Lincolnshire Council,http://statistics.data.gov.uk/id/local-authority/00FC),Children & Family Services,Ass Dir - Children & Families,Head Of Child Resource & Reg,Other Agencies,Child Care Payments,PJ104,10/22/2018,632567,1736,REVENUE,REDACTED PERSONAL INFORMATION,REDACTED PERSONAL INFORMATION
North East Lincolnshire Council,http://statistics.data.gov.uk/id/local-authority/00FC),Children & Family Services,Ass Dir - Children & Families,Head Of Child Resource & Reg,Other Agencies,Child Care Payments,PJ104,10/22/2018,632570,1017,REVENUE,REDACTED PERSONAL INFORMATION,REDACTED PERSONAL INFORMATION
North East Lincolnshire Council,http://statistics.data.gov.uk/id/local-authority/00FC),Children & Family Services,Ass Dir - Children & Families,Head Of Child Resource & Reg,Other Agencies,Child Care Payments,PJ104,10/22/2018,632572,346,REVENUE,REDACTED PERSONAL INFORMATION,REDACTED PERSONAL INFORMATION
North East Lincolnshire Council,http://statistics.data.gov.uk/id/local-authority/00FC),Children & Family Services,Ass Dir - Children & Families,Head Of Child Resource & Reg,Other Agencies,Child Care Payments,PJ104,10/22/2018,632574,373,REVENUE,REDACTED PERSONAL INFORMATION,REDACTED PERSONAL INFORMATION
North East Lincolnshire Council,http://statistics.data.gov.uk/id/local-authority/00FC),Children & Family Services,Ass Dir - Children & Families,Head Of Child Resource & Reg,Other Agencies,Child Care Payments,PJ104,10/22/2018,632575,373,REVENUE,REDACTED PERSONAL INFORMATION,REDACTED PERSONAL INFORMATION
North East Lincolnshire Council,http://statistics.data.gov.uk/id/local-authority/00FC),Children & Family Services,Ass Dir - Children & Families,Head Of Child Resource & Reg,Other Agencies,Child Care Payments,PJ104,10/22/2018,632577,637,REVENUE,REDACTED PERSONAL INFORMATION,REDACTED PERSONAL INFORMATION
North East Lincolnshire Council,http://statistics.data.gov.uk/id/local-authority/00FC),Children & Family Services,Ass Dir - Children & Families,Head Of Child Resource & Reg,Other Agencies,Child Care Payments,PJ104,10/22/2018,632590,1017,REVENUE,REDACTED PERSONAL INFORMATION,REDACTED PERSONAL INFORMATION
North East Lincolnshire Council,http://statistics.data.gov.uk/id/local-authority/00FC),Children & Family Services,Ass Dir - Children & Families,Head Of Child Resource & Reg,Other Agencies,Child Care Payments,PJ104,10/22/2018,632595,970,REVENUE,REDACTED PERSONAL INFORMATION,REDACTED PERSONAL INFORMATION
North East Lincolnshire Council,http://statistics.data.gov.uk/id/local-authority/00FC),Children & Family Services,Ass Dir - Children & Families,Head Of Child Resource & Reg,Other Agencies,Child Care Payments,PJ104,10/22/2018,632597,637,REVENUE,REDACTED PERSONAL INFORMATION,REDACTED PERSONAL INFORMATION
North East Lincolnshire Council,http://statistics.data.gov.uk/id/local-authority/00FC),Children & Family Services,Ass Dir - Children & Families,Head Of Child Resource & Reg,Other Agencies,Child Care Payments,PJ104,10/22/2018,632598,781.86,REVENUE,REDACTED PERSONAL INFORMATION,REDACTED PERSONAL INFORMATION
North East Lincolnshire Council,http://statistics.data.gov.uk/id/local-authority/00FC),Children & Family Services,Ass Dir - Children & Families,Head Of Child Resource & Reg,Other Agencies,Child Care Payments,PJ104,10/22/2018,632605,650,REVENUE,REDACTED PERSONAL INFORMATION,REDACTED PERSONAL INFORMATION
North East Lincolnshire Council,http://statistics.data.gov.uk/id/local-authority/00FC),Children & Family Services,Ass Dir - Children & Families,Head Of Child Resource & Reg,Other Agencies,Child Care Payments,PJ104,10/22/2018,632610,1654,REVENUE,REDACTED PERSONAL INFORMATION,REDACTED PERSONAL INFORMATION
North East Lincolnshire Council,http://statistics.data.gov.uk/id/local-authority/00FC),Children & Family Services,Ass Dir - Children & Families,Head Of Child Resource & Reg,Other Agencies,Child Care Payments,PJ104,10/22/2018,632630,346,REVENUE,REDACTED PERSONAL INFORMATION,REDACTED PERSONAL INFORMATION
North East Lincolnshire Council,http://statistics.data.gov.uk/id/local-authority/00FC),Children & Family Services,Ass Dir - Children & Families,Head Of Child Resource & Reg,Other Agencies,Child Care Payments,PJ104,10/22/2018,632636,346,REVENUE,REDACTED PERSONAL INFORMATION,REDACTED PERSONAL INFORMATION
North East Lincolnshire Council,http://statistics.data.gov.uk/id/local-authority/00FC),Children & Family Services,Ass Dir - Children & Families,Head Of Child Resource & Reg,Other Agencies,Child Care Payments,PJ104,10/22/2018,632649,1352.14,REVENUE,REDACTED PERSONAL INFORMATION,REDACTED PERSONAL INFORMATION
North East Lincolnshire Council,http://statistics.data.gov.uk/id/local-authority/00FC),Children & Family Services,Ass Dir - Children & Families,Head Of Child Resource & Reg,Other Agencies,Child Care Payments,PJ104,10/22/2018,632652,698,REVENUE,REDACTED PERSONAL INFORMATION,REDACTED PERSONAL INFORMATION
North East Lincolnshire Council,http://statistics.data.gov.uk/id/local-authority/00FC),Children & Family Services,Ass Dir - Children & Families,Head Of Child Resource & Reg,Other Agencies,Child Care Payments,PJ104,10/22/2018,632658,1413.86,REVENUE,REDACTED PERSONAL INFORMATION,REDACTED PERSONAL INFORMATION
North East Lincolnshire Council,http://statistics.data.gov.uk/id/local-authority/00FC),Children & Family Services,Ass Dir - Children & Families,Head Of Child Resource & Reg,Other Agencies,Child Care Payments,PJ104,10/22/2018,632660,1017,REVENUE,REDACTED PERSONAL INFORMATION,REDACTED PERSONAL INFORMATION
North East Lincolnshire Council,http://statistics.data.gov.uk/id/local-authority/00FC),Children & Family Services,Ass Dir - Children & Families,Head Of Child Resource & Reg,Other Agencies,Child Care Payments,PJ104,10/22/2018,632672,1017,REVENUE,REDACTED PERSONAL INFORMATION,REDACTED PERSONAL INFORMATION
North East Lincolnshire Council,http://statistics.data.gov.uk/id/local-authority/00FC),Children & Family Services,Ass Dir - Children & Families,Head Of Child Resource & Reg,Other Agencies,Child Care Payments,PJ104,10/22/2018,632679,650,REVENUE,REDACTED PERSONAL INFORMATION,REDACTED PERSONAL INFORMATION
North East Lincolnshire Council,http://statistics.data.gov.uk/id/local-authority/00FC),Children & Family Services,Ass Dir - Children & Families,Head Of Child Resource & Reg,Other Agencies,Child Care Payments,PJ104,10/22/2018,632683,1348,REVENUE,REDACTED PERSONAL INFORMATION,REDACTED PERSONAL INFORMATION
North East Lincolnshire Council,http://statistics.data.gov.uk/id/local-authority/00FC),Children & Family Services,Ass Dir - Children & Families,Head Of Child Resource & Reg,Other Agencies,Child Care Payments,PJ104,10/22/2018,632695,1017,REVENUE,REDACTED PERSONAL INFORMATION,REDACTED PERSONAL INFORMATION
North East Lincolnshire Council,http://statistics.data.gov.uk/id/local-authority/00FC),Children & Family Services,Ass Dir - Children & Families,Head Of Child Resource & Reg,Other Agencies,Child Care Payments,PJ104,10/22/2018,632698,325,REVENUE,REDACTED PERSONAL INFORMATION,REDACTED PERSONAL INFORMATION
North East Lincolnshire Council,http://statistics.data.gov.uk/id/local-authority/00FC),Children & Family Services,Ass Dir - Children & Families,Head Of Child Resource & Reg,Other Agencies,Child Care Payments,PJ104,10/22/2018,632712,996,REVENUE,REDACTED PERSONAL INFORMATION,REDACTED PERSONAL INFORMATION
North East Lincolnshire Council,http://statistics.data.gov.uk/id/local-authority/00FC),Children & Family Services,Ass Dir - Children & Families,Head Of Child Resource & Reg,Other Agencies,Child Care Payments,PJ104,10/22/2018,632717,611.15,REVENUE,REDACTED PERSONAL INFORMATION,REDACTED PERSONAL INFORMATION
North East Lincolnshire Council,http://statistics.data.gov.uk/id/local-authority/00FC),Children & Family Services,Ass Dir - Children & Families,Head Of Child Resource & Reg,Other Agencies,Child Care Payments,PJ104,10/22/2018,632723,650,REVENUE,REDACTED PERSONAL INFORMATION,REDACTED PERSONAL INFORMATION
North East Lincolnshire Council,http://statistics.data.gov.uk/id/local-authority/00FC),Children & Family Services,Ass Dir - Children & Families,Head Of Child Resource & Reg,Other Agencies,Child Care Payments,PJ104,10/22/2018,632737,1017,REVENUE,REDACTED PERSONAL INFORMATION,REDACTED PERSONAL INFORMATION
North East Lincolnshire Council,http://statistics.data.gov.uk/id/local-authority/00FC),Children & Family Services,Ass Dir - Children & Families,Head Of Child Resource & Reg,Other Agencies,Child Care Payments,PJ104,10/22/2018,632738,692,REVENUE,REDACTED PERSONAL INFORMATION,REDACTED PERSONAL INFORMATION
North East Lincolnshire Council,http://statistics.data.gov.uk/id/local-authority/00FC),Children & Family Services,Ass Dir - Children & Families,Head Of Child Resource & Reg,Other Agencies,Child Care Payments,PJ104,10/22/2018,632740,650,REVENUE,REDACTED PERSONAL INFORMATION,REDACTED PERSONAL INFORMATION
North East Lincolnshire Council,http://statistics.data.gov.uk/id/local-authority/00FC),Children & Family Services,Ass Dir - Children & Families,Head Of Child Resource & Reg,Other Agencies,Child Care Payments,PJ104,10/22/2018,632745,650,REVENUE,REDACTED PERSONAL INFORMATION,REDACTED PERSONAL INFORMATION
North East Lincolnshire Council,http://statistics.data.gov.uk/id/local-authority/00FC),Children & Family Services,Ass Dir - Children & Families,Head Of Child Resource & Reg,Other Agencies,Child Care Payments,PJ104,10/22/2018,632746,312,REVENUE,REDACTED PERSONAL INFORMATION,REDACTED PERSONAL INFORMATION
North East Lincolnshire Council,http://statistics.data.gov.uk/id/local-authority/00FC),Children & Family Services,Ass Dir - Children & Families,Head Of Child Resource & Reg,Other Agencies,Child Care Payments,PJ104,10/22/2018,632753,637,REVENUE,REDACTED PERSONAL INFORMATION,REDACTED PERSONAL INFORMATION
North East Lincolnshire Council,http://statistics.data.gov.uk/id/local-authority/00FC),Children & Family Services,Ass Dir - Children & Families,Head Of Child Resource & Reg,Other Agencies,Child Care Payments,PJ104,10/22/2018,632757,975,REVENUE,REDACTED PERSONAL INFORMATION,REDACTED PERSONAL INFORMATION
North East Lincolnshire Council,http://statistics.data.gov.uk/id/local-authority/00FC),Children & Family Services,Ass Dir - Children & Families,Head Of Child Resource & Reg,Other Agencies,Child Care Payments,PJ104,10/22/2018,632765,1004,REVENUE,REDACTED PERSONAL INFORMATION,REDACTED PERSONAL INFORMATION
North East Lincolnshire Council,http://statistics.data.gov.uk/id/local-authority/00FC),Children & Family Services,Ass Dir - Children & Families,Head Of Child Resource & Reg,Other Agencies,Child Care Payments,PJ104,10/22/2018,632785,650,REVENUE,REDACTED PERSONAL INFORMATION,REDACTED PERSONAL INFORMATION
North East Lincolnshire Council,http://statistics.data.gov.uk/id/local-authority/00FC),Children & Family Services,Ass Dir - Children & Families,Head Of Child Resource & Reg,Other Agencies,Child Care Payments,PJ104,10/22/2018,632786,996,REVENUE,REDACTED PERSONAL INFORMATION,REDACTED PERSONAL INFORMATION
North East Lincolnshire Council,http://statistics.data.gov.uk/id/local-authority/00FC),Children & Family Services,Ass Dir - Children & Families,Head Of Child Resource & Reg,Other Agencies,Child Care Payments,PJ104,10/22/2018,632808,692,REVENUE,REDACTED PERSONAL INFORMATION,REDACTED PERSONAL INFORMATION
North East Lincolnshire Council,http://statistics.data.gov.uk/id/local-authority/00FC),Children & Family Services,Ass Dir - Children & Families,Head Of Child Resource & Reg,Other Agencies,Child Care Payments,PJ104,10/22/2018,632809,325,REVENUE,REDACTED PERSONAL INFORMATION,REDACTED PERSONAL INFORMATION
North East Lincolnshire Council,http://statistics.data.gov.uk/id/local-authority/00FC),Children & Family Services,Ass Dir - Children & Families,Head Of Child Resource & Reg,Other Agencies,Child Care Payments,PJ104,10/22/2018,632821,624,REVENUE,REDACTED PERSONAL INFORMATION,REDACTED PERSONAL INFORMATION
North East Lincolnshire Council,http://statistics.data.gov.uk/id/local-authority/00FC),Children & Family Services,Ass Dir - Children & Families,Head Of Child Resource & Reg,Other Agencies,Child Care Payments,PJ104,10/22/2018,632824,637,REVENUE,REDACTED PERSONAL INFORMATION,REDACTED PERSONAL INFORMATION
North East Lincolnshire Council,http://statistics.data.gov.uk/id/local-authority/00FC),Children & Family Services,Ass Dir - Children & Families,Head Of Child Resource & Reg,Other Agencies,Child Care Payments,PJ104,10/22/2018,632826,3585.56,REVENUE,REDACTED PERSONAL INFORMATION,REDACTED PERSONAL INFORMATION
North East Lincolnshire Council,http://statistics.data.gov.uk/id/local-authority/00FC),Children & Family Services,Ass Dir - Children & Families,Head Of Child Resource & Reg,Other Agencies,Child Care Payments,PJ104,10/29/2018,634755,970,REVENUE,REDACTED PERSONAL INFORMATION,REDACTED PERSONAL INFORMATION
North East Lincolnshire Council,http://statistics.data.gov.uk/id/local-authority/00FC),Children & Family Services,Ass Dir - Children & Families,Head Of Child Resource & Reg,Other Agencies,Child Care Payments,PJ104,10/29/2018,634757,637,REVENUE,REDACTED PERSONAL INFORMATION,REDACTED PERSONAL INFORMATION
North East Lincolnshire Council,http://statistics.data.gov.uk/id/local-authority/00FC),Children & Family Services,Ass Dir - Children & Families,Head Of Child Resource & Reg,Other Agencies,Child Care Payments,PJ104,10/29/2018,634765,650,REVENUE,REDACTED PERSONAL INFORMATION,REDACTED PERSONAL INFORMATION
North East Lincolnshire Council,http://statistics.data.gov.uk/id/local-authority/00FC),Children & Family Services,Ass Dir - Children & Families,Head Of Child Resource & Reg,Other Agencies,Child Care Payments,PJ104,10/29/2018,634770,1654,REVENUE,REDACTED PERSONAL INFORMATION,REDACTED PERSONAL INFORMATION
North East Lincolnshire Council,http://statistics.data.gov.uk/id/local-authority/00FC),Children & Family Services,Ass Dir - Children & Families,Head Of Child Resource & Reg,Other Agencies,Child Care Payments,PJ104,10/29/2018,634839,650,REVENUE,REDACTED PERSONAL INFORMATION,REDACTED PERSONAL INFORMATION
North East Lincolnshire Council,http://statistics.data.gov.uk/id/local-authority/00FC),Children & Family Services,Ass Dir - Children & Families,Head Of Child Resource & Reg,Other Agencies,Child Care Payments,PJ104,10/29/2018,634843,1348,REVENUE,REDACTED PERSONAL INFORMATION,REDACTED PERSONAL INFORMATION
North East Lincolnshire Council,http://statistics.data.gov.uk/id/local-authority/00FC),Children & Family Services,Ass Dir - Children & Families,Head Of Child Resource & Reg,Other Agencies,Child Care Payments,PJ104,10/29/2018,634855,671,REVENUE,REDACTED PERSONAL INFORMATION,REDACTED PERSONAL INFORMATION
North East Lincolnshire Council,http://statistics.data.gov.uk/id/local-authority/00FC),Children & Family Services,Ass Dir - Children & Families,Head Of Child Resource & Reg,Other Agencies,Child Care Payments,PJ104,10/29/2018,634855,346,REVENUE,REDACTED PERSONAL INFORMATION,REDACTED PERSONAL INFORMATION
North East Lincolnshire Council,http://statistics.data.gov.uk/id/local-authority/00FC),Children & Family Services,Ass Dir - Children & Families,Head Of Child Resource & Reg,Other Agencies,Child Care Payments,PJ104,10/29/2018,634858,325,REVENUE,REDACTED PERSONAL INFORMATION,REDACTED PERSONAL INFORMATION
North East Lincolnshire Council,http://statistics.data.gov.uk/id/local-authority/00FC),Children & Family Services,Ass Dir - Children & Families,Head Of Child Resource & Reg,Other Agencies,Child Care Payments,PJ104,10/29/2018,634969,692,REVENUE,REDACTED PERSONAL INFORMATION,REDACTED PERSONAL INFORMATION
North East Lincolnshire Council,http://statistics.data.gov.uk/id/local-authority/00FC),Children & Family Services,Ass Dir - Children & Families,Head Of Child Resource & Reg,Other Agencies,Child Care Payments,PJ104,10/29/2018,634970,325,REVENUE,REDACTED PERSONAL INFORMATION,REDACTED PERSONAL INFORMATION
North East Lincolnshire Council,http://statistics.data.gov.uk/id/local-authority/00FC),Children & Family Services,Ass Dir - Children & Families,Head Of Child Resource & Reg,Other Agencies,Child Care Payments,PJ104,10/29/2018,634790,346,REVENUE,REDACTED PERSONAL INFORMATION,REDACTED PERSONAL INFORMATION
North East Lincolnshire Council,http://statistics.data.gov.uk/id/local-authority/00FC),Children & Family Services,Ass Dir - Children & Families,Head Of Child Resource & Reg,Other Agencies,Child Care Payments,PJ104,10/29/2018,634796,346,REVENUE,REDACTED PERSONAL INFORMATION,REDACTED PERSONAL INFORMATION
North East Lincolnshire Council,http://statistics.data.gov.uk/id/local-authority/00FC),Children & Family Services,Ass Dir - Children & Families,Head Of Child Resource & Reg,Other Agencies,Child Care Payments,PJ104,10/29/2018,634872,996,REVENUE,REDACTED PERSONAL INFORMATION,REDACTED PERSONAL INFORMATION
North East Lincolnshire Council,http://statistics.data.gov.uk/id/local-authority/00FC),Children & Family Services,Ass Dir - Children & Families,Head Of Child Resource & Reg,Other Agencies,Child Care Payments,PJ104,10/29/2018,634877,373,REVENUE,REDACTED PERSONAL INFORMATION,REDACTED PERSONAL INFORMATION
North East Lincolnshire Council,http://statistics.data.gov.uk/id/local-authority/00FC),Children & Family Services,Ass Dir - Children & Families,Head Of Child Resource & Reg,Other Agencies,Child Care Payments,PJ104,10/29/2018,634981,624,REVENUE,REDACTED PERSONAL INFORMATION,REDACTED PERSONAL INFORMATION
North East Lincolnshire Council,http://statistics.data.gov.uk/id/local-authority/00FC),Children & Family Services,Ass Dir - Children & Families,Head Of Child Resource & Reg,Other Agencies,Child Care Payments,PJ104,10/29/2018,634984,637,REVENUE,REDACTED PERSONAL INFORMATION,REDACTED PERSONAL INFORMATION
North East Lincolnshire Council,http://statistics.data.gov.uk/id/local-authority/00FC),Children & Family Services,Ass Dir - Children & Families,Head Of Child Resource & Reg,Other Agencies,Child Care Payments,PJ104,10/29/2018,634986,1321,REVENUE,REDACTED PERSONAL INFORMATION,REDACTED PERSONAL INFORMATION
North East Lincolnshire Council,http://statistics.data.gov.uk/id/local-authority/00FC),Children & Family Services,Ass Dir - Children & Families,Head Of Child Resource & Reg,Other Agencies,Child Care Payments,PJ104,10/29/2018,634809,1356,REVENUE,REDACTED PERSONAL INFORMATION,REDACTED PERSONAL INFORMATION
North East Lincolnshire Council,http://statistics.data.gov.uk/id/local-authority/00FC),Children & Family Services,Ass Dir - Children & Families,Head Of Child Resource & Reg,Other Agencies,Child Care Payments,PJ104,10/29/2018,634812,698,REVENUE,REDACTED PERSONAL INFORMATION,REDACTED PERSONAL INFORMATION
North East Lincolnshire Council,http://statistics.data.gov.uk/id/local-authority/00FC),Children & Family Services,Ass Dir - Children & Families,Head Of Child Resource & Reg,Other Agencies,Child Care Payments,PJ104,10/29/2018,634817,996,REVENUE,REDACTED PERSONAL INFORMATION,REDACTED PERSONAL INFORMATION
North East Lincolnshire Council,http://statistics.data.gov.uk/id/local-authority/00FC),Children & Family Services,Ass Dir - Children & Families,Head Of Child Resource & Reg,Other Agencies,Child Care Payments,PJ104,10/29/2018,634819,1017,REVENUE,REDACTED PERSONAL INFORMATION,REDACTED PERSONAL INFORMATION
North East Lincolnshire Council,http://statistics.data.gov.uk/id/local-authority/00FC),Children & Family Services,Ass Dir - Children & Families,Head Of Child Resource & Reg,Other Agencies,Child Care Payments,PJ104,10/29/2018,634884,650,REVENUE,REDACTED PERSONAL INFORMATION,REDACTED PERSONAL INFORMATION
North East Lincolnshire Council,http://statistics.data.gov.uk/id/local-authority/00FC),Children & Family Services,Ass Dir - Children & Families,Head Of Child Resource & Reg,Other Agencies,Child Care Payments,PJ104,10/29/2018,634898,1017,REVENUE,REDACTED PERSONAL INFORMATION,REDACTED PERSONAL INFORMATION
North East Lincolnshire Council,http://statistics.data.gov.uk/id/local-authority/00FC),Children & Family Services,Ass Dir - Children & Families,Head Of Child Resource & Reg,Other Agencies,Child Care Payments,PJ104,10/29/2018,634899,692,REVENUE,REDACTED PERSONAL INFORMATION,REDACTED PERSONAL INFORMATION
North East Lincolnshire Council,http://statistics.data.gov.uk/id/local-authority/00FC),Children & Family Services,Ass Dir - Children & Families,Head Of Child Resource & Reg,Other Agencies,Child Care Payments,PJ104,10/29/2018,634901,650,REVENUE,REDACTED PERSONAL INFORMATION,REDACTED PERSONAL INFORMATION
North East Lincolnshire Council,http://statistics.data.gov.uk/id/local-authority/00FC),Children & Family Services,Ass Dir - Children & Families,Head Of Child Resource & Reg,Other Agencies,Child Care Payments,PJ104,10/29/2018,634906,650,REVENUE,REDACTED PERSONAL INFORMATION,REDACTED PERSONAL INFORMATION
North East Lincolnshire Council,http://statistics.data.gov.uk/id/local-authority/00FC),Children & Family Services,Ass Dir - Children & Families,Head Of Child Resource & Reg,Other Agencies,Child Care Payments,PJ104,10/29/2018,635019,346,REVENUE,REDACTED PERSONAL INFORMATION,REDACTED PERSONAL INFORMATION
North East Lincolnshire Council,http://statistics.data.gov.uk/id/local-authority/00FC),Children & Family Services,Ass Dir - Children & Families,Head Of Child Resource & Reg,Other Agencies,Child Care Payments,PJ104,10/29/2018,634831,1017,REVENUE,REDACTED PERSONAL INFORMATION,REDACTED PERSONAL INFORMATION
North East Lincolnshire Council,http://statistics.data.gov.uk/id/local-authority/00FC),Children & Family Services,Ass Dir - Children & Families,Head Of Child Resource & Reg,Other Agencies,Child Care Payments,PJ104,10/29/2018,634907,312,REVENUE,REDACTED PERSONAL INFORMATION,REDACTED PERSONAL INFORMATION
North East Lincolnshire Council,http://statistics.data.gov.uk/id/local-authority/00FC),Children & Family Services,Ass Dir - Children & Families,Head Of Child Resource & Reg,Other Agencies,Child Care Payments,PJ104,10/29/2018,634914,455,REVENUE,REDACTED PERSONAL INFORMATION,REDACTED PERSONAL INFORMATION
North East Lincolnshire Council,http://statistics.data.gov.uk/id/local-authority/00FC),Children & Family Services,Ass Dir - Children & Families,Head Of Child Resource & Reg,Other Agencies,Child Care Payments,PJ104,10/29/2018,634918,975,REVENUE,REDACTED PERSONAL INFORMATION,REDACTED PERSONAL INFORMATION
North East Lincolnshire Council,http://statistics.data.gov.uk/id/local-authority/00FC),Children & Family Services,Ass Dir - Children & Families,Head Of Child Resource & Reg,Other Agencies,Child Care Payments,PJ104,10/29/2018,635039,875.14,REVENUE,REDACTED PERSONAL INFORMATION,REDACTED PERSONAL INFORMATION
North East Lincolnshire Council,http://statistics.data.gov.uk/id/local-authority/00FC),Children & Family Services,Ass Dir - Children & Families,Head Of Child Resource & Reg,Other Agencies,Child Care Payments,PJ104,10/29/2018,634926,1004,REVENUE,REDACTED PERSONAL INFORMATION,REDACTED PERSONAL INFORMATION
North East Lincolnshire Council,http://statistics.data.gov.uk/id/local-authority/00FC),Children & Family Services,Ass Dir - Children & Families,Head Of Child Resource & Reg,Other Agencies,Child Care Payments,PJ104,10/29/2018,634946,650,REVENUE,REDACTED PERSONAL INFORMATION,REDACTED PERSONAL INFORMATION
North East Lincolnshire Council,http://statistics.data.gov.uk/id/local-authority/00FC),Children & Family Services,Ass Dir - Children & Families,Head Of Child Resource & Reg,Other Agencies,Child Care Payments,PJ104,10/29/2018,634947,996,REVENUE,REDACTED PERSONAL INFORMATION,REDACTED PERSONAL INFORMATION
North East Lincolnshire Council,http://statistics.data.gov.uk/id/local-authority/00FC),Children & Family Services,Ass Dir - Children & Families,Head Of Child Resource & Reg,Other Agencies,Child Care Payments,PJ104,10/29/2018,634678,671,REVENUE,REDACTED PERSONAL INFORMATION,REDACTED PERSONAL INFORMATION
North East Lincolnshire Council,http://statistics.data.gov.uk/id/local-authority/00FC),Children & Family Services,Ass Dir - Children & Families,Head Of Child Resource & Reg,Other Agencies,Child Care Payments,PJ104,10/29/2018,634679,444.85,REVENUE,REDACTED PERSONAL INFORMATION,REDACTED PERSONAL INFORMATION
North East Lincolnshire Council,http://statistics.data.gov.uk/id/local-authority/00FC),Children & Family Services,Ass Dir - Children & Families,Head Of Child Resource & Reg,Other Agencies,Child Care Payments,PJ104,10/29/2018,634680,692,REVENUE,REDACTED PERSONAL INFORMATION,REDACTED PERSONAL INFORMATION
North East Lincolnshire Council,http://statistics.data.gov.uk/id/local-authority/00FC),Children & Family Services,Ass Dir - Children & Families,Head Of Child Resource & Reg,Other Agencies,Child Care Payments,PJ104,10/29/2018,634683,949,REVENUE,REDACTED PERSONAL INFORMATION,REDACTED PERSONAL INFORMATION
North East Lincolnshire Council,http://statistics.data.gov.uk/id/local-authority/00FC),Children & Family Services,Ass Dir - Children & Families,Head Of Child Resource & Reg,Other Agencies,Child Care Payments,PJ104,10/29/2018,634684,686.01,REVENUE,REDACTED PERSONAL INFORMATION,REDACTED PERSONAL INFORMATION
North East Lincolnshire Council,http://statistics.data.gov.uk/id/local-authority/00FC),Children & Family Services,Ass Dir - Children & Families,Head Of Child Resource & Reg,Other Agencies,Child Care Payments,PJ104,10/29/2018,634687,325,REVENUE,REDACTED PERSONAL INFORMATION,REDACTED PERSONAL INFORMATION
North East Lincolnshire Council,http://statistics.data.gov.uk/id/local-authority/00FC),Children & Family Services,Ass Dir - Children & Families,Head Of Child Resource & Reg,Other Agencies,Child Care Payments,PJ104,10/29/2018,634688,346,REVENUE,REDACTED PERSONAL INFORMATION,REDACTED PERSONAL INFORMATION
North East Lincolnshire Council,http://statistics.data.gov.uk/id/local-authority/00FC),Children & Family Services,Ass Dir - Children & Families,Head Of Child Resource & Reg,Other Agencies,Child Care Payments,PJ104,10/29/2018,634691,692,REVENUE,REDACTED PERSONAL INFORMATION,REDACTED PERSONAL INFORMATION
North East Lincolnshire Council,http://statistics.data.gov.uk/id/local-authority/00FC),Children & Family Services,Ass Dir - Children & Families,Head Of Child Resource & Reg,Other Agencies,Child Care Payments,PJ104,10/29/2018,634692,312,REVENUE,REDACTED PERSONAL INFORMATION,REDACTED PERSONAL INFORMATION
North East Lincolnshire Council,http://statistics.data.gov.uk/id/local-authority/00FC),Children & Family Services,Ass Dir - Children & Families,Head Of Child Resource & Reg,Other Agencies,Child Care Payments,PJ104,10/29/2018,634694,346,REVENUE,REDACTED PERSONAL INFORMATION,REDACTED PERSONAL INFORMATION
North East Lincolnshire Council,http://statistics.data.gov.uk/id/local-authority/00FC),Children & Family Services,Ass Dir - Children & Families,Head Of Child Resource & Reg,Other Agencies,Child Care Payments,PJ104,10/29/2018,634695,598.28,REVENUE,REDACTED PERSONAL INFORMATION,REDACTED PERSONAL INFORMATION
North East Lincolnshire Council,http://statistics.data.gov.uk/id/local-authority/00FC),Children & Family Services,Ass Dir - Children & Families,Head Of Child Resource & Reg,Other Agencies,Child Care Payments,PJ104,10/29/2018,634698,1023,REVENUE,REDACTED PERSONAL INFORMATION,REDACTED PERSONAL INFORMATION
North East Lincolnshire Council,http://statistics.data.gov.uk/id/local-authority/00FC),Children & Family Services,Ass Dir - Children & Families,Head Of Child Resource & Reg,Other Agencies,Child Care Payments,PJ104,10/29/2018,634702,996,REVENUE,REDACTED PERSONAL INFORMATION,REDACTED PERSONAL INFORMATION
North East Lincolnshire Council,http://statistics.data.gov.uk/id/local-authority/00FC),Children & Family Services,Ass Dir - Children & Families,Head Of Child Resource & Reg,Other Agencies,Child Care Payments,PJ104,10/29/2018,634704,671,REVENUE,REDACTED PERSONAL INFORMATION,REDACTED PERSONAL INFORMATION
North East Lincolnshire Council,http://statistics.data.gov.uk/id/local-authority/00FC),Children & Family Services,Ass Dir - Children & Families,Head Of Child Resource & Reg,Other Agencies,Child Care Payments,PJ104,10/29/2018,634705,637,REVENUE,REDACTED PERSONAL INFORMATION,REDACTED PERSONAL INFORMATION
North East Lincolnshire Council,http://statistics.data.gov.uk/id/local-authority/00FC),Children & Family Services,Ass Dir - Children & Families,Head Of Child Resource & Reg,Other Agencies,Child Care Payments,PJ104,10/29/2018,634707,1038,REVENUE,REDACTED PERSONAL INFORMATION,REDACTED PERSONAL INFORMATION
North East Lincolnshire Council,http://statistics.data.gov.uk/id/local-authority/00FC),Children & Family Services,Ass Dir - Children & Families,Head Of Child Resource & Reg,Other Agencies,Child Care Payments,PJ104,10/29/2018,634708,650,REVENUE,REDACTED PERSONAL INFORMATION,REDACTED PERSONAL INFORMATION
North East Lincolnshire Council,http://statistics.data.gov.uk/id/local-authority/00FC),Children & Family Services,Ass Dir - Children & Families,Head Of Child Resource & Reg,Other Agencies,Child Care Payments,PJ104,10/29/2018,634710,698,REVENUE,REDACTED PERSONAL INFORMATION,REDACTED PERSONAL INFORMATION
North East Lincolnshire Council,http://statistics.data.gov.uk/id/local-authority/00FC),Children & Family Services,Ass Dir - Children & Families,Head Of Child Resource & Reg,Other Agencies,Child Care Payments,PJ104,10/29/2018,634723,637,REVENUE,REDACTED PERSONAL INFORMATION,REDACTED PERSONAL INFORMATION
North East Lincolnshire Council,http://statistics.data.gov.uk/id/local-authority/00FC),Children & Family Services,Ass Dir - Children & Families,Head Of Child Resource & Reg,Other Agencies,Child Care Payments,PJ104,10/29/2018,634727,1736,REVENUE,REDACTED PERSONAL INFORMATION,REDACTED PERSONAL INFORMATION
North East Lincolnshire Council,http://statistics.data.gov.uk/id/local-authority/00FC),Children & Family Services,Ass Dir - Children & Families,Head Of Child Resource & Reg,Other Agencies,Child Care Payments,PJ104,10/29/2018,634730,1017,REVENUE,REDACTED PERSONAL INFORMATION,REDACTED PERSONAL INFORMATION
North East Lincolnshire Council,http://statistics.data.gov.uk/id/local-authority/00FC),Children & Family Services,Ass Dir - Children & Families,Head Of Child Resource & Reg,Other Agencies,Child Care Payments,PJ104,10/29/2018,634732,346,REVENUE,REDACTED PERSONAL INFORMATION,REDACTED PERSONAL INFORMATION
North East Lincolnshire Council,http://statistics.data.gov.uk/id/local-authority/00FC),Children & Family Services,Ass Dir - Children & Families,Head Of Child Resource & Reg,Other Agencies,Child Care Payments,PJ104,10/29/2018,634734,373,REVENUE,REDACTED PERSONAL INFORMATION,REDACTED PERSONAL INFORMATION
North East Lincolnshire Council,http://statistics.data.gov.uk/id/local-authority/00FC),Children & Family Services,Ass Dir - Children & Families,Head Of Child Resource & Reg,Other Agencies,Child Care Payments,PJ104,10/29/2018,634735,521.29,REVENUE,REDACTED PERSONAL INFORMATION,REDACTED PERSONAL INFORMATION
North East Lincolnshire Council,http://statistics.data.gov.uk/id/local-authority/00FC),Children & Family Services,Ass Dir - Children & Families,Head Of Child Resource & Reg,Other Agencies,Child Care Payments,PJ104,10/29/2018,634737,637,REVENUE,REDACTED PERSONAL INFORMATION,REDACTED PERSONAL INFORMATION
North East Lincolnshire Council,http://statistics.data.gov.uk/id/local-authority/00FC),Children & Family Services,Ass Dir - Children & Families,Head Of Child Resource & Reg,Other Agencies,Child Care Payments,PJ104,10/29/2018,634750,1017,REVENUE,REDACTED PERSONAL INFORMATION,REDACTED PERSONAL INFORMATION
North East Lincolnshire Council,http://statistics.data.gov.uk/id/local-authority/00FC),Children & Family Services,Ass Dir - Children & Families,Head Of Child Resource & Reg,Other Agencies,Child Care Payments,PJ104,10/1/2018,627367,260,REVENUE,REDACTED PERSONAL INFORMATION,REDACTED PERSONAL INFORMATION
North East Lincolnshire Council,http://statistics.data.gov.uk/id/local-authority/00FC),Children & Family Services,Ass Dir - Children & Families,Head Of Child Resource & Reg,Other Agencies,Child Care Payments,PJ104,10/1/2018,627375,260,REVENUE,REDACTED PERSONAL INFORMATION,REDACTED PERSONAL INFORMATION
North East Lincolnshire Council,http://statistics.data.gov.uk/id/local-authority/00FC),Children & Family Services,Ass Dir - Children & Families,Head Of Child Resource & Reg,Other Agencies,Child Care Payments,PJ104,10/1/2018,627416,355,REVENUE,REDACTED PERSONAL INFORMATION,REDACTED PERSONAL INFORMATION
North East Lincolnshire Council,http://statistics.data.gov.uk/id/local-authority/00FC),Children & Family Services,Ass Dir - Children & Families,Head Of Child Resource & Reg,Other Agencies,Child Care Payments,PJ104,10/1/2018,627139,260,REVENUE,REDACTED PERSONAL INFORMATION,REDACTED PERSONAL INFORMATION
North East Lincolnshire Council,http://statistics.data.gov.uk/id/local-authority/00FC),Children & Family Services,Ass Dir - Children & Families,Head Of Child Resource & Reg,Other Agencies,Child Care Payments,PJ104,10/1/2018,627445,307,REVENUE,REDACTED PERSONAL INFORMATION,REDACTED PERSONAL INFORMATION
North East Lincolnshire Council,http://statistics.data.gov.uk/id/local-authority/00FC),Children & Family Services,Ass Dir - Children & Families,Head Of Child Resource & Reg,Other Agencies,Child Care Payments,PJ104,10/1/2018,627457,307,REVENUE,REDACTED PERSONAL INFORMATION,REDACTED PERSONAL INFORMATION
